Workbook

Sheet 入力シート
J3: 設計ツール | N3: 本資料に記載の事項 | Q3: =IF(Q14="ー","","１、耐力/剛性計算結果") ->  | W3: ピタットベースFrontierは岡部株式会社の木造軸組工法用の壁柱工法です。
Q4: =IF(Y14="ー","","２、柱脚部材の検定結果") ->  | W4: 製品・本ツールに関するお問い合わせは岡部株式会社までお願いいたします。
Q5: =IF(AC14="ー","","３、基礎定着の検定結果") ->  | W5: 製品専用WEBサイト URL： | Z5: https://www.okabe.co.jp/mokuzo/frontier/
B7: 物件名 | E7: ：
AF8: ="バージョン情報 ： "&LEFT(計算!CN1,9)&" / "&TEXT(計算!CQ1,"yyyy.m") -> バージョン情報 ： Ver.21-10 / 2021.10
B9: 壁柱仕様入力 | N9: 設計応力入力 | Q9: 耐力・剛性計算結果 | T9: 参考値 | W9: 検討結果
B10: No. | C10: 通り | D10: 間 | E10: 壁柱 剛性 | G10: 壁柱幅 | H10: 壁柱厚さ | I10: 高さ | J10: 基礎 | L10: 使用環境 | N10: 設計せん断力 | O10: 設計軸方向力 | Q10: Pa | R10: KB0 （柱脚部） | S10: cK （鉛直構面） | T10: 壁倍率 相当 | U10: アンカー ボルト間 | W10: 水平力の 検定 | Y10: 柱脚金物の検定 | AC10: 基礎定着の検定
J11: Fc | K11: へりあき | Y11: 結果 | Z11: 検定比 | AC11: 結果 | AD11: 検定比
G12: mm | H12: mm | I12: mm | J12: N/mm2 | K12: mm | N12: kN | O12: kN | Q12: kN | R12: kN・m/rad | S12: kN・m/rad | T12: 倍 | U12: mm | W12: 結果 | X12: 検定比 | Z12: 圧縮側 | AA12: 引張側 | AB12: せん断 | AD12: 圧縮側 | AE12: 引張側 | AF12: せん断
B14: 1 | E14: E | Q14: =計算!AB5 -> ー | R14: =計算!AH5 -> ー | S14: =計算!AI5 -> ー | T14: =計算!AJ5 -> ー | U14: =計算!X5 -> ー | W14: =IF(Q14="ー","ー",IF(N14="","ー",IF(Q14<N14,"NG","OK"))) -> ー | X14: =IF(W14="ー","ー",ABS(N14)/Q14) -> ー | Y14: =計算!BI5 -> ー | Z14: =計算!BD5 -> ー | AA14: =計算!BF5 -> ー | AB14: =計算!BH5 -> ー | AC14: =計算!CK5 -> ー | AD14: =計算!CF5 -> ー | AE14: =計算!CH5 -> ー | AF14: =計算!CJ5 -> ー
B15: 2 | E15: E | Q15: =計算!AB6 -> ー | R15: =計算!AH6 -> ー | S15: =計算!AI6 -> ー | T15: =計算!AJ6 -> ー | U15: =計算!X6 -> ー | W15: =IF(Q15="ー","ー",IF(N15="","ー",IF(Q15<N15,"NG","OK"))) -> ー | X15: =IF(W15="ー","ー",N15/Q15) -> ー | Y15: =計算!BI6 -> ー | Z15: =計算!BD6 -> ー | AA15: =計算!BF6 -> ー | AB15: =計算!BH6 -> ー | AC15: =計算!CK6 -> ー | AD15: =計算!CF6 -> ー | AE15: =計算!CH6 -> ー | AF15: =計算!CJ6 -> ー
B16: 3 | E16: E | Q16: =計算!AB7 -> ー | R16: =計算!AH7 -> ー | S16: =計算!AI7 -> ー | T16: =計算!AJ7 -> ー | U16: =計算!X7 -> ー | W16: ー | X16: ー | Y16: =計算!BI7 -> ー | Z16: =計算!BD7 -> ー | AA16: =計算!BF7 -> ー | AB16: =計算!BH7 -> ー | AC16: =計算!CK7 -> ー | AD16: =計算!CF7 -> ー | AE16: =計算!CH7 -> ー | AF16: =計算!CJ7 -> ー
B17: 4 | E17: E | Q17: =計算!AB8 -> ー | R17: =計算!AH8 -> ー | S17: =計算!AI8 -> ー | T17: =計算!AJ8 -> ー | U17: =計算!X8 -> ー | W17: ー | X17: ー | Y17: =計算!BI8 -> ー | Z17: =計算!BD8 -> ー | AA17: =計算!BF8 -> ー | AB17: =計算!BH8 -> ー | AC17: =計算!CK8 -> ー | AD17: =計算!CF8 -> ー | AE17: =計算!CH8 -> ー | AF17: =計算!CJ8 -> ー
B18: 5 | E18: E | Q18: =計算!AB9 -> ー | R18: =計算!AH9 -> ー | S18: =計算!AI9 -> ー | T18: =計算!AJ9 -> ー | U18: =計算!X9 -> ー | W18: ー | X18: ー | Y18: =計算!BI9 -> ー | Z18: =計算!BD9 -> ー | AA18: =計算!BF9 -> ー | AB18: =計算!BH9 -> ー | AC18: =計算!CK9 -> ー | AD18: =計算!CF9 -> ー | AE18: =計算!CH9 -> ー | AF18: =計算!CJ9 -> ー
B19: 6 | E19: E | Q19: =計算!AB10 -> ー | R19: =計算!AH10 -> ー | S19: =計算!AI10 -> ー | T19: =計算!AJ10 -> ー | U19: =計算!X10 -> ー | W19: =IF(Q19="ー","ー",IF(N19="","ー",IF(Q19<N19,"NG","OK"))) -> ー | X19: =IF(W19="ー","ー",N19/Q19) -> ー | Y19: =計算!BI10 -> ー | Z19: =計算!BD10 -> ー | AA19: =計算!BF10 -> ー | AB19: =計算!BH10 -> ー | AC19: =計算!CK10 -> ー | AD19: =計算!CF10 -> ー | AE19: =計算!CH10 -> ー | AF19: =計算!CJ10 -> ー
B20: 7 | E20: E | Q20: =計算!AB11 -> ー | R20: =計算!AH11 -> ー | S20: =計算!AI11 -> ー | T20: =計算!AJ11 -> ー | U20: =計算!X11 -> ー | W20: ー | X20: ー | Y20: =計算!BI11 -> ー | Z20: =計算!BD11 -> ー | AA20: =計算!BF11 -> ー | AB20: =計算!BH11 -> ー | AC20: =計算!CK11 -> ー | AD20: =計算!CF11 -> ー | AE20: =計算!CH11 -> ー | AF20: =計算!CJ11 -> ー
B21: 8 | E21: E | Q21: =計算!AB12 -> ー | R21: =計算!AH12 -> ー | S21: =計算!AI12 -> ー | T21: =計算!AJ12 -> ー | U21: =計算!X12 -> ー | W21: ー | X21: ー | Y21: =計算!BI12 -> ー | Z21: =計算!BD12 -> ー | AA21: =計算!BF12 -> ー | AB21: =計算!BH12 -> ー | AC21: =計算!CK12 -> ー | AD21: =計算!CF12 -> ー | AE21: =計算!CH12 -> ー | AF21: =計算!CJ12 -> ー
B22: 9 | E22: E | Q22: =計算!AB13 -> ー | R22: =計算!AH13 -> ー | S22: =計算!AI13 -> ー | T22: =計算!AJ13 -> ー | U22: =計算!X13 -> ー | W22: ー | X22: ー | Y22: =計算!BI13 -> ー | Z22: =計算!BD13 -> ー | AA22: =計算!BF13 -> ー | AB22: =計算!BH13 -> ー | AC22: =計算!CK13 -> ー | AD22: =計算!CF13 -> ー | AE22: =計算!CH13 -> ー | AF22: =計算!CJ13 -> ー
B23: 10 | E23: E | Q23: =計算!AB14 -> ー | R23: =計算!AH14 -> ー | S23: =計算!AI14 -> ー | T23: =計算!AJ14 -> ー | U23: =計算!X14 -> ー | W23: ー | X23: ー | Y23: =計算!BI14 -> ー | Z23: =計算!BD14 -> ー | AA23: =計算!BF14 -> ー | AB23: =計算!BH14 -> ー | AC23: =計算!CK14 -> ー | AD23: =計算!CF14 -> ー | AE23: =計算!CH14 -> ー | AF23: =計算!CJ14 -> ー
B24: 11 | E24: E | Q24: =計算!AB15 -> ー | R24: =計算!AH15 -> ー | S24: =計算!AI15 -> ー | T24: =計算!AJ15 -> ー | U24: =計算!X15 -> ー | W24: ー | X24: ー | Y24: =計算!BI15 -> ー | Z24: =計算!BD15 -> ー | AA24: =計算!BF15 -> ー | AB24: =計算!BH15 -> ー | AC24: =計算!CK15 -> ー | AD24: =計算!CF15 -> ー | AE24: =計算!CH15 -> ー | AF24: =計算!CJ15 -> ー
B25: 12 | E25: E | Q25: =計算!AB16 -> ー | R25: =計算!AH16 -> ー | S25: =計算!AI16 -> ー | T25: =計算!AJ16 -> ー | U25: =計算!X16 -> ー | W25: ー | X25: ー | Y25: =計算!BI16 -> ー | Z25: =計算!BD16 -> ー | AA25: =計算!BF16 -> ー | AB25: =計算!BH16 -> ー | AC25: =計算!CK16 -> ー | AD25: =計算!CF16 -> ー | AE25: =計算!CH16 -> ー | AF25: =計算!CJ16 -> ー
B26: 13 | E26: E | Q26: =計算!AB17 -> ー | R26: =計算!AH17 -> ー | S26: =計算!AI17 -> ー | T26: =計算!AJ17 -> ー | U26: =計算!X17 -> ー | W26: ー | X26: ー | Y26: =計算!BI17 -> ー | Z26: =計算!BD17 -> ー | AA26: =計算!BF17 -> ー | AB26: =計算!BH17 -> ー | AC26: =計算!CK17 -> ー | AD26: =計算!CF17 -> ー | AE26: =計算!CH17 -> ー | AF26: =計算!CJ17 -> ー
B27: 14 | E27: E | Q27: =計算!AB18 -> ー | R27: =計算!AH18 -> ー | S27: =計算!AI18 -> ー | T27: =計算!AJ18 -> ー | U27: =計算!X18 -> ー | W27: ー | X27: ー | Y27: =計算!BI18 -> ー | Z27: =計算!BD18 -> ー | AA27: =計算!BF18 -> ー | AB27: =計算!BH18 -> ー | AC27: =計算!CK18 -> ー | AD27: =計算!CF18 -> ー | AE27: =計算!CH18 -> ー | AF27: =計算!CJ18 -> ー
B28: 15 | E28: E | Q28: =計算!AB19 -> ー | R28: =計算!AH19 -> ー | S28: =計算!AI19 -> ー | T28: =計算!AJ19 -> ー | U28: =計算!X19 -> ー | W28: ー | X28: ー | Y28: =計算!BI19 -> ー | Z28: =計算!BD19 -> ー | AA28: =計算!BF19 -> ー | AB28: =計算!BH19 -> ー | AC28: =計算!CK19 -> ー | AD28: =計算!CF19 -> ー | AE28: =計算!CH19 -> ー | AF28: =計算!CJ19 -> ー
B29: 16 | E29: E | Q29: =計算!AB20 -> ー | R29: =計算!AH20 -> ー | S29: =計算!AI20 -> ー | T29: =計算!AJ20 -> ー | U29: =計算!X20 -> ー | W29: ー | X29: ー | Y29: =計算!BI20 -> ー | Z29: =計算!BD20 -> ー | AA29: =計算!BF20 -> ー | AB29: =計算!BH20 -> ー | AC29: =計算!CK20 -> ー | AD29: =計算!CF20 -> ー | AE29: =計算!CH20 -> ー | AF29: =計算!CJ20 -> ー
B30: 17 | E30: E | Q30: =計算!AB21 -> ー | R30: =計算!AH21 -> ー | S30: =計算!AI21 -> ー | T30: =計算!AJ21 -> ー | U30: =計算!X21 -> ー | W30: ー | X30: ー | Y30: =計算!BI21 -> ー | Z30: =計算!BD21 -> ー | AA30: =計算!BF21 -> ー | AB30: =計算!BH21 -> ー | AC30: =計算!CK21 -> ー | AD30: =計算!CF21 -> ー | AE30: =計算!CH21 -> ー | AF30: =計算!CJ21 -> ー
B31: 18 | E31: E | Q31: =計算!AB22 -> ー | R31: =計算!AH22 -> ー | S31: =計算!AI22 -> ー | T31: =計算!AJ22 -> ー | U31: =計算!X22 -> ー | W31: ー | X31: ー | Y31: =計算!BI22 -> ー | Z31: =計算!BD22 -> ー | AA31: =計算!BF22 -> ー | AB31: =計算!BH22 -> ー | AC31: =計算!CK22 -> ー | AD31: =計算!CF22 -> ー | AE31: =計算!CH22 -> ー | AF31: =計算!CJ22 -> ー
B32: 19 | E32: E | Q32: =計算!AB23 -> ー | R32: =計算!AH23 -> ー | S32: =計算!AI23 -> ー | T32: =計算!AJ23 -> ー | U32: =計算!X23 -> ー | W32: ー | X32: ー | Y32: =計算!BI23 -> ー | Z32: =計算!BD23 -> ー | AA32: =計算!BF23 -> ー | AB32: =計算!BH23 -> ー | AC32: =計算!CK23 -> ー | AD32: =計算!CF23 -> ー | AE32: =計算!CH23 -> ー | AF32: =計算!CJ23 -> ー
B33: 20 | E33: E | Q33: =計算!AB24 -> ー | R33: =計算!AH24 -> ー | S33: =計算!AI24 -> ー | T33: =計算!AJ24 -> ー | U33: =計算!X24 -> ー | W33: ー | X33: ー | Y33: =計算!BI24 -> ー | Z33: =計算!BD24 -> ー | AA33: =計算!BF24 -> ー | AB33: =計算!BH24 -> ー | AC33: =計算!CK24 -> ー | AD33: =計算!CF24 -> ー | AE33: =計算!CH24 -> ー | AF33: =計算!CJ24 -> ー
B34: 21 | E34: E | Q34: =計算!AB25 -> ー | R34: =計算!AH25 -> ー | S34: =計算!AI25 -> ー | T34: =計算!AJ25 -> ー | U34: =計算!X25 -> ー | W34: ー | X34: ー | Y34: =計算!BI25 -> ー | Z34: =計算!BD25 -> ー | AA34: =計算!BF25 -> ー | AB34: =計算!BH25 -> ー | AC34: =計算!CK25 -> ー | AD34: =計算!CF25 -> ー | AE34: =計算!CH25 -> ー | AF34: =計算!CJ25 -> ー
B35: 22 | E35: E | Q35: =計算!AB26 -> ー | R35: =計算!AH26 -> ー | S35: =計算!AI26 -> ー | T35: =計算!AJ26 -> ー | U35: =計算!X26 -> ー | W35: ー | X35: ー | Y35: =計算!BI26 -> ー | Z35: =計算!BD26 -> ー | AA35: =計算!BF26 -> ー | AB35: =計算!BH26 -> ー | AC35: =計算!CK26 -> ー | AD35: =計算!CF26 -> ー | AE35: =計算!CH26 -> ー | AF35: =計算!CJ26 -> ー
B36: 23 | E36: E | Q36: =計算!AB27 -> ー | R36: =計算!AH27 -> ー | S36: =計算!AI27 -> ー | T36: =計算!AJ27 -> ー | U36: =計算!X27 -> ー | W36: ー | X36: ー | Y36: =計算!BI27 -> ー | Z36: =計算!BD27 -> ー | AA36: =計算!BF27 -> ー | AB36: =計算!BH27 -> ー | AC36: =計算!CK27 -> ー | AD36: =計算!CF27 -> ー | AE36: =計算!CH27 -> ー | AF36: =計算!CJ27 -> ー
B37: 24 | E37: E | Q37: =計算!AB28 -> ー | R37: =計算!AH28 -> ー | S37: =計算!AI28 -> ー | T37: =計算!AJ28 -> ー | U37: =計算!X28 -> ー | W37: ー | X37: ー | Y37: =計算!BI28 -> ー | Z37: =計算!BD28 -> ー | AA37: =計算!BF28 -> ー | AB37: =計算!BH28 -> ー | AC37: =計算!CK28 -> ー | AD37: =計算!CF28 -> ー | AE37: =計算!CH28 -> ー | AF37: =計算!CJ28 -> ー
B38: 25 | E38: E | Q38: =計算!AB29 -> ー | R38: =計算!AH29 -> ー | S38: =計算!AI29 -> ー | T38: =計算!AJ29 -> ー | U38: =計算!X29 -> ー | W38: ー | X38: ー | Y38: =計算!BI29 -> ー | Z38: =計算!BD29 -> ー | AA38: =計算!BF29 -> ー | AB38: =計算!BH29 -> ー | AC38: =計算!CK29 -> ー | AD38: =計算!CF29 -> ー | AE38: =計算!CH29 -> ー | AF38: =計算!CJ29 -> ー
B39: 26 | E39: E | Q39: =計算!AB30 -> ー | R39: =計算!AH30 -> ー | S39: =計算!AI30 -> ー | T39: =計算!AJ30 -> ー | U39: =計算!X30 -> ー | W39: ー | X39: ー | Y39: =計算!BI30 -> ー | Z39: =計算!BD30 -> ー | AA39: =計算!BF30 -> ー | AB39: =計算!BH30 -> ー | AC39: =計算!CK30 -> ー | AD39: =計算!CF30 -> ー | AE39: =計算!CH30 -> ー | AF39: =計算!CJ30 -> ー
B40: 27 | E40: E | Q40: =計算!AB31 -> ー | R40: =計算!AH31 -> ー | S40: =計算!AI31 -> ー | T40: =計算!AJ31 -> ー | U40: =計算!X31 -> ー | W40: ー | X40: ー | Y40: =計算!BI31 -> ー | Z40: =計算!BD31 -> ー | AA40: =計算!BF31 -> ー | AB40: =計算!BH31 -> ー | AC40: =計算!CK31 -> ー | AD40: =計算!CF31 -> ー | AE40: =計算!CH31 -> ー | AF40: =計算!CJ31 -> ー
B41: 28 | E41: E | Q41: =計算!AB32 -> ー | R41: =計算!AH32 -> ー | S41: =計算!AI32 -> ー | T41: =計算!AJ32 -> ー | U41: =計算!X32 -> ー | W41: ー | X41: ー | Y41: =計算!BI32 -> ー | Z41: =計算!BD32 -> ー | AA41: =計算!BF32 -> ー | AB41: =計算!BH32 -> ー | AC41: =計算!CK32 -> ー | AD41: =計算!CF32 -> ー | AE41: =計算!CH32 -> ー | AF41: =計算!CJ32 -> ー
B42: 29 | E42: E | Q42: =計算!AB33 -> ー | R42: =計算!AH33 -> ー | S42: =計算!AI33 -> ー | T42: =計算!AJ33 -> ー | U42: =計算!X33 -> ー | W42: ー | X42: ー | Y42: =計算!BI33 -> ー | Z42: =計算!BD33 -> ー | AA42: =計算!BF33 -> ー | AB42: =計算!BH33 -> ー | AC42: =計算!CK33 -> ー | AD42: =計算!CF33 -> ー | AE42: =計算!CH33 -> ー | AF42: =計算!CJ33 -> ー
B43: 30 | E43: E | Q43: =計算!AB34 -> ー | R43: =計算!AH34 -> ー | S43: =計算!AI34 -> ー | T43: =計算!AJ34 -> ー | U43: =計算!X34 -> ー | W43: ー | X43: ー | Y43: =計算!BI34 -> ー | Z43: =計算!BD34 -> ー | AA43: =計算!BF34 -> ー | AB43: =計算!BH34 -> ー | AC43: =計算!CK34 -> ー | AD43: =計算!CF34 -> ー | AE43: =計算!CH34 -> ー | AF43: =計算!CJ34 -> ー
B44: 31 | E44: E | Q44: =計算!AB35 -> ー | R44: =計算!AH35 -> ー | S44: =計算!AI35 -> ー | T44: =計算!AJ35 -> ー | U44: =計算!X35 -> ー | W44: ー | X44: ー | Y44: =計算!BI35 -> ー | Z44: =計算!BD35 -> ー | AA44: =計算!BF35 -> ー | AB44: =計算!BH35 -> ー | AC44: =計算!CK35 -> ー | AD44: =計算!CF35 -> ー | AE44: =計算!CH35 -> ー | AF44: =計算!CJ35 -> ー
B45: 32 | E45: E | Q45: =計算!AB36 -> ー | R45: =計算!AH36 -> ー | S45: =計算!AI36 -> ー | T45: =計算!AJ36 -> ー | U45: =計算!X36 -> ー | W45: ー | X45: ー | Y45: =計算!BI36 -> ー | Z45: =計算!BD36 -> ー | AA45: =計算!BF36 -> ー | AB45: =計算!BH36 -> ー | AC45: =計算!CK36 -> ー | AD45: =計算!CF36 -> ー | AE45: =計算!CH36 -> ー | AF45: =計算!CJ36 -> ー
B46: 33 | E46: E | Q46: =計算!AB37 -> ー | R46: =計算!AH37 -> ー | S46: =計算!AI37 -> ー | T46: =計算!AJ37 -> ー | U46: =計算!X37 -> ー | W46: ー | X46: ー | Y46: =計算!BI37 -> ー | Z46: =計算!BD37 -> ー | AA46: =計算!BF37 -> ー | AB46: =計算!BH37 -> ー | AC46: =計算!CK37 -> ー | AD46: =計算!CF37 -> ー | AE46: =計算!CH37 -> ー | AF46: =計算!CJ37 -> ー
B47: 34 | E47: E | Q47: =計算!AB38 -> ー | R47: =計算!AH38 -> ー | S47: =計算!AI38 -> ー | T47: =計算!AJ38 -> ー | U47: =計算!X38 -> ー | W47: ー | X47: ー | Y47: =計算!BI38 -> ー | Z47: =計算!BD38 -> ー | AA47: =計算!BF38 -> ー | AB47: =計算!BH38 -> ー | AC47: =計算!CK38 -> ー | AD47: =計算!CF38 -> ー | AE47: =計算!CH38 -> ー | AF47: =計算!CJ38 -> ー
B48: 35 | E48: E | Q48: =計算!AB39 -> ー | R48: =計算!AH39 -> ー | S48: =計算!AI39 -> ー | T48: =計算!AJ39 -> ー | U48: =計算!X39 -> ー | W48: ー | X48: ー | Y48: =計算!BI39 -> ー | Z48: =計算!BD39 -> ー | AA48: =計算!BF39 -> ー | AB48: =計算!BH39 -> ー | AC48: =計算!CK39 -> ー | AD48: =計算!CF39 -> ー | AE48: =計算!CH39 -> ー | AF48: =計算!CJ39 -> ー
B49: 36 | E49: E | Q49: =計算!AB40 -> ー | R49: =計算!AH40 -> ー | S49: =計算!AI40 -> ー | T49: =計算!AJ40 -> ー | U49: =計算!X40 -> ー | W49: ー | X49: ー | Y49: =計算!BI40 -> ー | Z49: =計算!BD40 -> ー | AA49: =計算!BF40 -> ー | AB49: =計算!BH40 -> ー | AC49: =計算!CK40 -> ー | AD49: =計算!CF40 -> ー | AE49: =計算!CH40 -> ー | AF49: =計算!CJ40 -> ー
B50: 37 | E50: E | Q50: =計算!AB41 -> ー | R50: =計算!AH41 -> ー | S50: =計算!AI41 -> ー | T50: =計算!AJ41 -> ー | U50: =計算!X41 -> ー | W50: ー | X50: ー | Y50: =計算!BI41 -> ー | Z50: =計算!BD41 -> ー | AA50: =計算!BF41 -> ー | AB50: =計算!BH41 -> ー | AC50: =計算!CK41 -> ー | AD50: =計算!CF41 -> ー | AE50: =計算!CH41 -> ー | AF50: =計算!CJ41 -> ー
B51: 38 | E51: E | Q51: =計算!AB42 -> ー | R51: =計算!AH42 -> ー | S51: =計算!AI42 -> ー | T51: =計算!AJ42 -> ー | U51: =計算!X42 -> ー | W51: ー | X51: ー | Y51: =計算!BI42 -> ー | Z51: =計算!BD42 -> ー | AA51: =計算!BF42 -> ー | AB51: =計算!BH42 -> ー | AC51: =計算!CK42 -> ー | AD51: =計算!CF42 -> ー | AE51: =計算!CH42 -> ー | AF51: =計算!CJ42 -> ー
B52: 39 | E52: E | Q52: =計算!AB43 -> ー | R52: =計算!AH43 -> ー | S52: =計算!AI43 -> ー | T52: =計算!AJ43 -> ー | U52: =計算!X43 -> ー | W52: ー | X52: ー | Y52: =計算!BI43 -> ー | Z52: =計算!BD43 -> ー | AA52: =計算!BF43 -> ー | AB52: =計算!BH43 -> ー | AC52: =計算!CK43 -> ー | AD52: =計算!CF43 -> ー | AE52: =計算!CH43 -> ー | AF52: =計算!CJ43 -> ー
B53: 40 | E53: E | Q53: =計算!AB44 -> ー | R53: =計算!AH44 -> ー | S53: =計算!AI44 -> ー | T53: =計算!AJ44 -> ー | U53: =計算!X44 -> ー | W53: ー | X53: ー | Y53: =計算!BI44 -> ー | Z53: =計算!BD44 -> ー | AA53: =計算!BF44 -> ー | AB53: =計算!BH44 -> ー | AC53: =計算!CK44 -> ー | AD53: =計算!CF44 -> ー | AE53: =計算!CH44 -> ー | AF53: =計算!CJ44 -> ー
B54: 41 | E54: E | Q54: =計算!AB45 -> ー | R54: =計算!AH45 -> ー | S54: =計算!AI45 -> ー | T54: =計算!AJ45 -> ー | U54: =計算!X45 -> ー | W54: ー | X54: ー | Y54: =計算!BI45 -> ー | Z54: =計算!BD45 -> ー | AA54: =計算!BF45 -> ー | AB54: =計算!BH45 -> ー | AC54: =計算!CK45 -> ー | AD54: =計算!CF45 -> ー | AE54: =計算!CH45 -> ー | AF54: =計算!CJ45 -> ー
B55: 42 | E55: E | Q55: =計算!AB46 -> ー | R55: =計算!AH46 -> ー | S55: =計算!AI46 -> ー | T55: =計算!AJ46 -> ー | U55: =計算!X46 -> ー | W55: ー | X55: ー | Y55: =計算!BI46 -> ー | Z55: =計算!BD46 -> ー | AA55: =計算!BF46 -> ー | AB55: =計算!BH46 -> ー | AC55: =計算!CK46 -> ー | AD55: =計算!CF46 -> ー | AE55: =計算!CH46 -> ー | AF55: =計算!CJ46 -> ー
B56: 43 | E56: E | Q56: =計算!AB47 -> ー | R56: =計算!AH47 -> ー | S56: =計算!AI47 -> ー | T56: =計算!AJ47 -> ー | U56: =計算!X47 -> ー | W56: ー | X56: ー | Y56: =計算!BI47 -> ー | Z56: =計算!BD47 -> ー | AA56: =計算!BF47 -> ー | AB56: =計算!BH47 -> ー | AC56: =計算!CK47 -> ー | AD56: =計算!CF47 -> ー | AE56: =計算!CH47 -> ー | AF56: =計算!CJ47 -> ー
B57: 44 | E57: E | Q57: =計算!AB48 -> ー | R57: =計算!AH48 -> ー | S57: =計算!AI48 -> ー | T57: =計算!AJ48 -> ー | U57: =計算!X48 -> ー | W57: ー | X57: ー | Y57: =計算!BI48 -> ー | Z57: =計算!BD48 -> ー | AA57: =計算!BF48 -> ー | AB57: =計算!BH48 -> ー | AC57: =計算!CK48 -> ー | AD57: =計算!CF48 -> ー | AE57: =計算!CH48 -> ー | AF57: =計算!CJ48 -> ー
B58: 45 | E58: E | Q58: =計算!AB49 -> ー | R58: =計算!AH49 -> ー | S58: =計算!AI49 -> ー | T58: =計算!AJ49 -> ー | U58: =計算!X49 -> ー | W58: ー | X58: ー | Y58: =計算!BI49 -> ー | Z58: =計算!BD49 -> ー | AA58: =計算!BF49 -> ー | AB58: =計算!BH49 -> ー | AC58: =計算!CK49 -> ー | AD58: =計算!CF49 -> ー | AE58: =計算!CH49 -> ー | AF58: =計算!CJ49 -> ー
B59: 46 | E59: E | Q59: =計算!AB50 -> ー | R59: =計算!AH50 -> ー | S59: =計算!AI50 -> ー | T59: =計算!AJ50 -> ー | U59: =計算!X50 -> ー | W59: ー | X59: ー | Y59: =計算!BI50 -> ー | Z59: =計算!BD50 -> ー | AA59: =計算!BF50 -> ー | AB59: =計算!BH50 -> ー | AC59: =計算!CK50 -> ー | AD59: =計算!CF50 -> ー | AE59: =計算!CH50 -> ー | AF59: =計算!CJ50 -> ー
B60: 47 | E60: E | Q60: =計算!AB51 -> ー | R60: =計算!AH51 -> ー | S60: =計算!AI51 -> ー | T60: =計算!AJ51 -> ー | U60: =計算!X51 -> ー | W60: ー | X60: ー | Y60: =計算!BI51 -> ー | Z60: =計算!BD51 -> ー | AA60: =計算!BF51 -> ー | AB60: =計算!BH51 -> ー | AC60: =計算!CK51 -> ー | AD60: =計算!CF51 -> ー | AE60: =計算!CH51 -> ー | AF60: =計算!CJ51 -> ー
B61: 48 | E61: E | Q61: =計算!AB52 -> ー | R61: =計算!AH52 -> ー | S61: =計算!AI52 -> ー | T61: =計算!AJ52 -> ー | U61: =計算!X52 -> ー | W61: ー | X61: ー | Y61: =計算!BI52 -> ー | Z61: =計算!BD52 -> ー | AA61: =計算!BF52 -> ー | AB61: =計算!BH52 -> ー | AC61: =計算!CK52 -> ー | AD61: =計算!CF52 -> ー | AE61: =計算!CH52 -> ー | AF61: =計算!CJ52 -> ー
B62: 49 | E62: E | Q62: =計算!AB53 -> ー | R62: =計算!AH53 -> ー | S62: =計算!AI53 -> ー | T62: =計算!AJ53 -> ー | U62: =計算!X53 -> ー | W62: ー | X62: ー | Y62: =計算!BI53 -> ー | Z62: =計算!BD53 -> ー | AA62: =計算!BF53 -> ー | AB62: =計算!BH53 -> ー | AC62: =計算!CK53 -> ー | AD62: =計算!CF53 -> ー | AE62: =計算!CH53 -> ー | AF62: =計算!CJ53 -> ー
B63: 50 | E63: E | Q63: =計算!AB54 -> ー | R63: =計算!AH54 -> ー | S63: =計算!AI54 -> ー | T63: =計算!AJ54 -> ー | U63: =計算!X54 -> ー | W63: ー | X63: ー | Y63: =計算!BI54 -> ー | Z63: =計算!BD54 -> ー | AA63: =計算!BF54 -> ー | AB63: =計算!BH54 -> ー | AC63: =計算!CK54 -> ー | AD63: =計算!CF54 -> ー | AE63: =計算!CH54 -> ー | AF63: =計算!CJ54 -> ー
B64: 【注意事項】 ・本設計ツールで出力される結果は、計算条件並びに当社の知見に基づき検討結果の有効性を示したものであり、実施にあたっては、工事・設計関係者の確認・承認を要する内容もございます。 なお、検討条件と異なる諸事情、ならびに諸条件によって結果が異なる場合がございますことを、あらかじめご了承ください。 ・相当壁倍率は短期許容せん断耐力（Pa）およびアンカーボルト間の距離から換算した数値です。下記式から算出しております。 相当壁倍率＝Pa/(アンカーボルト間距離×1.96） ※本工法は壁倍率認定を取得しておりません。許容応力度計算等の構造設計が必要ですのでご注意ください。
W66: ・本ツールには、VBAマクロを使用しております。ツール使用時は、マクロを有効にしてご使用ください。
W67: ・本ツールの内容は、予告なく変更することがありますので、あらかじめご了承ください。
W68: ・本ツールは Windows 10 / Microsoft Excel for Office 365 MSO で作成および動作確認を行っております。
W69: 上記以外の環境につきましては、想定していない動作をする可能性がありますのであらかじめご了承ください。
W70: ・Windows / ExcelはMicrosoft社の商標です。

Sheet 計算 (hidden)
B1: 条件入力 | H1: 耐力算定 | AT1: 部材の検定 | BK1: 基礎の検定 | CM1: バージョン | CN1: Ver.21-10.1.0.2.3 | CP1: 更新日 | CQ1: 2021-10-05
B2: 強度区分 | C2: 柱幅 | D2: 厚さ | E2: 載荷高さ | F2: 使用環境 | H2: K | I2: K1 | J2: K2 | L2: β2 | M2: KBS | N2: Kt | O2: Kc | P2: L | R2: Kw | S2: E | T2: I | U2: 幅(h) | V2: 奥行(b) | W2: hw | X2: アンカー距離 | Y2: M0 | Z2: Ma | AA2: P0 | AB2: Pa | AC2: α | AD2: α1 | AE2: α2 | AF2: α3 | AG2: α4 | AH2: K（柱脚部） | AI2: K0（全体）判断用 | AJ2: 壁倍率 | AL2: Kmin | AN2: E〇 | AO2: ヤング係数 | AQ2: 幅 | AR2: Kmin | AT2: 設計せん断力 | AU2: 設計軸方向力 | AV2: BN | AW2: BM | AX2: BV+ | AY2: BV- | AZ2: Ta | BA2: Ca | BB2: Qa | BC2: 判定+ | BD2: 比 | BE2: 判定- | BF2: 比 | BG2: 設計H | BH2: 比 | BI2: 検定 | BK2: 基礎Fc | BL2: 基礎へりあき | BM2: 基礎幅 | BN2: Pa | BO2: σca | BP2: ld | BQ2: ψ | BR2: qa | BS2: φ2 | BT2: σt | BU2: Aqc | BV2: Aqc' | BW2: S1 | BX2: c | BY2: θ | BZ2: L | CA2: S2 | CB2: Ca | CC2: φ2 | CD2: Ac | CE2: 判定+ | CF2: 比 | CG2: 判定- | CH2: 比 | CI2: 設計H | CJ2: 比 | CK2: 検定
C3: mm | D3: mm | E3: mm | H3: kN・m/rad | I3: kN・m/rad | J3: kN・m/rad | M3: kN・m | N3: kN/mm | O3: kN/mm | P3: mm | R3: kN・m | S3: N/mm2 | T3: mm4 | U3: mm | V3: mm | W3: mm | X3: mm | Y3: kN・m | Z3: kN・m | AA3: kN | AB3: kN | AH3: kN・m/rad | AL3: kN・m/rad | AO3: N/mm2 | AQ3: mm | AR3: kN・m/rad | AT3: kN | AU3: kN | AV3: kN | AW3: kN | AX3: kN | AY3: kN | AZ3: kN | BA3: kN | BB3: kN | BK3: N/mm2 | BL3: mm | BM3: mm | BN3: kN | BO3: N/mm2 | BP3: mm | BQ3: mm | BR3: kN | BT3: N/mm2 | BU3: mm2 | BV3: mm2 | BW3: mm2 | BX3: mm | BY3: rad | BZ3: mm | CA3: mm2 | CB3: kN | CD3: mm2
B5: =入力シート!F14 -> 0 | C5: =入力シート!G14 -> 0 | D5: =入力シート!H14 -> 0 | E5: =入力シート!I14 -> 0 | F5: =入力シート!L14 -> 0 | H5: =((I5*J5)/(I5+J5))*0.85 ->  | I5: =M5*L5 ->  | J5: =R5 ->  | L5: =0.0000319*S5+0.665 ->  | M5: =((P5^2)/((1/N5)+(1/O5)))/1000 -> 326.9907026 | N5: =42400/1000 -> 42.4 | O5: =164300/1000 -> 164.3 | P5: =1.05*C5-98.5 -> -98.5 | R5: =(((3*S5*T5)/W5))/1000000 ->  | S5: =VLOOKUP(B5,$AN$5:$AO$21,2,TRUE) ->  | T5: =(V5*(U5^3))/12 -> 0 | U5: =C5 -> 0 | V5: =D5 -> 0 | W5: =E5 -> 0 | X5: =IF(C5=0,"ー",U5-105) -> ー | Y5: =IF(H5>=AL5,H5/120,"―") ->  | Z5: =IF(H5>=AL5,Y5*AC5,"ー") ->  | AA5: =IF(H5>=AL5,Y5/(E5/1000),"ー") ->  | AB5: =IF(C5=0,"ー",IF(AI5>=AL5,ROUNDDOWN(AA5*AC5,2),"ー")) -> ー | AC5: =ROUNDDOWN(AD5*AE5*AF5*AG5,2) ->  | AD5: =IF(F5=3,1,IF(F5=2,0.85,IF(F5=1,0.75,"-"))) -> - | AE5: 1 | AF5: 0.95 | AG5: =IF(S5>=10290,1,0.9) ->  | AH5: =IF(C5=0,"ー",I5*AC5) -> ー | AI5: =IF(C5=0,"ー",H5*AC5) -> ー | AJ5: =IF(C5=0,"ー",IF(H5>=AL5,ROUNDDOWN(AB5*(1000/(C5-105))/1.96,1),"ー")) -> ー | AL5: =VLOOKUP(C5,$AQ$5:$AR$13,2,TRUE) ->  | AN5: 65 | AO5: =AN5*98 -> 6370 | AQ5: 210 | AR5: 194.3070568 | AT5: =ABS(入力シート!N14) -> 0 | AU5: =入力シート!O14 -> 0 | AV5: =AU5/2 -> 0 | AW5: =(AT5*(E5/1000))/(P5/1000) -> 0 | AX5: =AV5+AW5 -> 0 | AY5: =AV5-AW5 -> 0 | AZ5: =IF(F5=3,63.2,IF(F5=2,63.2,55))*-1 -> -55 | BA5: =IF(F5=3,127.8,IF(F5=2,107.6,88.8)) -> 88.8 | BB5: =IF(F5=3,23.1,IF(F5=2,21,17.4)) -> 17.4 | BC5: =IF(AX5<=BA5,"OK","NG") -> OK | BD5: =IF(AND(AT5=0,AU5=0),"ー",IF(0<=AX5,AX5/BA5,AX5/AZ5)) -> ー | BE5: =IF(AY5>=AZ5,"OK","NG") -> OK | BF5: =IF(AND(AT5=0,AU5=0),"ー",IF(0>=AY5,AY5/AZ5,AY5/BA5)) -> ー | BG5: =IF(AT5<=BB5,"OK","NG") -> OK | BH5: =IF(AND(AT5=0,AU5=0),"ー",AT5/BB5) -> ー | BI5: =IF(AND(AT5=0,AU5=0),"ー",IF(AND(BC5="OK",BE5="OK",BG5="OK"),"OK","NG")) -> ー | BK5: =入力シート!J14 -> 0 | BL5: =入力シート!K14 -> 0 | BM5: 180 | BN5: =BO5*BP5*BQ5/1000*-1 -> 0 | BO5: =MIN(BK5/10,1.35+BK5/25)*1.5 -> 0 | BP5: 350 | BQ5: 70 | BR5: =BS5*BT5*BU5/1000 ->  | BS5: =2/3 -> 0.6666666667 | BT5: =0.31*SQRT(BK5) -> 0 | BU5: =IF(2*BL5=BM5,(PI()*BL5^2)/2,(BM5*BZ5)+BV5) ->  | BV5: =BW5-CA5 ->  | BW5: =PI()*BX5^2*((2*BY5)/(2*PI())) ->  | BX5: =BL5 -> 0 | BY5: =ATAN((1/2)*BM5/BZ5) ->  | BZ5: =SQRT(BX5^2-(BM5/2)^2) ->  | CA5: =(BM5*BZ5)/2 ->  | CB5: =CC5*BK5*CD5/1000 -> 0 | CC5: =2/3 -> 0.6666666667 | CD5: 5492 | CE5: =IF(AX5<=CB5,"OK","NG") -> OK | CF5: =IF(AND(AT5=0,AU5=0),"ー",IF(0<=AX5,AX5/CB5,AX5/BN5)) -> ー | CG5: =IF(AY5>=BN5,"OK","NG") -> OK | CH5: =IF(AND(AT5=0,AU5=0),"ー",IF(0>=AY5,AY5/BN5,AY5/CB5)) -> ー | CI5: =IF(AT5<=BR5,"OK","NG") ->  | CJ5: =IF(AND(AT5=0,AU5=0),"ー",AT5/BR5) -> ー | CK5: =IF(AND(AT5=0,AU5=0),"ー",IF(AND(CE5="OK",CG5="OK",CI5="OK"),"OK","NG")) -> ー
B6: =入力シート!F15 -> 0 | C6: =入力シート!G15 -> 0 | D6: =入力シート!H15 -> 0 | E6: =入力シート!I15 -> 0 | F6: =入力シート!L15 -> 0 | H6: =((I6*J6)/(I6+J6))*0.85 ->  | I6: =M6*L6 ->  | J6: =R6 ->  | L6: =0.0000319*S6+0.665 ->  | M6: =((P6^2)/((1/N6)+(1/O6)))/1000 -> 326.9907026 | N6: =42400/1000 -> 42.4 | O6: =164300/1000 -> 164.3 | P6: =1.05*C6-98.5 -> -98.5 | R6: =(((3*S6*T6)/W6))/1000000 ->  | S6: =VLOOKUP(B6,$AN$5:$AO$21,2,TRUE) ->  | T6: =(V6*(U6^3))/12 -> 0 | U6: =C6 -> 0 | V6: =D6 -> 0 | W6: =E6 -> 0 | X6: =IF(C6=0,"ー",U6-105) -> ー | Y6: =IF(H6>=AL6,H6/120,"―") ->  | Z6: =IF(H6>=AL6,Y6*AC6,"ー") ->  | AA6: =IF(H6>=AL6,Y6/(E6/1000),"ー") ->  | AB6: =IF(C6=0,"ー",IF(AI6>=AL6,ROUNDDOWN(AA6*AC6,2),"ー")) -> ー | AC6: =ROUNDDOWN(AD6*AE6*AF6*AG6,2) ->  | AD6: =IF(F6=3,1,IF(F6=2,0.85,IF(F6=1,0.75,"-"))) -> - | AE6: 1 | AF6: 0.95 | AG6: =IF(S6>=10290,1,0.9) ->  | AH6: =IF(C6=0,"ー",I6*AC6) -> ー | AI6: =IF(C6=0,"ー",H6*AC6) -> ー | AJ6: =IF(C6=0,"ー",IF(H6>=AL6,ROUNDDOWN(AB6*(1000/(C6-105))/1.96,1),"ー")) -> ー | AL6: =VLOOKUP(C6,$AQ$5:$AR$13,2,TRUE) ->  | AN6: 70 | AO6: =AN6*98 -> 6860 | AQ6: 240 | AR6: 270.9605589 | AT6: =ABS(入力シート!N15) -> 0 | AU6: =入力シート!O15 -> 0 | AV6: =AU6/2 -> 0 | AW6: 0 | AX6: =AV6+AW6 -> 0 | AY6: =AV6-AW6 -> 0 | AZ6: -55 | BA6: 88.8 | BB6: 17.4 | BC6: =IF(AX6<=BA6,"OK","NG") -> OK | BD6: =IF(AND(AT6=0,AU6=0),"ー",IF(0<=AX6,AX6/BA6,AX6/AZ6)) -> ー | BE6: =IF(AY6>=AZ6,"OK","NG") -> OK | BF6: =IF(AND(AT6=0,AU6=0),"ー",IF(0>=AY6,AY6/AZ6,AY6/BA6)) -> ー | BG6: =IF(AT6<=BB6,"OK","NG") -> OK | BH6: =IF(AND(AT6=0,AU6=0),"ー",AT6/BB6) -> ー | BI6: ー | BK6: =入力シート!J15 -> 0 | BL6: =入力シート!K15 -> 0 | BM6: 180 | BN6: =BO6*BP6*BQ6/1000*-1 -> 0 | BO6: =MIN(BK6/10,1.35+BK6/25)*1.5 -> 0 | BP6: 350 | BQ6: 70 | BR6: =BS6*BT6*BU6/1000 ->  | BS6: =2/3 -> 0.6666666667 | BT6: =0.31*SQRT(BK6) -> 0 | BU6: =IF(2*BL6=BM6,(PI()*BL6^2)/2,(BM6*BZ6)+BV6) ->  | BV6: =BW6-CA6 ->  | BW6: =PI()*BX6^2*((2*BY6)/(2*PI())) ->  | BX6: =BL6 -> 0 | BY6: =ATAN((1/2)*BM6/BZ6) ->  | BZ6: =SQRT(BX6^2-(BM6/2)^2) ->  | CA6: =(BM6*BZ6)/2 ->  | CB6: 0 | CC6: =2/3 -> 0.6666666667 | CD6: 5492 | CE6: =IF(AX6<=CB6,"OK","NG") -> OK | CF6: =IF(AND(AT6=0,AU6=0),"ー",IF(0<=AX6,AX6/CB6,AX6/BN6)) -> ー | CG6: =IF(AY6>=BN6,"OK","NG") -> OK | CH6: =IF(AND(AT6=0,AU6=0),"ー",IF(0>=AY6,AY6/BN6,AY6/CB6)) -> ー | CI6: =IF(AT6<=BR6,"OK","NG") ->  | CJ6: =IF(AND(AT6=0,AU6=0),"ー",AT6/BR6) -> ー | CK6: =IF(AND(AT6=0,AU6=0),"ー",IF(AND(CE6="OK",CG6="OK",CI6="OK"),"OK","NG")) -> ー
B7: =入力シート!F16 -> 0 | C7: =入力シート!G16 -> 0 | D7: =入力シート!H16 -> 0 | E7: =入力シート!I16 -> 0 | F7: =入力シート!L16 -> 0 | M7: 326.9907026 | N7: 42.4 | O7: 164.3 | P7: -98.5 | T7: 0 | U7: 0 | V7: 0 | W7: 0 | X7: ー | AB7: ー | AD7: - | AE7: 1 | AF7: 0.95 | AH7: ー | AI7: ー | AJ7: ー | AN7: 75 | AO7: 7350 | AQ7: 270 | AR7: 355.9790926 | AT7: =ABS(入力シート!N16) -> 0 | AU7: =入力シート!O16 -> 0 | AV7: 0 | AW7: 0 | AX7: 0 | AY7: =AV7-AW7 -> 0 | AZ7: -55 | BA7: 88.8 | BB7: 17.4 | BC7: OK | BD7: =IF(AND(AT7=0,AU7=0),"ー",IF(0<=AX7,AX7/BA7,AX7/AZ7)) -> ー | BE7: OK | BF7: ー | BG7: =IF(AT7<=BB7,"OK","NG") -> OK | BH7: ー | BI7: ー | BK7: =入力シート!J16 -> 0 | BL7: =入力シート!K16 -> 0 | BM7: 180 | BN7: 0 | BO7: 0 | BP7: 350 | BQ7: 70 | BS7: 0.6666666667 | BT7: 0 | BX7: 0 | CB7: 0 | CC7: 0.6666666667 | CD7: 5492 | CE7: =IF(AX7<=CB7,"OK","NG") -> OK | CF7: ー | CG7: OK | CH7: ー | CJ7: ー | CK7: ー
B8: =入力シート!F17 -> 0 | C8: =入力シート!G17 -> 0 | D8: =入力シート!H17 -> 0 | E8: =入力シート!I17 -> 0 | F8: =入力シート!L17 -> 0 | M8: 326.9907026 | N8: 42.4 | O8: 164.3 | P8: -98.5 | T8: 0 | U8: 0 | V8: 0 | W8: 0 | X8: ー | AB8: ー | AD8: - | AE8: 1 | AF8: 0.95 | AH8: ー | AI8: ー | AJ8: ー | AN8: 75 | AO8: 7350 | AQ8: 300 | AR8: 449.362658 | AT8: =ABS(入力シート!N17) -> 0 | AU8: =入力シート!O17 -> 0 | AV8: 0 | AW8: 0 | AX8: 0 | AY8: 0 | AZ8: -55 | BA8: 88.8 | BB8: 17.4 | BC8: OK | BD8: ー | BE8: OK | BF8: ー | BG8: OK | BH8: ー | BI8: ー | BK8: =入力シート!J17 -> 0 | BL8: =入力シート!K17 -> 0 | BM8: 180 | BN8: 0 | BO8: 0 | BP8: 350 | BQ8: 70 | BS8: 0.6666666667 | BT8: 0 | BX8: 0 | CB8: 0 | CC8: 0.6666666667 | CD8: 5492 | CE8: OK | CF8: ー | CG8: OK | CH8: ー | CJ8: ー | CK8: ー
B9: =入力シート!F18 -> 0 | C9: =入力シート!G18 -> 0 | D9: =入力シート!H18 -> 0 | E9: =入力シート!I18 -> 0 | F9: =入力シート!L18 -> 0 | M9: 326.9907026 | N9: 42.4 | O9: 164.3 | P9: -98.5 | T9: 0 | U9: 0 | V9: 0 | W9: 0 | X9: ー | AB9: ー | AD9: - | AE9: 1 | AF9: 0.95 | AH9: ー | AI9: ー | AJ9: ー | AN9: 80 | AO9: 7840 | AQ9: 330 | AR9: 551.111255 | AT9: =ABS(入力シート!N18) -> 0 | AU9: =入力シート!O18 -> 0 | AV9: 0 | AW9: 0 | AX9: 0 | AY9: 0 | AZ9: -55 | BA9: 88.8 | BB9: 17.4 | BC9: OK | BD9: ー | BE9: OK | BF9: ー | BG9: OK | BH9: ー | BI9: ー | BK9: =入力シート!J18 -> 0 | BL9: =入力シート!K18 -> 0 | BM9: 180 | BN9: 0 | BO9: 0 | BP9: 350 | BQ9: 70 | BS9: 0.6666666667 | BT9: 0 | BX9: 0 | CB9: 0 | CC9: 0.6666666667 | CD9: 5492 | CE9: =IF(AX9<=CB9,"OK","NG") -> OK | CF9: ー | CG9: OK | CH9: ー | CJ9: ー | CK9: ー
B10: =入力シート!F19 -> 0 | C10: =入力シート!G19 -> 0 | D10: =入力シート!H19 -> 0 | E10: =入力シート!I19 -> 0 | F10: =入力シート!L19 -> 0 | M10: 326.9907026 | N10: 42.4 | O10: 164.3 | P10: -98.5 | T10: 0 | U10: 0 | V10: 0 | W10: 0 | X10: ー | AB10: ー | AD10: - | AE10: 1 | AF10: 0.95 | AH10: ー | AI10: ー | AJ10: ー | AN10: 85 | AO10: 8330 | AQ10: 360 | AR10: 661.2248837 | AT10: =ABS(入力シート!N19) -> 0 | AU10: =入力シート!O19 -> 0 | AV10: 0 | AW10: 0 | AX10: 0 | AY10: 0 | AZ10: -55 | BA10: 88.8 | BB10: 17.4 | BC10: OK | BD10: ー | BE10: OK | BF10: ー | BG10: OK | BH10: ー | BI10: ー | BK10: =入力シート!J19 -> 0 | BL10: =入力シート!K19 -> 0 | BM10: 180 | BN10: 0 | BO10: 0 | BP10: 350 | BQ10: 70 | BS10: 0.6666666667 | BT10: 0 | BX10: 0 | CB10: 0 | CC10: 0.6666666667 | CD10: 5492 | CE10: OK | CF10: ー | CG10: OK | CH10: ー | CJ10: ー | CK10: ー
B11: =入力シート!F20 -> 0 | C11: =入力シート!G20 -> 0 | D11: =入力シート!H20 -> 0 | E11: =入力シート!I20 -> 0 | F11: =入力シート!L20 -> 0 | M11: 326.9907026 | N11: 42.4 | O11: 164.3 | P11: -98.5 | T11: 0 | U11: 0 | V11: 0 | W11: 0 | X11: ー | AB11: ー | AD11: - | AE11: 1 | AF11: 0.95 | AH11: ー | AI11: ー | AJ11: ー | AN11: 90 | AO11: 8820 | AQ11: 390 | AR11: 779.703544 | AT11: =ABS(入力シート!N20) -> 0 | AU11: =入力シート!O20 -> 0 | AV11: 0 | AW11: 0 | AX11: 0 | AY11: 0 | AZ11: -55 | BA11: 88.8 | BB11: 17.4 | BC11: OK | BD11: ー | BE11: OK | BF11: ー | BG11: OK | BH11: ー | BI11: ー | BK11: =入力シート!J20 -> 0 | BL11: =入力シート!K20 -> 0 | BM11: 180 | BN11: 0 | BO11: 0 | BP11: 350 | BQ11: 70 | BS11: 0.6666666667 | BT11: 0 | BX11: 0 | CB11: 0 | CC11: 0.6666666667 | CD11: 5492 | CE11: OK | CF11: ー | CG11: OK | CH11: ー | CJ11: ー | CK11: ー
B12: =入力シート!F21 -> 0 | C12: =入力シート!G21 -> 0 | D12: =入力シート!H21 -> 0 | E12: =入力シート!I21 -> 0 | F12: =入力シート!L21 -> 0 | M12: 326.9907026 | N12: 42.4 | O12: 164.3 | P12: -98.5 | T12: 0 | U12: 0 | V12: 0 | W12: 0 | X12: ー | AB12: ー | AD12: - | AE12: 1 | AF12: 0.95 | AH12: ー | AI12: ー | AJ12: ー | AN12: 95 | AO12: 9310 | AQ12: 420 | AR12: 906.5472359 | AT12: =ABS(入力シート!N21) -> 0 | AU12: =入力シート!O21 -> 0 | AV12: 0 | AW12: 0 | AX12: 0 | AY12: 0 | AZ12: -55 | BA12: 88.8 | BB12: 17.4 | BC12: OK | BD12: ー | BE12: OK | BF12: ー | BG12: OK | BH12: ー | BI12: ー | BK12: =入力シート!J21 -> 0 | BL12: =入力シート!K21 -> 0 | BM12: 180 | BN12: 0 | BO12: 0 | BP12: 350 | BQ12: 70 | BS12: 0.6666666667 | BT12: 0 | BX12: 0 | CB12: 0 | CC12: 0.6666666667 | CD12: 5492 | CE12: OK | CF12: ー | CG12: OK | CH12: ー | CJ12: ー | CK12: ー
B13: =入力シート!F22 -> 0 | C13: =入力シート!G22 -> 0 | D13: =入力シート!H22 -> 0 | E13: =入力シート!I22 -> 0 | F13: =入力シート!L22 -> 0 | M13: 326.9907026 | N13: 42.4 | O13: 164.3 | P13: -98.5 | T13: 0 | U13: 0 | V13: 0 | W13: 0 | X13: ー | AB13: ー | AC13: =ROUNDDOWN(AD13*AE13*AF13*AG13,2) ->  | AD13: - | AE13: 1 | AF13: 0.95 | AH13: ー | AI13: ー | AJ13: ー | AN13: 100 | AO13: 9800 | AQ13: 450 | AR13: 1041.755959 | AT13: =ABS(入力シート!N22) -> 0 | AU13: =入力シート!O22 -> 0 | AV13: 0 | AW13: 0 | AX13: 0 | AY13: 0 | AZ13: -55 | BA13: 88.8 | BB13: 17.4 | BC13: OK | BD13: ー | BE13: OK | BF13: ー | BG13: OK | BH13: ー | BI13: ー | BK13: =入力シート!J22 -> 0 | BL13: =入力シート!K22 -> 0 | BM13: 180 | BN13: 0 | BO13: 0 | BP13: 350 | BQ13: 70 | BS13: 0.6666666667 | BT13: 0 | BX13: 0 | CB13: 0 | CC13: 0.6666666667 | CD13: 5492 | CE13: OK | CF13: ー | CG13: OK | CH13: ー | CJ13: ー | CK13: ー
B14: =入力シート!F23 -> 0 | C14: =入力シート!G23 -> 0 | D14: =入力シート!H23 -> 0 | E14: =入力シート!I23 -> 0 | F14: =入力シート!L23 -> 0 | M14: 326.9907026 | N14: 42.4 | O14: 164.3 | P14: -98.5 | T14: 0 | U14: 0 | V14: 0 | W14: 0 | X14: ー | AB14: ー | AD14: - | AE14: 1 | AF14: 0.95 | AH14: ー | AI14: ー | AJ14: ー | AN14: 105 | AO14: =AN14*98 -> 10290 | AT14: =ABS(入力シート!N23) -> 0 | AU14: =入力シート!O23 -> 0 | AV14: 0 | AW14: 0 | AX14: 0 | AY14: 0 | AZ14: -55 | BA14: 88.8 | BB14: 17.4 | BC14: OK | BD14: ー | BE14: OK | BF14: ー | BG14: OK | BH14: ー | BI14: ー | BK14: =入力シート!J23 -> 0 | BL14: =入力シート!K23 -> 0 | BM14: 180 | BN14: 0 | BO14: 0 | BP14: 350 | BQ14: 70 | BS14: 0.6666666667 | BT14: 0 | BX14: 0 | CB14: 0 | CC14: 0.6666666667 | CD14: 5492 | CE14: OK | CF14: ー | CG14: OK | CH14: ー | CJ14: ー | CK14: ー
B15: =入力シート!F24 -> 0 | C15: =入力シート!G24 -> 0 | D15: =入力シート!H24 -> 0 | E15: =入力シート!I24 -> 0 | F15: =入力シート!L24 -> 0 | M15: 326.9907026 | N15: 42.4 | O15: 164.3 | P15: -98.5 | T15: 0 | U15: 0 | V15: 0 | W15: 0 | X15: ー | AB15: ー | AD15: - | AE15: 1 | AF15: 0.95 | AH15: ー | AI15: ー | AJ15: ー | AN15: 110 | AO15: 10780 | AT15: =ABS(入力シート!N24) -> 0 | AU15: =入力シート!O24 -> 0 | AV15: 0 | AW15: 0 | AX15: 0 | AY15: 0 | AZ15: -55 | BA15: 88.8 | BB15: 17.4 | BC15: OK | BD15: ー | BE15: OK | BF15: ー | BG15: OK | BH15: ー | BI15: ー | BK15: =入力シート!J24 -> 0 | BL15: =入力シート!K24 -> 0 | BM15: 180 | BN15: 0 | BO15: 0 | BP15: 350 | BQ15: 70 | BS15: 0.6666666667 | BT15: 0 | BX15: 0 | CB15: 0 | CC15: 0.6666666667 | CD15: 5492 | CE15: =IF(AX15<=CB15,"OK","NG") -> OK | CF15: ー | CG15: OK | CH15: ー | CJ15: ー | CK15: ー
B16: =入力シート!F25 -> 0 | C16: =入力シート!G25 -> 0 | D16: =入力シート!H25 -> 0 | E16: =入力シート!I25 -> 0 | F16: =入力シート!L25 -> 0 | M16: 326.9907026 | N16: 42.4 | O16: 164.3 | P16: -98.5 | T16: 0 | U16: 0 | V16: 0 | W16: 0 | X16: ー | AB16: ー | AD16: - | AE16: 1 | AF16: 0.95 | AH16: ー | AI16: ー | AJ16: ー | AN16: 120 | AO16: 11760 | AT16: =ABS(入力シート!N25) -> 0 | AU16: =入力シート!O25 -> 0 | AV16: 0 | AW16: 0 | AX16: 0 | AY16: 0 | AZ16: -55 | BA16: 88.8 | BB16: 17.4 | BC16: OK | BD16: ー | BE16: OK | BF16: ー | BG16: OK | BH16: ー | BI16: ー | BK16: =入力シート!J25 -> 0 | BL16: =入力シート!K25 -> 0 | BM16: 180 | BN16: 0 | BO16: 0 | BP16: 350 | BQ16: 70 | BS16: 0.6666666667 | BT16: 0 | BX16: 0 | CB16: 0 | CC16: 0.6666666667 | CD16: 5492 | CE16: OK | CF16: ー | CG16: OK | CH16: ー | CJ16: ー | CK16: ー
B17: =入力シート!F26 -> 0 | C17: =入力シート!G26 -> 0 | D17: =入力シート!H26 -> 0 | E17: =入力シート!I26 -> 0 | F17: =入力シート!L26 -> 0 | M17: 326.9907026 | N17: 42.4 | O17: 164.3 | P17: -98.5 | T17: 0 | U17: 0 | V17: 0 | W17: 0 | X17: ー | AB17: ー | AD17: - | AE17: 1 | AF17: 0.95 | AH17: ー | AI17: ー | AJ17: ー | AN17: 135 | AO17: 13230 | AT17: =ABS(入力シート!N26) -> 0 | AU17: =入力シート!O26 -> 0 | AV17: 0 | AW17: 0 | AX17: 0 | AY17: 0 | AZ17: -55 | BA17: 88.8 | BB17: 17.4 | BC17: OK | BD17: ー | BE17: OK | BF17: ー | BG17: OK | BH17: ー | BI17: ー | BK17: =入力シート!J26 -> 0 | BL17: =入力シート!K26 -> 0 | BM17: 180 | BN17: 0 | BO17: 0 | BP17: 350 | BQ17: 70 | BS17: 0.6666666667 | BT17: 0 | BX17: 0 | CB17: 0 | CC17: 0.6666666667 | CD17: 5492 | CE17: OK | CF17: ー | CG17: OK | CH17: ー | CJ17: ー | CK17: ー
B18: =入力シート!F27 -> 0 | C18: =入力シート!G27 -> 0 | D18: =入力シート!H27 -> 0 | E18: =入力シート!I27 -> 0 | F18: =入力シート!L27 -> 0 | H18: =((I18*J18)/(I18+J18))*0.85 ->  | I18: =M18*L18 ->  | J18: =R18 ->  | L18: =0.0000319*S18+0.665 ->  | M18: =((P18^2)/((1/N18)+(1/O18)))/1000 -> 326.9907026 | N18: =42400/1000 -> 42.4 | O18: =164300/1000 -> 164.3 | P18: -98.5 | R18: =(((3*S18*T18)/W18))/1000000 ->  | S18: =VLOOKUP(B18,$AN$5:$AO$21,2,TRUE) ->  | T18: 0 | U18: 0 | V18: 0 | W18: 0 | X18: ー | Y18: =IF(H18>=AL18,H18/120,"―") ->  | Z18: =IF(H18>=AL18,Y18*AC18,"ー") ->  | AA18: =IF(H18>=AL18,Y18/(E18/1000),"ー") ->  | AB18: ー | AC18: =ROUNDDOWN(AD18*AE18*AF18*AG18,2) ->  | AD18: =IF(F18=3,1,IF(F18=2,0.85,IF(F18=1,0.75,"-"))) -> - | AE18: 1 | AF18: 0.95 | AH18: =IF(C18=0,"ー",I18*AC18) -> ー | AI18: ー | AJ18: ー | AL18: =VLOOKUP(C18,$AQ$5:$AR$13,2,TRUE) ->  | AN18: 140 | AO18: 13720 | AT18: =ABS(入力シート!N27) -> 0 | AU18: =入力シート!O27 -> 0 | AV18: 0 | AW18: 0 | AX18: 0 | AY18: 0 | AZ18: -55 | BA18: 88.8 | BB18: 17.4 | BC18: OK | BD18: ー | BE18: OK | BF18: ー | BG18: OK | BH18: ー | BI18: ー | BK18: =入力シート!J27 -> 0 | BL18: =入力シート!K27 -> 0 | BM18: 180 | BN18: 0 | BO18: 0 | BP18: 350 | BQ18: 70 | BS18: 0.6666666667 | BT18: 0 | BX18: 0 | CB18: 0 | CC18: 0.6666666667 | CD18: 5492 | CE18: OK | CF18: ー | CG18: OK | CH18: ー | CJ18: ー | CK18: ー
B19: =入力シート!F28 -> 0 | C19: =入力シート!G28 -> 0 | D19: =入力シート!H28 -> 0 | E19: =入力シート!I28 -> 0 | F19: =入力シート!L28 -> 0 | M19: 326.9907026 | N19: 42.4 | O19: 164.3 | P19: -98.5 | T19: 0 | U19: 0 | V19: 0 | W19: 0 | X19: ー | AB19: ー | AD19: - | AE19: 1 | AF19: 0.95 | AH19: ー | AI19: ー | AJ19: ー | AN19: 150 | AO19: 14700 | AT19: =ABS(入力シート!N28) -> 0 | AU19: =入力シート!O28 -> 0 | AV19: 0 | AW19: 0 | AX19: 0 | AY19: 0 | AZ19: -55 | BA19: 88.8 | BB19: 17.4 | BC19: OK | BD19: ー | BE19: OK | BF19: ー | BG19: OK | BH19: ー | BI19: ー | BK19: =入力シート!J28 -> 0 | BL19: =入力シート!K28 -> 0 | BM19: 180 | BN19: 0 | BO19: 0 | BP19: 350 | BQ19: 70 | BS19: 0.6666666667 | BT19: 0 | BX19: 0 | CB19: 0 | CC19: 0.6666666667 | CD19: 5492 | CE19: OK | CF19: ー | CG19: OK | CH19: ー | CJ19: ー | CK19: ー
B20: =入力シート!F29 -> 0 | C20: =入力シート!G29 -> 0 | D20: =入力シート!H29 -> 0 | E20: =入力シート!I29 -> 0 | F20: =入力シート!L29 -> 0 | M20: 326.9907026 | N20: 42.4 | O20: 164.3 | P20: -98.5 | T20: 0 | U20: 0 | V20: 0 | W20: 0 | X20: ー | AB20: ー | AD20: - | AE20: 1 | AF20: 0.95 | AH20: ー | AI20: ー | AJ20: ー | AN20: 160 | AO20: 15680 | AT20: =ABS(入力シート!N29) -> 0 | AU20: =入力シート!O29 -> 0 | AV20: 0 | AW20: 0 | AX20: 0 | AY20: 0 | AZ20: -55 | BA20: 88.8 | BB20: 17.4 | BC20: OK | BD20: ー | BE20: OK | BF20: ー | BG20: OK | BH20: ー | BI20: ー | BK20: =入力シート!J29 -> 0 | BL20: =入力シート!K29 -> 0 | BM20: 180 | BN20: 0 | BO20: 0 | BP20: 350 | BQ20: 70 | BS20: 0.6666666667 | BT20: 0 | BX20: 0 | CB20: 0 | CC20: 0.6666666667 | CD20: 5492 | CE20: OK | CF20: ー | CG20: OK | CH20: ー | CJ20: ー | CK20: ー
B21: =入力シート!F30 -> 0 | C21: =入力シート!G30 -> 0 | D21: =入力シート!H30 -> 0 | E21: =入力シート!I30 -> 0 | F21: =入力シート!L30 -> 0 | M21: 326.9907026 | N21: 42.4 | O21: 164.3 | P21: -98.5 | T21: 0 | U21: 0 | V21: 0 | W21: 0 | X21: ー | AB21: ー | AD21: - | AE21: 1 | AF21: 0.95 | AH21: ー | AI21: ー | AJ21: ー | AN21: 170 | AO21: 16660 | AT21: =ABS(入力シート!N30) -> 0 | AU21: =入力シート!O30 -> 0 | AV21: 0 | AW21: 0 | AX21: 0 | AY21: 0 | AZ21: -55 | BA21: 88.8 | BB21: 17.4 | BC21: OK | BD21: ー | BE21: OK | BF21: ー | BG21: OK | BH21: ー | BI21: ー | BK21: =入力シート!J30 -> 0 | BL21: =入力シート!K30 -> 0 | BM21: 180 | BN21: 0 | BO21: 0 | BP21: 350 | BQ21: 70 | BS21: 0.6666666667 | BT21: 0 | BX21: 0 | CB21: 0 | CC21: 0.6666666667 | CD21: 5492 | CE21: OK | CF21: ー | CG21: OK | CH21: ー | CJ21: ー | CK21: ー
B22: =入力シート!F31 -> 0 | C22: =入力シート!G31 -> 0 | D22: =入力シート!H31 -> 0 | E22: =入力シート!I31 -> 0 | F22: =入力シート!L31 -> 0 | H22: =((I22*J22)/(I22+J22))*0.85 ->  | I22: =M22*L22 ->  | J22: =R22 ->  | L22: =0.0000319*S22+0.665 ->  | M22: =((P22^2)/((1/N22)+(1/O22)))/1000 -> 326.9907026 | N22: =42400/1000 -> 42.4 | O22: =164300/1000 -> 164.3 | P22: =1.05*C22-98.5 -> -98.5 | R22: =(((3*S22*T22)/W22))/1000000 ->  | T22: =(V22*(U22^3))/12 -> 0 | U22: =C22 -> 0 | V22: =D22 -> 0 | W22: =E22 -> 0 | X22: ー | AB22: ー | AC22: =ROUNDDOWN(AD22*AE22*AF22*AG22,2) ->  | AD22: =IF(F22=3,1,IF(F22=2,0.85,IF(F22=1,0.75,"-"))) -> - | AE22: 1 | AF22: 0.95 | AH22: ー | AI22: ー | AJ22: ー | AT22: =ABS(入力シート!N31) -> 0 | AU22: =入力シート!O31 -> 0 | AV22: 0 | AW22: 0 | AX22: 0 | AY22: 0 | AZ22: -55 | BA22: 88.8 | BB22: 17.4 | BC22: OK | BD22: ー | BE22: OK | BF22: ー | BG22: OK | BH22: ー | BI22: ー | BK22: =入力シート!J31 -> 0 | BL22: =入力シート!K31 -> 0 | BM22: 180 | BN22: 0 | BO22: 0 | BP22: 350 | BQ22: 70 | BS22: 0.6666666667 | BT22: 0 | BX22: 0 | CB22: 0 | CC22: 0.6666666667 | CD22: 5492 | CE22: OK | CF22: ー | CG22: OK | CH22: ー | CJ22: ー | CK22: ー
B23: =入力シート!F32 -> 0 | C23: =入力シート!G32 -> 0 | D23: =入力シート!H32 -> 0 | E23: =入力シート!I32 -> 0 | F23: =入力シート!L32 -> 0 | H23: =((I23*J23)/(I23+J23))*0.85 ->  | J23: =R23 ->  | L23: =0.0000319*S23+0.665 ->  | M23: =((P23^2)/((1/N23)+(1/O23)))/1000 -> 326.9907026 | N23: =42400/1000 -> 42.4 | O23: =164300/1000 -> 164.3 | P23: -98.5 | R23: =(((3*S23*T23)/W23))/1000000 ->  | T23: 0 | U23: 0 | V23: 0 | W23: 0 | X23: ー | AB23: ー | AC23: =ROUNDDOWN(AD23*AE23*AF23*AG23,2) ->  | AD23: =IF(F23=3,1,IF(F23=2,0.85,IF(F23=1,0.75,"-"))) -> - | AE23: 1 | AF23: 0.95 | AH23: ー | AI23: ー | AJ23: ー | AN23: 柱幅 | AO23: Fc | AQ23: 使用環境 | AT23: =ABS(入力シート!N32) -> 0 | AU23: =入力シート!O32 -> 0 | AV23: 0 | AW23: 0 | AX23: 0 | AY23: 0 | AZ23: -55 | BA23: 88.8 | BB23: 17.4 | BC23: OK | BD23: ー | BE23: OK | BF23: ー | BG23: OK | BH23: ー | BI23: ー | BK23: =入力シート!J32 -> 0 | BL23: =入力シート!K32 -> 0 | BM23: 180 | BN23: 0 | BO23: 0 | BP23: 350 | BQ23: 70 | BS23: 0.6666666667 | BT23: 0 | BX23: 0 | CB23: 0 | CC23: 0.6666666667 | CD23: 5492 | CE23: OK | CF23: ー | CG23: OK | CH23: ー | CJ23: ー | CK23: ー
B24: =入力シート!F33 -> 0 | C24: =入力シート!G33 -> 0 | D24: =入力シート!H33 -> 0 | E24: =入力シート!I33 -> 0 | F24: =入力シート!L33 -> 0 | M24: 326.9907026 | N24: 42.4 | O24: 164.3 | P24: -98.5 | T24: 0 | U24: 0 | V24: 0 | W24: 0 | X24: ー | AB24: ー | AD24: - | AE24: 1 | AF24: 0.95 | AH24: ー | AI24: ー | AJ24: ー | AN24: 210 | AO24: 21 | AQ24: 1 | AT24: =ABS(入力シート!N33) -> 0 | AU24: =入力シート!O33 -> 0 | AV24: 0 | AW24: 0 | AX24: 0 | AY24: 0 | AZ24: -55 | BA24: 88.8 | BB24: 17.4 | BC24: OK | BD24: ー | BE24: OK | BF24: ー | BG24: OK | BH24: ー | BI24: ー | BK24: =入力シート!J33 -> 0 | BL24: =入力シート!K33 -> 0 | BM24: 180 | BN24: 0 | BO24: 0 | BP24: 350 | BQ24: 70 | BS24: 0.6666666667 | BT24: 0 | BX24: 0 | CB24: 0 | CC24: 0.6666666667 | CD24: 5492 | CE24: =IF(AX24<=CB24,"OK","NG") -> OK | CF24: ー | CG24: OK | CH24: ー | CJ24: ー | CK24: ー
B25: =入力シート!F34 -> 0 | C25: =入力シート!G34 -> 0 | D25: =入力シート!H34 -> 0 | E25: =入力シート!I34 -> 0 | F25: =入力シート!L34 -> 0 | M25: 326.9907026 | N25: 42.4 | O25: 164.3 | P25: -98.5 | T25: 0 | U25: 0 | V25: 0 | W25: 0 | X25: ー | AB25: ー | AD25: - | AE25: 1 | AF25: 0.95 | AH25: ー | AI25: ー | AJ25: ー | AN25: =AN24+30 -> 240 | AO25: =AO24+3 -> 24 | AQ25: 2 | AT25: =ABS(入力シート!N34) -> 0 | AU25: =入力シート!O34 -> 0 | AV25: 0 | AW25: 0 | AX25: 0 | AY25: 0 | AZ25: -55 | BA25: 88.8 | BB25: 17.4 | BC25: OK | BD25: ー | BE25: OK | BF25: ー | BG25: OK | BH25: ー | BI25: ー | BK25: =入力シート!J34 -> 0 | BL25: =入力シート!K34 -> 0 | BM25: 180 | BN25: 0 | BO25: 0 | BP25: 350 | BQ25: 70 | BS25: 0.6666666667 | BT25: 0 | BX25: 0 | CB25: 0 | CC25: 0.6666666667 | CD25: 5492 | CE25: OK | CF25: ー | CG25: OK | CH25: ー | CJ25: ー | CK25: ー
B26: =入力シート!F35 -> 0 | C26: =入力シート!G35 -> 0 | D26: =入力シート!H35 -> 0 | E26: =入力シート!I35 -> 0 | F26: =入力シート!L35 -> 0 | M26: 326.9907026 | N26: 42.4 | O26: 164.3 | P26: -98.5 | T26: 0 | U26: 0 | V26: 0 | W26: 0 | X26: ー | AB26: ー | AD26: - | AE26: 1 | AF26: 0.95 | AH26: ー | AI26: ー | AJ26: ー | AN26: =AN25+30 -> 270 | AO26: =AO25+3 -> 27 | AQ26: 3 | AT26: =ABS(入力シート!N35) -> 0 | AU26: =入力シート!O35 -> 0 | AV26: 0 | AW26: 0 | AX26: 0 | AY26: 0 | AZ26: -55 | BA26: 88.8 | BB26: 17.4 | BC26: OK | BD26: ー | BE26: OK | BF26: ー | BG26: OK | BH26: ー | BI26: ー | BK26: =入力シート!J35 -> 0 | BL26: =入力シート!K35 -> 0 | BM26: 180 | BN26: 0 | BO26: 0 | BP26: 350 | BQ26: 70 | BS26: 0.6666666667 | BT26: 0 | BX26: 0 | CB26: 0 | CC26: 0.6666666667 | CD26: 5492 | CE26: OK | CF26: ー | CG26: OK | CH26: ー | CJ26: ー | CK26: ー
B27: =入力シート!F36 -> 0 | C27: =入力シート!G36 -> 0 | D27: =入力シート!H36 -> 0 | E27: =入力シート!I36 -> 0 | F27: =入力シート!L36 -> 0 | M27: 326.9907026 | N27: 42.4 | O27: 164.3 | P27: -98.5 | T27: 0 | U27: 0 | V27: 0 | W27: 0 | X27: ー | AB27: ー | AD27: - | AE27: 1 | AF27: 0.95 | AH27: ー | AI27: ー | AJ27: ー | AN27: 300 | AO27: 30 | AT27: =ABS(入力シート!N36) -> 0 | AU27: =入力シート!O36 -> 0 | AV27: 0 | AW27: 0 | AX27: 0 | AY27: 0 | AZ27: -55 | BA27: 88.8 | BB27: 17.4 | BC27: OK | BD27: ー | BE27: OK | BF27: ー | BG27: OK | BH27: ー | BI27: ー | BK27: =入力シート!J36 -> 0 | BL27: =入力シート!K36 -> 0 | BM27: 180 | BN27: 0 | BO27: 0 | BP27: 350 | BQ27: 70 | BS27: 0.6666666667 | BT27: 0 | BX27: 0 | CB27: 0 | CC27: 0.6666666667 | CD27: 5492 | CE27: OK | CF27: ー | CG27: OK | CH27: ー | CJ27: ー | CK27: ー
B28: =入力シート!F37 -> 0 | C28: =入力シート!G37 -> 0 | D28: =入力シート!H37 -> 0 | E28: =入力シート!I37 -> 0 | F28: =入力シート!L37 -> 0 | M28: 326.9907026 | N28: 42.4 | O28: 164.3 | P28: -98.5 | T28: 0 | U28: 0 | V28: 0 | W28: 0 | X28: ー | AB28: ー | AD28: - | AE28: 1 | AF28: 0.95 | AH28: ー | AI28: ー | AJ28: ー | AN28: 330 | AO28: 33 | AT28: =ABS(入力シート!N37) -> 0 | AU28: =入力シート!O37 -> 0 | AV28: 0 | AW28: 0 | AX28: 0 | AY28: 0 | AZ28: -55 | BA28: 88.8 | BB28: 17.4 | BC28: OK | BD28: ー | BE28: OK | BF28: ー | BG28: OK | BH28: ー | BI28: ー | BK28: =入力シート!J37 -> 0 | BL28: =入力シート!K37 -> 0 | BM28: 180 | BN28: 0 | BO28: 0 | BP28: 350 | BQ28: 70 | BS28: 0.6666666667 | BT28: 0 | BX28: 0 | CB28: 0 | CC28: 0.6666666667 | CD28: 5492 | CE28: OK | CF28: ー | CG28: OK | CH28: ー | CJ28: ー | CK28: ー
B29: =入力シート!F38 -> 0 | C29: =入力シート!G38 -> 0 | D29: =入力シート!H38 -> 0 | E29: =入力シート!I38 -> 0 | F29: =入力シート!L38 -> 0 | M29: 326.9907026 | N29: 42.4 | O29: 164.3 | P29: -98.5 | T29: 0 | U29: 0 | V29: 0 | W29: 0 | X29: ー | AB29: ー | AD29: - | AE29: 1 | AF29: 0.95 | AH29: ー | AI29: ー | AJ29: ー | AN29: 360 | AO29: 36 | AT29: =ABS(入力シート!N38) -> 0 | AU29: =入力シート!O38 -> 0 | AV29: 0 | AW29: 0 | AX29: 0 | AY29: 0 | AZ29: -55 | BA29: 88.8 | BB29: 17.4 | BC29: OK | BD29: ー | BE29: OK | BF29: ー | BG29: OK | BH29: ー | BI29: ー | BK29: =入力シート!J38 -> 0 | BL29: =入力シート!K38 -> 0 | BM29: 180 | BN29: 0 | BO29: 0 | BP29: 350 | BQ29: 70 | BS29: 0.6666666667 | BT29: 0 | BX29: 0 | CB29: 0 | CC29: 0.6666666667 | CD29: 5492 | CE29: OK | CF29: ー | CG29: OK | CH29: ー | CJ29: ー | CK29: ー
B30: =入力シート!F39 -> 0 | C30: =入力シート!G39 -> 0 | D30: =入力シート!H39 -> 0 | E30: =入力シート!I39 -> 0 | F30: =入力シート!L39 -> 0 | M30: 326.9907026 | N30: 42.4 | O30: 164.3 | P30: -98.5 | T30: 0 | U30: 0 | V30: 0 | W30: 0 | X30: ー | AB30: ー | AD30: - | AE30: 1 | AF30: 0.95 | AH30: ー | AI30: ー | AJ30: ー | AN30: 390 | AO30: 39 | AT30: =ABS(入力シート!N39) -> 0 | AU30: =入力シート!O39 -> 0 | AV30: 0 | AW30: 0 | AX30: 0 | AY30: 0 | AZ30: -55 | BA30: 88.8 | BB30: 17.4 | BC30: OK | BD30: ー | BE30: OK | BF30: ー | BG30: OK | BH30: ー | BI30: ー | BK30: =入力シート!J39 -> 0 | BL30: =入力シート!K39 -> 0 | BM30: 180 | BN30: 0 | BO30: 0 | BP30: 350 | BQ30: 70 | BS30: 0.6666666667 | BT30: 0 | BX30: 0 | CB30: 0 | CC30: 0.6666666667 | CD30: 5492 | CE30: OK | CF30: ー | CG30: OK | CH30: ー | CJ30: ー | CK30: ー
B31: =入力シート!F40 -> 0 | C31: =入力シート!G40 -> 0 | D31: =入力シート!H40 -> 0 | E31: =入力シート!I40 -> 0 | F31: =入力シート!L40 -> 0 | M31: 326.9907026 | N31: 42.4 | O31: 164.3 | P31: -98.5 | T31: 0 | U31: 0 | V31: 0 | W31: 0 | X31: ー | AB31: ー | AD31: - | AE31: 1 | AF31: 0.95 | AH31: ー | AI31: ー | AJ31: ー | AN31: 420 | AO31: 42 | AT31: =ABS(入力シート!N40) -> 0 | AU31: =入力シート!O40 -> 0 | AV31: 0 | AW31: 0 | AX31: 0 | AY31: 0 | AZ31: -55 | BA31: 88.8 | BB31: 17.4 | BC31: OK | BD31: ー | BE31: OK | BF31: ー | BG31: OK | BH31: ー | BI31: ー | BK31: =入力シート!J40 -> 0 | BL31: =入力シート!K40 -> 0 | BM31: 180 | BN31: 0 | BO31: 0 | BP31: 350 | BQ31: 70 | BS31: 0.6666666667 | BT31: 0 | BX31: 0 | CB31: 0 | CC31: 0.6666666667 | CD31: 5492 | CE31: OK | CF31: ー | CG31: OK | CH31: ー | CJ31: ー | CK31: ー
B32: =入力シート!F41 -> 0 | C32: =入力シート!G41 -> 0 | D32: =入力シート!H41 -> 0 | E32: =入力シート!I41 -> 0 | F32: =入力シート!L41 -> 0 | M32: 326.9907026 | N32: 42.4 | O32: 164.3 | P32: -98.5 | T32: 0 | U32: 0 | V32: 0 | W32: 0 | X32: ー | AB32: ー | AD32: - | AE32: 1 | AF32: 0.95 | AH32: ー | AI32: ー | AJ32: ー | AN32: =AN31+30 -> 450 | AO32: 45 | AT32: =ABS(入力シート!N41) -> 0 | AU32: =入力シート!O41 -> 0 | AV32: 0 | AW32: 0 | AX32: 0 | AY32: 0 | AZ32: -55 | BA32: 88.8 | BB32: 17.4 | BC32: OK | BD32: ー | BE32: OK | BF32: ー | BG32: OK | BH32: ー | BI32: ー | BK32: =入力シート!J41 -> 0 | BL32: =入力シート!K41 -> 0 | BM32: 180 | BN32: 0 | BO32: 0 | BP32: 350 | BQ32: 70 | BS32: 0.6666666667 | BT32: 0 | BX32: 0 | CB32: 0 | CC32: 0.6666666667 | CD32: 5492 | CE32: OK | CF32: ー | CG32: OK | CH32: ー | CJ32: ー | CK32: ー
B33: =入力シート!F42 -> 0 | C33: =入力シート!G42 -> 0 | D33: =入力シート!H42 -> 0 | E33: =入力シート!I42 -> 0 | F33: =入力シート!L42 -> 0 | M33: 326.9907026 | N33: 42.4 | O33: 164.3 | P33: -98.5 | T33: 0 | U33: 0 | V33: 0 | W33: 0 | X33: ー | AB33: ー | AD33: - | AE33: 1 | AF33: 0.95 | AH33: ー | AI33: ー | AJ33: ー | AT33: =ABS(入力シート!N42) -> 0 | AU33: =入力シート!O42 -> 0 | AV33: 0 | AW33: 0 | AX33: 0 | AY33: 0 | AZ33: -55 | BA33: 88.8 | BB33: 17.4 | BC33: OK | BD33: ー | BE33: OK | BF33: ー | BG33: OK | BH33: ー | BI33: ー | BK33: =入力シート!J42 -> 0 | BL33: =入力シート!K42 -> 0 | BM33: 180 | BN33: 0 | BO33: 0 | BP33: 350 | BQ33: 70 | BS33: 0.6666666667 | BT33: 0 | BX33: 0 | CB33: 0 | CC33: 0.6666666667 | CD33: 5492 | CE33: OK | CF33: ー | CG33: OK | CH33: ー | CJ33: ー | CK33: ー
B34: =入力シート!F43 -> 0 | C34: =入力シート!G43 -> 0 | D34: =入力シート!H43 -> 0 | E34: =入力シート!I43 -> 0 | F34: =入力シート!L43 -> 0 | M34: 326.9907026 | N34: 42.4 | O34: 164.3 | P34: -98.5 | T34: 0 | U34: 0 | V34: 0 | W34: 0 | X34: ー | AB34: ー | AD34: - | AE34: 1 | AF34: 0.95 | AH34: ー | AI34: ー | AJ34: ー | AT34: =ABS(入力シート!N43) -> 0 | AU34: =入力シート!O43 -> 0 | AV34: 0 | AW34: 0 | AX34: 0 | AY34: 0 | AZ34: -55 | BA34: 88.8 | BB34: 17.4 | BC34: OK | BD34: ー | BE34: OK | BF34: ー | BG34: OK | BH34: ー | BI34: ー | BK34: =入力シート!J43 -> 0 | BL34: =入力シート!K43 -> 0 | BM34: 180 | BN34: 0 | BO34: 0 | BP34: 350 | BQ34: 70 | BS34: 0.6666666667 | BT34: 0 | BX34: 0 | CB34: 0 | CC34: 0.6666666667 | CD34: 5492 | CE34: OK | CF34: ー | CG34: OK | CH34: ー | CJ34: ー | CK34: ー
B35: =入力シート!F44 -> 0 | C35: =入力シート!G44 -> 0 | D35: =入力シート!H44 -> 0 | E35: =入力シート!I44 -> 0 | F35: =入力シート!L44 -> 0 | M35: 326.9907026 | N35: 42.4 | O35: 164.3 | P35: -98.5 | T35: 0 | U35: 0 | V35: 0 | W35: 0 | X35: ー | AB35: ー | AD35: - | AE35: 1 | AF35: 0.95 | AH35: ー | AI35: ー | AJ35: ー | AT35: =ABS(入力シート!N44) -> 0 | AU35: =入力シート!O44 -> 0 | AV35: 0 | AW35: 0 | AX35: 0 | AY35: 0 | AZ35: -55 | BA35: 88.8 | BB35: 17.4 | BC35: OK | BD35: ー | BE35: OK | BF35: ー | BG35: OK | BH35: ー | BI35: ー | BK35: =入力シート!J44 -> 0 | BL35: =入力シート!K44 -> 0 | BM35: 180 | BN35: 0 | BO35: 0 | BP35: 350 | BQ35: 70 | BS35: 0.6666666667 | BT35: 0 | BX35: 0 | CB35: 0 | CC35: 0.6666666667 | CD35: 5492 | CE35: OK | CF35: ー | CG35: OK | CH35: ー | CJ35: ー | CK35: ー
B36: =入力シート!F45 -> 0 | C36: =入力シート!G45 -> 0 | D36: =入力シート!H45 -> 0 | E36: =入力シート!I45 -> 0 | F36: =入力シート!L45 -> 0 | M36: 326.9907026 | N36: 42.4 | O36: 164.3 | P36: -98.5 | T36: 0 | U36: 0 | V36: 0 | W36: 0 | X36: ー | AB36: ー | AD36: - | AE36: 1 | AF36: 0.95 | AH36: ー | AI36: ー | AJ36: ー | AT36: =ABS(入力シート!N45) -> 0 | AU36: =入力シート!O45 -> 0 | AV36: 0 | AW36: 0 | AX36: 0 | AY36: 0 | AZ36: -55 | BA36: 88.8 | BB36: 17.4 | BC36: OK | BD36: ー | BE36: OK | BF36: ー | BG36: OK | BH36: ー | BI36: ー | BK36: =入力シート!J45 -> 0 | BL36: =入力シート!K45 -> 0 | BM36: 180 | BN36: 0 | BO36: 0 | BP36: 350 | BQ36: 70 | BS36: 0.6666666667 | BT36: 0 | BX36: 0 | CB36: 0 | CC36: 0.6666666667 | CD36: 5492 | CE36: OK | CF36: ー | CG36: OK | CH36: ー | CJ36: ー | CK36: ー
B37: =入力シート!F46 -> 0 | C37: =入力シート!G46 -> 0 | D37: =入力シート!H46 -> 0 | E37: =入力シート!I46 -> 0 | F37: =入力シート!L46 -> 0 | M37: 326.9907026 | N37: 42.4 | O37: 164.3 | P37: -98.5 | T37: 0 | U37: 0 | V37: 0 | W37: 0 | X37: ー | AB37: ー | AD37: - | AE37: 1 | AF37: 0.95 | AH37: ー | AI37: ー | AJ37: ー | AT37: =ABS(入力シート!N46) -> 0 | AU37: =入力シート!O46 -> 0 | AV37: 0 | AW37: =(AT37*(E37/1000))/(P37/1000) -> 0 | AX37: 0 | AY37: 0 | AZ37: =IF(F37=3,63.2,IF(F37=2,63.2,55))*-1 -> -55 | BA37: =IF(F37=3,127.8,IF(F37=2,107.6,88.8)) -> 88.8 | BB37: =IF(F37=3,23.1,IF(F37=2,21,17.4)) -> 17.4 | BC37: OK | BD37: ー | BE37: OK | BF37: ー | BG37: OK | BH37: ー | BI37: ー | BK37: =入力シート!J46 -> 0 | BL37: =入力シート!K46 -> 0 | BM37: 180 | BN37: 0 | BO37: 0 | BP37: 350 | BQ37: 70 | BS37: 0.6666666667 | BT37: 0 | BX37: 0 | CB37: =CC37*BK37*CD37/1000 -> 0 | CC37: 0.6666666667 | CD37: 5492 | CE37: OK | CF37: ー | CG37: OK | CH37: ー | CJ37: ー | CK37: ー
B38: =入力シート!F47 -> 0 | C38: =入力シート!G47 -> 0 | D38: =入力シート!H47 -> 0 | E38: =入力シート!I47 -> 0 | F38: =入力シート!L47 -> 0 | M38: 326.9907026 | N38: 42.4 | O38: 164.3 | P38: -98.5 | T38: 0 | U38: 0 | V38: 0 | W38: 0 | X38: ー | AB38: ー | AD38: - | AE38: 1 | AF38: 0.95 | AH38: ー | AI38: ー | AJ38: ー | AT38: =ABS(入力シート!N47) -> 0 | AU38: =入力シート!O47 -> 0 | AV38: 0 | AW38: 0 | AX38: 0 | AY38: 0 | AZ38: -55 | BA38: 88.8 | BB38: 17.4 | BC38: OK | BD38: ー | BE38: OK | BF38: ー | BG38: OK | BH38: ー | BI38: ー | BK38: =入力シート!J47 -> 0 | BL38: =入力シート!K47 -> 0 | BM38: 180 | BN38: 0 | BO38: 0 | BP38: 350 | BQ38: 70 | BS38: 0.6666666667 | BT38: 0 | BX38: 0 | CB38: 0 | CC38: 0.6666666667 | CD38: 5492 | CE38: OK | CF38: ー | CG38: OK | CH38: ー | CJ38: ー | CK38: ー
B39: =入力シート!F48 -> 0 | C39: =入力シート!G48 -> 0 | D39: =入力シート!H48 -> 0 | E39: =入力シート!I48 -> 0 | F39: =入力シート!L48 -> 0 | H39: =((I39*J39)/(I39+J39))*0.85 ->  | I39: =M39*L39 ->  | J39: =R39 ->  | L39: =0.0000319*S39+0.665 ->  | M39: =((P39^2)/((1/N39)+(1/O39)))/1000 -> 326.9907026 | N39: =42400/1000 -> 42.4 | O39: =164300/1000 -> 164.3 | P39: =1.05*C39-98.5 -> -98.5 | R39: =(((3*S39*T39)/W39))/1000000 ->  | T39: =(V39*(U39^3))/12 -> 0 | U39: =C39 -> 0 | V39: =D39 -> 0 | W39: =E39 -> 0 | X39: ー | AB39: ー | AC39: =ROUNDDOWN(AD39*AE39*AF39*AG39,2) ->  | AD39: =IF(F39=3,1,IF(F39=2,0.85,IF(F39=1,0.75,"-"))) -> - | AE39: 1 | AF39: 0.95 | AH39: ー | AI39: ー | AJ39: ー | AT39: =ABS(入力シート!N48) -> 0 | AU39: =入力シート!O48 -> 0 | AV39: 0 | AW39: 0 | AX39: 0 | AY39: 0 | AZ39: -55 | BA39: 88.8 | BB39: 17.4 | BC39: OK | BD39: ー | BE39: OK | BF39: ー | BG39: OK | BH39: ー | BI39: ー | BK39: =入力シート!J48 -> 0 | BL39: =入力シート!K48 -> 0 | BM39: 180 | BN39: 0 | BO39: 0 | BP39: 350 | BQ39: 70 | BS39: 0.6666666667 | BT39: 0 | BX39: 0 | CB39: 0 | CC39: 0.6666666667 | CD39: 5492 | CE39: OK | CF39: ー | CG39: OK | CH39: ー | CJ39: ー | CK39: ー
B40: =入力シート!F49 -> 0 | C40: =入力シート!G49 -> 0 | D40: =入力シート!H49 -> 0 | E40: =入力シート!I49 -> 0 | F40: =入力シート!L49 -> 0 | H40: =((I40*J40)/(I40+J40))*0.85 ->  | J40: =R40 ->  | L40: =0.0000319*S40+0.665 ->  | M40: =((P40^2)/((1/N40)+(1/O40)))/1000 -> 326.9907026 | N40: =42400/1000 -> 42.4 | O40: =164300/1000 -> 164.3 | P40: -98.5 | R40: =(((3*S40*T40)/W40))/1000000 ->  | T40: 0 | U40: 0 | V40: 0 | W40: 0 | X40: ー | AB40: ー | AC40: =ROUNDDOWN(AD40*AE40*AF40*AG40,2) ->  | AD40: =IF(F40=3,1,IF(F40=2,0.85,IF(F40=1,0.75,"-"))) -> - | AE40: 1 | AF40: 0.95 | AH40: ー | AI40: ー | AJ40: ー | AT40: =ABS(入力シート!N49) -> 0 | AU40: =入力シート!O49 -> 0 | AV40: 0 | AW40: 0 | AX40: 0 | AY40: 0 | AZ40: -55 | BA40: 88.8 | BB40: 17.4 | BC40: OK | BD40: ー | BE40: OK | BF40: ー | BG40: OK | BH40: ー | BI40: ー | BK40: =入力シート!J49 -> 0 | BL40: =入力シート!K49 -> 0 | BM40: 180 | BN40: 0 | BO40: 0 | BP40: 350 | BQ40: 70 | BS40: 0.6666666667 | BT40: 0 | BX40: 0 | CB40: 0 | CC40: 0.6666666667 | CD40: 5492 | CE40: OK | CF40: ー | CG40: OK | CH40: ー | CJ40: ー | CK40: ー
B41: =入力シート!F50 -> 0 | C41: =入力シート!G50 -> 0 | D41: =入力シート!H50 -> 0 | E41: =入力シート!I50 -> 0 | F41: =入力シート!L50 -> 0 | M41: 326.9907026 | N41: 42.4 | O41: 164.3 | P41: -98.5 | T41: 0 | U41: 0 | V41: 0 | W41: 0 | X41: ー | AB41: ー | AD41: - | AE41: 1 | AF41: 0.95 | AH41: ー | AI41: ー | AJ41: ー | AT41: =ABS(入力シート!N50) -> 0 | AU41: =入力シート!O50 -> 0 | AV41: 0 | AW41: 0 | AX41: 0 | AY41: 0 | AZ41: -55 | BA41: 88.8 | BB41: 17.4 | BC41: OK | BD41: ー | BE41: OK | BF41: ー | BG41: OK | BH41: ー | BI41: ー | BK41: =入力シート!J50 -> 0 | BL41: =入力シート!K50 -> 0 | BM41: 180 | BN41: 0 | BO41: 0 | BP41: 350 | BQ41: 70 | BS41: 0.6666666667 | BT41: 0 | BX41: 0 | CB41: 0 | CC41: 0.6666666667 | CD41: 5492 | CE41: OK | CF41: ー | CG41: OK | CH41: ー | CJ41: ー | CK41: ー
B42: =入力シート!F51 -> 0 | C42: =入力シート!G51 -> 0 | D42: =入力シート!H51 -> 0 | E42: =入力シート!I51 -> 0 | F42: =入力シート!L51 -> 0 | M42: 326.9907026 | N42: 42.4 | O42: 164.3 | P42: -98.5 | T42: 0 | U42: 0 | V42: 0 | W42: 0 | X42: ー | AB42: ー | AD42: - | AE42: 1 | AF42: 0.95 | AH42: ー | AI42: ー | AJ42: ー | AT42: =ABS(入力シート!N51) -> 0 | AU42: =入力シート!O51 -> 0 | AV42: 0 | AW42: 0 | AX42: 0 | AY42: 0 | AZ42: -55 | BA42: 88.8 | BB42: 17.4 | BC42: OK | BD42: ー | BE42: OK | BF42: ー | BG42: OK | BH42: ー | BI42: ー | BK42: =入力シート!J51 -> 0 | BL42: =入力シート!K51 -> 0 | BM42: 180 | BN42: 0 | BO42: 0 | BP42: 350 | BQ42: 70 | BS42: 0.6666666667 | BT42: 0 | BX42: 0 | CB42: 0 | CC42: 0.6666666667 | CD42: 5492 | CE42: OK | CF42: ー | CG42: OK | CH42: ー | CJ42: ー | CK42: ー
B43: =入力シート!F52 -> 0 | C43: =入力シート!G52 -> 0 | D43: =入力シート!H52 -> 0 | E43: =入力シート!I52 -> 0 | F43: =入力シート!L52 -> 0 | M43: 326.9907026 | N43: 42.4 | O43: 164.3 | P43: -98.5 | T43: 0 | U43: 0 | V43: 0 | W43: 0 | X43: ー | AB43: ー | AD43: - | AE43: 1 | AF43: 0.95 | AH43: ー | AI43: ー | AJ43: ー | AT43: =ABS(入力シート!N52) -> 0 | AU43: =入力シート!O52 -> 0 | AV43: 0 | AW43: 0 | AX43: 0 | AY43: 0 | AZ43: -55 | BA43: 88.8 | BB43: 17.4 | BC43: OK | BD43: ー | BE43: OK | BF43: ー | BG43: OK | BH43: ー | BI43: ー | BK43: =入力シート!J52 -> 0 | BL43: =入力シート!K52 -> 0 | BM43: 180 | BN43: 0 | BO43: 0 | BP43: 350 | BQ43: 70 | BS43: 0.6666666667 | BT43: 0 | BX43: 0 | CB43: 0 | CC43: 0.6666666667 | CD43: 5492 | CE43: OK | CF43: ー | CG43: OK | CH43: ー | CJ43: ー | CK43: ー
B44: =入力シート!F53 -> 0 | C44: =入力シート!G53 -> 0 | D44: =入力シート!H53 -> 0 | E44: =入力シート!I53 -> 0 | F44: =入力シート!L53 -> 0 | M44: 326.9907026 | N44: 42.4 | O44: 164.3 | P44: -98.5 | T44: 0 | U44: 0 | V44: 0 | W44: 0 | X44: ー | AB44: ー | AD44: - | AE44: 1 | AF44: 0.95 | AH44: ー | AI44: ー | AJ44: ー | AT44: =ABS(入力シート!N53) -> 0 | AU44: =入力シート!O53 -> 0 | AV44: 0 | AW44: 0 | AX44: 0 | AY44: 0 | AZ44: -55 | BA44: 88.8 | BB44: 17.4 | BC44: OK | BD44: ー | BE44: OK | BF44: ー | BG44: OK | BH44: ー | BI44: ー | BK44: =入力シート!J53 -> 0 | BL44: =入力シート!K53 -> 0 | BM44: 180 | BN44: 0 | BO44: 0 | BP44: 350 | BQ44: 70 | BS44: 0.6666666667 | BT44: 0 | BX44: 0 | CB44: 0 | CC44: 0.6666666667 | CD44: 5492 | CE44: OK | CF44: ー | CG44: OK | CH44: ー | CJ44: ー | CK44: ー
B45: =入力シート!F54 -> 0 | C45: =入力シート!G54 -> 0 | D45: =入力シート!H54 -> 0 | E45: =入力シート!I54 -> 0 | F45: =入力シート!L54 -> 0 | M45: 326.9907026 | N45: 42.4 | O45: 164.3 | P45: -98.5 | T45: 0 | U45: 0 | V45: 0 | W45: 0 | X45: ー | AB45: ー | AD45: - | AE45: 1 | AF45: 0.95 | AH45: ー | AI45: ー | AJ45: ー | AT45: =ABS(入力シート!N54) -> 0 | AU45: =入力シート!O54 -> 0 | AV45: 0 | AW45: 0 | AX45: 0 | AY45: 0 | AZ45: -55 | BA45: 88.8 | BB45: 17.4 | BC45: OK | BD45: ー | BE45: OK | BF45: ー | BG45: OK | BH45: ー | BI45: ー | BK45: =入力シート!J54 -> 0 | BL45: =入力シート!K54 -> 0 | BM45: 180 | BN45: 0 | BO45: 0 | BP45: 350 | BQ45: 70 | BS45: 0.6666666667 | BT45: 0 | BX45: 0 | CB45: 0 | CC45: 0.6666666667 | CD45: 5492 | CE45: OK | CF45: ー | CG45: OK | CH45: ー | CJ45: ー | CK45: ー
B46: =入力シート!F55 -> 0 | C46: =入力シート!G55 -> 0 | D46: =入力シート!H55 -> 0 | E46: =入力シート!I55 -> 0 | F46: =入力シート!L55 -> 0 | M46: 326.9907026 | N46: 42.4 | O46: 164.3 | P46: -98.5 | T46: 0 | U46: 0 | V46: 0 | W46: 0 | X46: ー | AB46: ー | AD46: - | AE46: 1 | AF46: 0.95 | AH46: ー | AI46: ー | AJ46: ー | AT46: =ABS(入力シート!N55) -> 0 | AU46: =入力シート!O55 -> 0 | AV46: 0 | AW46: 0 | AX46: 0 | AY46: 0 | AZ46: -55 | BA46: 88.8 | BB46: 17.4 | BC46: OK | BD46: ー | BE46: OK | BF46: ー | BG46: OK | BH46: ー | BI46: ー | BK46: =入力シート!J55 -> 0 | BL46: =入力シート!K55 -> 0 | BM46: 180 | BN46: 0 | BO46: 0 | BP46: 350 | BQ46: 70 | BS46: 0.6666666667 | BT46: 0 | BX46: 0 | CB46: 0 | CC46: 0.6666666667 | CD46: 5492 | CE46: OK | CF46: ー | CG46: OK | CH46: ー | CJ46: ー | CK46: ー
B47: =入力シート!F56 -> 0 | C47: =入力シート!G56 -> 0 | D47: =入力シート!H56 -> 0 | E47: =入力シート!I56 -> 0 | F47: =入力シート!L56 -> 0 | M47: 326.9907026 | N47: 42.4 | O47: 164.3 | P47: -98.5 | T47: 0 | U47: 0 | V47: 0 | W47: 0 | X47: ー | AB47: ー | AD47: - | AE47: 1 | AF47: 0.95 | AH47: ー | AI47: ー | AJ47: ー | AT47: =ABS(入力シート!N56) -> 0 | AU47: =入力シート!O56 -> 0 | AV47: 0 | AW47: 0 | AX47: 0 | AY47: 0 | AZ47: -55 | BA47: 88.8 | BB47: 17.4 | BC47: OK | BD47: ー | BE47: OK | BF47: ー | BG47: OK | BH47: ー | BI47: ー | BK47: =入力シート!J56 -> 0 | BL47: =入力シート!K56 -> 0 | BM47: 180 | BN47: 0 | BO47: 0 | BP47: 350 | BQ47: 70 | BS47: 0.6666666667 | BT47: 0 | BX47: 0 | CB47: 0 | CC47: 0.6666666667 | CD47: 5492 | CE47: OK | CF47: ー | CG47: OK | CH47: ー | CJ47: ー | CK47: ー
B48: =入力シート!F57 -> 0 | C48: =入力シート!G57 -> 0 | D48: =入力シート!H57 -> 0 | E48: =入力シート!I57 -> 0 | F48: =入力シート!L57 -> 0 | M48: 326.9907026 | N48: 42.4 | O48: 164.3 | P48: -98.5 | T48: 0 | U48: 0 | V48: 0 | W48: 0 | X48: ー | AB48: ー | AD48: - | AE48: 1 | AF48: 0.95 | AH48: ー | AI48: ー | AJ48: ー | AT48: =ABS(入力シート!N57) -> 0 | AU48: =入力シート!O57 -> 0 | AV48: 0 | AW48: 0 | AX48: 0 | AY48: 0 | AZ48: -55 | BA48: 88.8 | BB48: 17.4 | BC48: OK | BD48: ー | BE48: OK | BF48: ー | BG48: OK | BH48: ー | BI48: ー | BK48: =入力シート!J57 -> 0 | BL48: =入力シート!K57 -> 0 | BM48: 180 | BN48: 0 | BO48: 0 | BP48: 350 | BQ48: 70 | BS48: 0.6666666667 | BT48: 0 | BX48: 0 | CB48: 0 | CC48: 0.6666666667 | CD48: 5492 | CE48: OK | CF48: ー | CG48: OK | CH48: ー | CJ48: ー | CK48: ー
B49: =入力シート!F58 -> 0 | C49: =入力シート!G58 -> 0 | D49: =入力シート!H58 -> 0 | E49: =入力シート!I58 -> 0 | F49: =入力シート!L58 -> 0 | M49: 326.9907026 | N49: 42.4 | O49: 164.3 | P49: -98.5 | T49: 0 | U49: 0 | V49: 0 | W49: 0 | X49: ー | AB49: ー | AD49: - | AE49: 1 | AF49: 0.95 | AH49: ー | AI49: ー | AJ49: ー | AT49: =ABS(入力シート!N58) -> 0 | AU49: =入力シート!O58 -> 0 | AV49: 0 | AW49: 0 | AX49: 0 | AY49: 0 | AZ49: -55 | BA49: 88.8 | BB49: 17.4 | BC49: OK | BD49: ー | BE49: OK | BF49: ー | BG49: OK | BH49: ー | BI49: ー | BK49: =入力シート!J58 -> 0 | BL49: =入力シート!K58 -> 0 | BM49: 180 | BN49: 0 | BO49: 0 | BP49: 350 | BQ49: 70 | BS49: 0.6666666667 | BT49: 0 | BX49: 0 | CB49: 0 | CC49: 0.6666666667 | CD49: 5492 | CE49: OK | CF49: ー | CG49: OK | CH49: ー | CJ49: ー | CK49: ー
B50: =入力シート!F59 -> 0 | C50: =入力シート!G59 -> 0 | D50: =入力シート!H59 -> 0 | E50: =入力シート!I59 -> 0 | F50: =入力シート!L59 -> 0 | M50: 326.9907026 | N50: 42.4 | O50: 164.3 | P50: -98.5 | S50: =VLOOKUP(B50,$AN$5:$AO$21,2,TRUE) ->  | T50: 0 | U50: 0 | V50: 0 | W50: 0 | X50: ー | Y50: =IF(H50>=AL50,H50/120,"―") ->  | Z50: =IF(H50>=AL50,Y50*AC50,"ー") ->  | AA50: =IF(H50>=AL50,Y50/(E50/1000),"ー") ->  | AB50: ー | AD50: - | AE50: 1 | AF50: 0.95 | AH50: ー | AI50: ー | AJ50: ー | AL50: =VLOOKUP(C50,$AQ$5:$AR$13,2,TRUE) ->  | AT50: =ABS(入力シート!N59) -> 0 | AU50: =入力シート!O59 -> 0 | AV50: 0 | AW50: 0 | AX50: 0 | AY50: 0 | AZ50: -55 | BA50: 88.8 | BB50: 17.4 | BC50: OK | BD50: ー | BE50: OK | BF50: ー | BG50: OK | BH50: ー | BI50: ー | BK50: =入力シート!J59 -> 0 | BL50: =入力シート!K59 -> 0 | BM50: 180 | BN50: 0 | BO50: 0 | BP50: 350 | BQ50: 70 | BS50: 0.6666666667 | BT50: 0 | BX50: 0 | CB50: 0 | CC50: 0.6666666667 | CD50: 5492 | CE50: OK | CF50: ー | CG50: OK | CH50: ー | CJ50: ー | CK50: ー
B51: =入力シート!F60 -> 0 | C51: =入力シート!G60 -> 0 | D51: =入力シート!H60 -> 0 | E51: =入力シート!I60 -> 0 | F51: =入力シート!L60 -> 0 | M51: 326.9907026 | N51: 42.4 | O51: 164.3 | P51: -98.5 | T51: 0 | U51: 0 | V51: 0 | W51: 0 | X51: ー | AB51: ー | AD51: - | AE51: 1 | AF51: 0.95 | AH51: ー | AI51: ー | AJ51: ー | AT51: =ABS(入力シート!N60) -> 0 | AU51: =入力シート!O60 -> 0 | AV51: 0 | AW51: 0 | AX51: 0 | AY51: 0 | AZ51: -55 | BA51: 88.8 | BB51: 17.4 | BC51: OK | BD51: ー | BE51: OK | BF51: ー | BG51: OK | BH51: ー | BI51: ー | BK51: =入力シート!J60 -> 0 | BL51: =入力シート!K60 -> 0 | BM51: 180 | BN51: 0 | BO51: 0 | BP51: 350 | BQ51: 70 | BS51: 0.6666666667 | BT51: 0 | BX51: 0 | CB51: 0 | CC51: 0.6666666667 | CD51: 5492 | CE51: OK | CF51: ー | CG51: OK | CH51: ー | CJ51: ー | CK51: ー
B52: =入力シート!F61 -> 0 | C52: =入力シート!G61 -> 0 | D52: =入力シート!H61 -> 0 | E52: =入力シート!I61 -> 0 | F52: =入力シート!L61 -> 0 | M52: 326.9907026 | N52: 42.4 | O52: 164.3 | P52: -98.5 | T52: 0 | U52: 0 | V52: 0 | W52: 0 | X52: ー | AB52: ー | AD52: - | AE52: 1 | AF52: 0.95 | AH52: ー | AI52: ー | AJ52: ー | AT52: =ABS(入力シート!N61) -> 0 | AU52: =入力シート!O61 -> 0 | AV52: 0 | AW52: 0 | AX52: 0 | AY52: 0 | AZ52: -55 | BA52: 88.8 | BB52: 17.4 | BC52: OK | BD52: ー | BE52: OK | BF52: ー | BG52: OK | BH52: ー | BI52: ー | BK52: =入力シート!J61 -> 0 | BL52: =入力シート!K61 -> 0 | BM52: 180 | BN52: 0 | BO52: 0 | BP52: 350 | BQ52: 70 | BS52: 0.6666666667 | BT52: 0 | BX52: 0 | CB52: 0 | CC52: 0.6666666667 | CD52: 5492 | CE52: OK | CF52: ー | CG52: OK | CH52: ー | CJ52: ー | CK52: ー
B53: =入力シート!F62 -> 0 | C53: =入力シート!G62 -> 0 | D53: =入力シート!H62 -> 0 | E53: =入力シート!I62 -> 0 | F53: =入力シート!L62 -> 0 | M53: 326.9907026 | N53: 42.4 | O53: 164.3 | P53: -98.5 | T53: 0 | U53: 0 | V53: 0 | W53: 0 | X53: ー | AB53: ー | AD53: - | AE53: 1 | AF53: 0.95 | AH53: ー | AI53: ー | AJ53: ー | AT53: =ABS(入力シート!N62) -> 0 | AU53: =入力シート!O62 -> 0 | AV53: 0 | AW53: 0 | AX53: 0 | AY53: 0 | AZ53: -55 | BA53: 88.8 | BB53: 17.4 | BC53: OK | BD53: ー | BE53: OK | BF53: ー | BG53: OK | BH53: ー | BI53: ー | BK53: =入力シート!J62 -> 0 | BL53: =入力シート!K62 -> 0 | BM53: 180 | BN53: 0 | BO53: 0 | BP53: 350 | BQ53: 70 | BS53: 0.6666666667 | BT53: 0 | BX53: 0 | CB53: 0 | CC53: 0.6666666667 | CD53: 5492 | CE53: OK | CF53: ー | CG53: OK | CH53: ー | CJ53: ー | CK53: ー
B54: =入力シート!F63 -> 0 | C54: =入力シート!G63 -> 0 | D54: =入力シート!H63 -> 0 | E54: =入力シート!I63 -> 0 | F54: =入力シート!L63 -> 0 | M54: 326.9907026 | N54: 42.4 | O54: 164.3 | P54: -98.5 | T54: 0 | U54: 0 | V54: 0 | W54: 0 | X54: ー | AB54: ー | AD54: - | AE54: 1 | AF54: 0.95 | AH54: ー | AI54: ー | AJ54: ー | AT54: =ABS(入力シート!N63) -> 0 | AU54: =入力シート!O63 -> 0 | AV54: 0 | AW54: 0 | AX54: 0 | AY54: 0 | AZ54: -55 | BA54: 88.8 | BB54: 17.4 | BC54: OK | BD54: ー | BE54: OK | BF54: ー | BG54: OK | BH54: ー | BI54: ー | BK54: =入力シート!J63 -> 0 | BL54: =入力シート!K63 -> 0 | BM54: 180 | BN54: 0 | BO54: 0 | BP54: 350 | BQ54: 70 | BS54: 0.6666666667 | BT54: 0 | BX54: 0 | CB54: 0 | CC54: 0.6666666667 | CD54: 5492 | CE54: OK | CF54: ー | CG54: OK | CH54: ー | CJ54: ー | CK54: ー
B55: =入力シート!F66 -> 0 | C55: =入力シート!G66 -> 0 | D55: =入力シート!H66 -> 0 | E55: =入力シート!I66 -> 0 | F55: =入力シート!L66 -> 0 | M55: 326.9907026 | N55: 42.4 | O55: 164.3 | P55: -98.5 | T55: 0 | U55: 0 | V55: 0 | W55: 0 | X55: ー | AB55: ー | AD55: - | AE55: 1 | AF55: 0.95 | AH55: ー | AI55: ー | AJ55: ー | AT55: =ABS(入力シート!N66) -> 0 | AU55: =入力シート!O66 -> 0 | AV55: 0 | AW55: 0 | AX55: 0 | AY55: 0 | AZ55: -55 | BA55: 88.8 | BB55: 17.4 | BC55: OK | BD55: ー | BE55: OK | BF55: ー | BG55: OK | BH55: ー | BI55: ー | BK55: =入力シート!J66 -> 0 | BL55: =入力シート!K66 -> 0 | BM55: 180 | BN55: 0 | BO55: 0 | BP55: 350 | BQ55: 70 | BS55: 0.6666666667 | BT55: 0 | BX55: 0 | CB55: 0 | CC55: 0.6666666667 | CD55: 5492 | CE55: OK | CF55: ー | CG55: OK | CH55: ー | CJ55: ー | CK55: ー
B56: =入力シート!F67 -> 0 | C56: =入力シート!G67 -> 0 | D56: =入力シート!H67 -> 0 | E56: =入力シート!I67 -> 0 | F56: =入力シート!L67 -> 0 | H56: =((I56*J56)/(I56+J56))*0.85 ->  | I56: =M56*L56 ->  | J56: =R56 ->  | L56: =0.0000319*S56+0.665 ->  | M56: =((P56^2)/((1/N56)+(1/O56)))/1000 -> 326.9907026 | N56: =42400/1000 -> 42.4 | O56: =164300/1000 -> 164.3 | P56: =1.05*C56-98.5 -> -98.5 | R56: =(((3*S56*T56)/W56))/1000000 ->  | T56: =(V56*(U56^3))/12 -> 0 | U56: =C56 -> 0 | V56: =D56 -> 0 | W56: =E56 -> 0 | X56: ー | AB56: ー | AC56: =ROUNDDOWN(AD56*AE56*AF56*AG56,2) ->  | AD56: =IF(F56=3,1,IF(F56=2,0.85,IF(F56=1,0.75,"-"))) -> - | AE56: 1 | AF56: 0.95 | AH56: ー | AI56: ー | AJ56: ー | AT56: =ABS(入力シート!N67) -> 0 | AU56: =入力シート!O67 -> 0 | AV56: 0 | AW56: 0 | AX56: 0 | AY56: 0 | AZ56: -55 | BA56: 88.8 | BB56: 17.4 | BC56: OK | BD56: ー | BE56: OK | BF56: ー | BG56: OK | BH56: ー | BI56: ー | BK56: =入力シート!J67 -> 0 | BL56: =入力シート!K67 -> 0 | BM56: 180 | BN56: 0 | BO56: 0 | BP56: 350 | BQ56: 70 | BS56: 0.6666666667 | BT56: 0 | BX56: 0 | CB56: 0 | CC56: 0.6666666667 | CD56: 5492 | CE56: OK | CF56: ー | CG56: OK | CH56: ー | CJ56: ー | CK56: ー
B57: =入力シート!F68 -> 0 | C57: =入力シート!G68 -> 0 | D57: =入力シート!H68 -> 0 | E57: =入力シート!I68 -> 0 | F57: =入力シート!L68 -> 0 | H57: =((I57*J57)/(I57+J57))*0.85 ->  | J57: =R57 ->  | L57: =0.0000319*S57+0.665 ->  | M57: =((P57^2)/((1/N57)+(1/O57)))/1000 -> 326.9907026 | N57: =42400/1000 -> 42.4 | O57: =164300/1000 -> 164.3 | P57: -98.5 | R57: =(((3*S57*T57)/W57))/1000000 ->  | T57: 0 | U57: 0 | V57: 0 | W57: 0 | X57: ー | AB57: ー | AC57: =ROUNDDOWN(AD57*AE57*AF57*AG57,2) ->  | AD57: =IF(F57=3,1,IF(F57=2,0.85,IF(F57=1,0.75,"-"))) -> - | AE57: 1 | AF57: 0.95 | AH57: ー | AI57: ー | AJ57: ー | AT57: =ABS(入力シート!N68) -> 0 | AU57: =入力シート!O68 -> 0 | AV57: 0 | AW57: 0 | AX57: 0 | AY57: 0 | AZ57: -55 | BA57: 88.8 | BB57: 17.4 | BC57: OK | BD57: ー | BE57: OK | BF57: ー | BG57: OK | BH57: ー | BI57: ー | BK57: =入力シート!J68 -> 0 | BL57: =入力シート!K68 -> 0 | BM57: 180 | BN57: 0 | BO57: 0 | BP57: 350 | BQ57: 70 | BS57: 0.6666666667 | BT57: 0 | BX57: 0 | CB57: 0 | CC57: 0.6666666667 | CD57: 5492 | CE57: OK | CF57: ー | CG57: OK | CH57: ー | CJ57: ー | CK57: ー
B58: =入力シート!F69 -> 0 | C58: =入力シート!G69 -> 0 | D58: =入力シート!H69 -> 0 | E58: =入力シート!I69 -> 0 | F58: =入力シート!L69 -> 0 | M58: 326.9907026 | N58: 42.4 | O58: 164.3 | P58: -98.5 | T58: 0 | U58: 0 | V58: 0 | W58: 0 | X58: ー | AB58: ー | AD58: - | AE58: 1 | AF58: 0.95 | AH58: ー | AI58: ー | AJ58: ー | AT58: =ABS(入力シート!N69) -> 0 | AU58: =入力シート!O69 -> 0 | AV58: 0 | AW58: 0 | AX58: 0 | AY58: 0 | AZ58: -55 | BA58: 88.8 | BB58: 17.4 | BC58: OK | BD58: ー | BE58: OK | BF58: ー | BG58: OK | BH58: ー | BI58: ー | BK58: =入力シート!J69 -> 0 | BL58: =入力シート!K69 -> 0 | BM58: 180 | BN58: 0 | BO58: 0 | BP58: 350 | BQ58: 70 | BS58: 0.6666666667 | BT58: 0 | BX58: 0 | CB58: 0 | CC58: 0.6666666667 | CD58: 5492 | CE58: OK | CF58: ー | CG58: OK | CH58: ー | CJ58: ー | CK58: ー
B59: =入力シート!F70 -> 0 | C59: =入力シート!G70 -> 0 | D59: =入力シート!H70 -> 0 | E59: =入力シート!I70 -> 0 | F59: =入力シート!L70 -> 0 | M59: 326.9907026 | N59: 42.4 | O59: 164.3 | P59: -98.5 | T59: 0 | U59: 0 | V59: 0 | W59: 0 | X59: ー | AB59: ー | AD59: - | AE59: 1 | AF59: 0.95 | AH59: ー | AI59: ー | AJ59: ー | AT59: =ABS(入力シート!N70) -> 0 | AU59: =入力シート!O70 -> 0 | AV59: 0 | AW59: 0 | AX59: 0 | AY59: 0 | AZ59: -55 | BA59: 88.8 | BB59: 17.4 | BC59: OK | BD59: ー | BE59: OK | BF59: ー | BG59: OK | BH59: ー | BI59: ー | BK59: =入力シート!J70 -> 0 | BL59: =入力シート!K70 -> 0 | BM59: 180 | BN59: 0 | BO59: 0 | BP59: 350 | BQ59: 70 | BS59: 0.6666666667 | BT59: 0 | BX59: 0 | CB59: 0 | CC59: 0.6666666667 | CD59: 5492 | CE59: OK | CF59: ー | CG59: OK | CH59: ー | CJ59: ー | CK59: ー
B60: =入力シート!F71 -> 0 | C60: =入力シート!G71 -> 0 | D60: =入力シート!H71 -> 0 | E60: =入力シート!I71 -> 0 | F60: =入力シート!L71 -> 0 | M60: 326.9907026 | N60: 42.4 | O60: 164.3 | P60: -98.5 | T60: 0 | U60: 0 | V60: 0 | W60: 0 | X60: ー | AB60: ー | AD60: - | AE60: 1 | AF60: 0.95 | AH60: ー | AI60: ー | AJ60: ー | AT60: =ABS(入力シート!N71) -> 0 | AU60: =入力シート!O71 -> 0 | AV60: 0 | AW60: 0 | AX60: 0 | AY60: 0 | AZ60: -55 | BA60: 88.8 | BB60: 17.4 | BC60: OK | BD60: ー | BE60: OK | BF60: ー | BG60: OK | BH60: ー | BI60: ー | BK60: =入力シート!J71 -> 0 | BL60: =入力シート!K71 -> 0 | BM60: 180 | BN60: 0 | BO60: 0 | BP60: 350 | BQ60: 70 | BS60: 0.6666666667 | BT60: 0 | BX60: 0 | CB60: 0 | CC60: 0.6666666667 | CD60: 5492 | CE60: OK | CF60: ー | CG60: OK | CH60: ー | CJ60: ー | CK60: ー
B61: =入力シート!F72 -> 0 | C61: =入力シート!G72 -> 0 | D61: =入力シート!H72 -> 0 | E61: =入力シート!I72 -> 0 | F61: =入力シート!L72 -> 0 | M61: 326.9907026 | N61: 42.4 | O61: 164.3 | P61: -98.5 | T61: 0 | U61: 0 | V61: 0 | W61: 0 | X61: ー | AB61: ー | AD61: - | AE61: 1 | AF61: 0.95 | AH61: ー | AI61: ー | AJ61: ー | AT61: =ABS(入力シート!N72) -> 0 | AU61: =入力シート!O72 -> 0 | AV61: 0 | AW61: 0 | AX61: 0 | AY61: 0 | AZ61: -55 | BA61: 88.8 | BB61: 17.4 | BC61: OK | BD61: ー | BE61: OK | BF61: ー | BG61: OK | BH61: ー | BI61: ー | BK61: =入力シート!J72 -> 0 | BL61: =入力シート!K72 -> 0 | BM61: 180 | BN61: 0 | BO61: 0 | BP61: 350 | BQ61: 70 | BS61: 0.6666666667 | BT61: 0 | BX61: 0 | CB61: 0 | CC61: 0.6666666667 | CD61: 5492 | CE61: OK | CF61: ー | CG61: OK | CH61: ー | CJ61: ー | CK61: ー
B62: =入力シート!F73 -> 0 | C62: =入力シート!G73 -> 0 | D62: =入力シート!H73 -> 0 | E62: =入力シート!I73 -> 0 | F62: =入力シート!L73 -> 0 | M62: 326.9907026 | N62: 42.4 | O62: 164.3 | P62: -98.5 | T62: 0 | U62: 0 | V62: 0 | W62: 0 | X62: ー | AB62: ー | AD62: - | AE62: 1 | AF62: 0.95 | AH62: ー | AI62: ー | AJ62: ー | AT62: =ABS(入力シート!N73) -> 0 | AU62: =入力シート!O73 -> 0 | AV62: 0 | AW62: 0 | AX62: 0 | AY62: 0 | AZ62: -55 | BA62: 88.8 | BB62: 17.4 | BC62: OK | BD62: ー | BE62: OK | BF62: ー | BG62: OK | BH62: ー | BI62: ー | BK62: =入力シート!J73 -> 0 | BL62: =入力シート!K73 -> 0 | BM62: 180 | BN62: 0 | BO62: 0 | BP62: 350 | BQ62: 70 | BS62: 0.6666666667 | BT62: 0 | BX62: 0 | CB62: 0 | CC62: 0.6666666667 | CD62: 5492 | CE62: OK | CF62: ー | CG62: OK | CH62: ー | CJ62: ー | CK62: ー
B63: =入力シート!F74 -> 0 | C63: =入力シート!G74 -> 0 | D63: =入力シート!H74 -> 0 | E63: =入力シート!I74 -> 0 | F63: =入力シート!L74 -> 0 | M63: 326.9907026 | N63: 42.4 | O63: 164.3 | P63: -98.5 | T63: 0 | U63: 0 | V63: 0 | W63: 0 | X63: ー | AB63: ー | AD63: - | AE63: 1 | AF63: 0.95 | AH63: ー | AI63: ー | AJ63: ー | AT63: =ABS(入力シート!N74) -> 0 | AU63: =入力シート!O74 -> 0 | AV63: 0 | AW63: 0 | AX63: 0 | AY63: 0 | AZ63: -55 | BA63: 88.8 | BB63: 17.4 | BC63: OK | BD63: ー | BE63: OK | BF63: ー | BG63: OK | BH63: ー | BI63: ー | BK63: =入力シート!J74 -> 0 | BL63: =入力シート!K74 -> 0 | BM63: 180 | BN63: 0 | BO63: 0 | BP63: 350 | BQ63: 70 | BS63: 0.6666666667 | BT63: 0 | BX63: 0 | CB63: 0 | CC63: 0.6666666667 | CD63: 5492 | CE63: OK | CF63: ー | CG63: OK | CH63: ー | CJ63: ー | CK63: ー
B64: =入力シート!F75 -> 0 | C64: =入力シート!G75 -> 0 | D64: =入力シート!H75 -> 0 | E64: =入力シート!I75 -> 0 | F64: =入力シート!L75 -> 0 | M64: 326.9907026 | N64: 42.4 | O64: 164.3 | P64: -98.5 | T64: 0 | U64: 0 | V64: 0 | W64: 0 | X64: ー | AB64: ー | AD64: - | AE64: 1 | AF64: 0.95 | AH64: ー | AI64: ー | AJ64: ー | AT64: =ABS(入力シート!N75) -> 0 | AU64: =入力シート!O75 -> 0 | AV64: 0 | AW64: 0 | AX64: 0 | AY64: 0 | AZ64: -55 | BA64: 88.8 | BB64: 17.4 | BC64: OK | BD64: ー | BE64: OK | BF64: ー | BG64: OK | BH64: ー | BI64: ー | BK64: =入力シート!J75 -> 0 | BL64: =入力シート!K75 -> 0 | BM64: 180 | BN64: 0 | BO64: 0 | BP64: 350 | BQ64: 70 | BS64: 0.6666666667 | BT64: 0 | BX64: 0 | CB64: 0 | CC64: 0.6666666667 | CD64: 5492 | CE64: OK | CF64: ー | CG64: OK | CH64: ー | CJ64: ー | CK64: ー
B65: =入力シート!F76 -> 0 | C65: =入力シート!G76 -> 0 | D65: =入力シート!H76 -> 0 | E65: =入力シート!I76 -> 0 | F65: =入力シート!L76 -> 0 | M65: 326.9907026 | N65: 42.4 | O65: 164.3 | P65: -98.5 | T65: 0 | U65: 0 | V65: 0 | W65: 0 | X65: ー | AB65: ー | AD65: - | AE65: 1 | AF65: 0.95 | AH65: ー | AI65: ー | AJ65: ー | AT65: =ABS(入力シート!N76) -> 0 | AU65: =入力シート!O76 -> 0 | AV65: 0 | AW65: 0 | AX65: 0 | AY65: 0 | AZ65: -55 | BA65: 88.8 | BB65: 17.4 | BC65: OK | BD65: ー | BE65: OK | BF65: ー | BG65: OK | BH65: ー | BI65: ー | BK65: =入力シート!J76 -> 0 | BL65: =入力シート!K76 -> 0 | BM65: 180 | BN65: 0 | BO65: 0 | BP65: 350 | BQ65: 70 | BS65: 0.6666666667 | BT65: 0 | BX65: 0 | CB65: 0 | CC65: 0.6666666667 | CD65: 5492 | CE65: OK | CF65: ー | CG65: OK | CH65: ー | CJ65: ー | CK65: ー
B66: =入力シート!F77 -> 0 | C66: =入力シート!G77 -> 0 | D66: =入力シート!H77 -> 0 | E66: =入力シート!I77 -> 0 | F66: =入力シート!L77 -> 0 | M66: 326.9907026 | N66: 42.4 | O66: 164.3 | P66: -98.5 | T66: 0 | U66: 0 | V66: 0 | W66: 0 | X66: ー | AB66: ー | AD66: - | AE66: 1 | AF66: 0.95 | AH66: ー | AI66: ー | AJ66: ー | AT66: =ABS(入力シート!N77) -> 0 | AU66: =入力シート!O77 -> 0 | AV66: 0 | AW66: 0 | AX66: 0 | AY66: 0 | AZ66: -55 | BA66: 88.8 | BB66: 17.4 | BC66: OK | BD66: ー | BE66: OK | BF66: ー | BG66: OK | BH66: ー | BI66: ー | BK66: =入力シート!J77 -> 0 | BL66: =入力シート!K77 -> 0 | BM66: 180 | BN66: 0 | BO66: 0 | BP66: 350 | BQ66: 70 | BS66: 0.6666666667 | BT66: 0 | BX66: 0 | CB66: 0 | CC66: 0.6666666667 | CD66: 5492 | CE66: OK | CF66: ー | CG66: OK | CH66: ー | CJ66: ー | CK66: ー
B67: =入力シート!F78 -> 0 | C67: =入力シート!G78 -> 0 | D67: =入力シート!H78 -> 0 | E67: =入力シート!I78 -> 0 | F67: =入力シート!L78 -> 0 | M67: 326.9907026 | N67: 42.4 | O67: 164.3 | P67: -98.5 | T67: 0 | U67: 0 | V67: 0 | W67: 0 | X67: ー | AB67: ー | AD67: - | AE67: 1 | AF67: 0.95 | AH67: ー | AI67: ー | AJ67: ー | AT67: =ABS(入力シート!N78) -> 0 | AU67: =入力シート!O78 -> 0 | AV67: 0 | AW67: 0 | AX67: 0 | AY67: 0 | AZ67: -55 | BA67: 88.8 | BB67: 17.4 | BC67: OK | BD67: ー | BE67: OK | BF67: ー | BG67: OK | BH67: ー | BI67: ー | BK67: =入力シート!J78 -> 0 | BL67: =入力シート!K78 -> 0 | BM67: 180 | BN67: 0 | BO67: 0 | BP67: 350 | BQ67: 70 | BS67: 0.6666666667 | BT67: 0 | BX67: 0 | CB67: 0 | CC67: 0.6666666667 | CD67: 5492 | CE67: OK | CF67: ー | CG67: OK | CH67: ー | CJ67: ー | CK67: ー
B68: =入力シート!F79 -> 0 | C68: =入力シート!G79 -> 0 | D68: =入力シート!H79 -> 0 | E68: =入力シート!I79 -> 0 | F68: =入力シート!L79 -> 0 | M68: 326.9907026 | N68: 42.4 | O68: 164.3 | P68: -98.5 | T68: 0 | U68: 0 | V68: 0 | W68: 0 | X68: ー | AB68: ー | AD68: - | AE68: 1 | AF68: 0.95 | AH68: ー | AI68: ー | AJ68: ー | AT68: =ABS(入力シート!N79) -> 0 | AU68: =入力シート!O79 -> 0 | AV68: 0 | AW68: 0 | AX68: 0 | AY68: 0 | AZ68: -55 | BA68: 88.8 | BB68: 17.4 | BC68: OK | BD68: ー | BE68: OK | BF68: ー | BG68: OK | BH68: ー | BI68: ー | BK68: =入力シート!J79 -> 0 | BL68: =入力シート!K79 -> 0 | BM68: 180 | BN68: 0 | BO68: 0 | BP68: 350 | BQ68: 70 | BS68: 0.6666666667 | BT68: 0 | BX68: 0 | CB68: 0 | CC68: 0.6666666667 | CD68: 5492 | CE68: OK | CF68: ー | CG68: OK | CH68: ー | CJ68: ー | CK68: ー
B69: =入力シート!F80 -> 0 | C69: =入力シート!G80 -> 0 | D69: =入力シート!H80 -> 0 | E69: =入力シート!I80 -> 0 | F69: =入力シート!L80 -> 0 | M69: 326.9907026 | N69: 42.4 | O69: 164.3 | P69: -98.5 | T69: 0 | U69: 0 | V69: 0 | W69: 0 | X69: ー | AB69: ー | AD69: - | AE69: 1 | AF69: 0.95 | AH69: ー | AI69: ー | AJ69: ー | AT69: =ABS(入力シート!N80) -> 0 | AU69: =入力シート!O80 -> 0 | AV69: 0 | AW69: =(AT69*(E69/1000))/(P69/1000) -> 0 | AX69: 0 | AY69: 0 | AZ69: =IF(F69=3,63.2,IF(F69=2,63.2,55))*-1 -> -55 | BA69: =IF(F69=3,127.8,IF(F69=2,107.6,88.8)) -> 88.8 | BB69: =IF(F69=3,23.1,IF(F69=2,21,17.4)) -> 17.4 | BC69: OK | BD69: ー | BE69: OK | BF69: ー | BG69: OK | BH69: ー | BI69: =IF(AND(AT69=0,AU69=0),"ー",IF(AND(BC69="OK",BE69="OK",BG69="OK"),"OK","NG")) -> ー | BK69: =入力シート!J80 -> 0 | BL69: =入力シート!K80 -> 0 | BM69: 180 | BN69: 0 | BO69: 0 | BP69: 350 | BQ69: 70 | BS69: 0.6666666667 | BT69: 0 | BX69: 0 | CB69: =CC69*BK69*CD69/1000 -> 0 | CC69: 0.6666666667 | CD69: 5492 | CE69: OK | CF69: ー | CG69: OK | CH69: ー | CJ69: ー | CK69: ー
B70: =入力シート!F81 -> 0 | C70: =入力シート!G81 -> 0 | D70: =入力シート!H81 -> 0 | E70: =入力シート!I81 -> 0 | F70: =入力シート!L81 -> 0 | M70: 326.9907026 | N70: 42.4 | O70: 164.3 | P70: -98.5 | T70: 0 | U70: 0 | V70: 0 | W70: 0 | X70: =IF(C70=0,"ー",U70-105) -> ー | AB70: =IF(C70=0,"ー",IF(AI70>=AL70,ROUNDDOWN(AA70*AC70,2),"ー")) -> ー | AD70: - | AE70: 1 | AF70: 0.95 | AG70: =IF(S70>=10290,1,0.9) ->  | AH70: =IF(C70=0,"ー",I70*AC70) -> ー | AI70: =IF(C70=0,"ー",H70*AC70) -> ー | AJ70: =IF(C70=0,"ー",IF(H70>=AL70,ROUNDDOWN(AB70*(1000/(C70-105))/1.96,1),"ー")) -> ー | AT70: =ABS(入力シート!N81) -> 0 | AU70: =入力シート!O81 -> 0 | AV70: =AU70/2 -> 0 | AW70: 0 | AX70: =AV70+AW70 -> 0 | AY70: =AV70-AW70 -> 0 | AZ70: -55 | BA70: 88.8 | BB70: 17.4 | BC70: =IF(AX70<=BA70,"OK","NG") -> OK | BD70: =IF(AND(AT70=0,AU70=0),"ー",IF(0<=AX70,AX70/BA70,AX70/AZ70)) -> ー | BE70: =IF(AY70>=AZ70,"OK","NG") -> OK | BF70: =IF(AND(AT70=0,AU70=0),"ー",IF(0>=AY70,AY70/AZ70,AY70/BA70)) -> ー | BG70: =IF(AT70<=BB70,"OK","NG") -> OK | BH70: =IF(AND(AT70=0,AU70=0),"ー",AT70/BB70) -> ー | BI70: ー | BK70: =入力シート!J81 -> 0 | BL70: =入力シート!K81 -> 0 | BM70: 180 | BN70: =BO70*BP70*BQ70/1000*-1 -> 0 | BO70: =MIN(BK70/10,1.35+BK70/25)*1.5 -> 0 | BP70: 350 | BQ70: 70 | BR70: =BS70*BT70*BU70/1000 ->  | BS70: =2/3 -> 0.6666666667 | BT70: =0.31*SQRT(BK70) -> 0 | BU70: =IF(2*BL70=BM70,(PI()*BL70^2)/2,(BM70*BZ70)+BV70) ->  | BV70: =BW70-CA70 ->  | BW70: =PI()*BX70^2*((2*BY70)/(2*PI())) ->  | BX70: =BL70 -> 0 | BY70: =ATAN((1/2)*BM70/BZ70) ->  | BZ70: =SQRT(BX70^2-(BM70/2)^2) ->  | CA70: =(BM70*BZ70)/2 ->  | CB70: 0 | CC70: =2/3 -> 0.6666666667 | CD70: 5492 | CE70: =IF(AX70<=CB70,"OK","NG") -> OK | CF70: =IF(AND(AT70=0,AU70=0),"ー",IF(0<=AX70,AX70/CB70,AX70/BN70)) -> ー | CG70: =IF(AY70>=BN70,"OK","NG") -> OK | CH70: =IF(AND(AT70=0,AU70=0),"ー",IF(0>=AY70,AY70/BN70,AY70/CB70)) -> ー | CI70: =IF(AT70<=BR70,"OK","NG") ->  | CJ70: =IF(AND(AT70=0,AU70=0),"ー",AT70/BR70) -> ー | CK70: =IF(AND(AT70=0,AU70=0),"ー",IF(AND(CE70="OK",CG70="OK",CI70="OK"),"OK","NG")) -> ー
B71: =入力シート!F82 -> 0 | C71: =入力シート!G82 -> 0 | D71: =入力シート!H82 -> 0 | E71: =入力シート!I82 -> 0 | F71: =入力シート!L82 -> 0 | M71: 326.9907026 | N71: 42.4 | O71: 164.3 | P71: -98.5 | T71: 0 | U71: 0 | V71: 0 | W71: 0 | X71: ー | AB71: ー | AD71: - | AE71: 1 | AF71: 0.95 | AH71: ー | AI71: ー | AJ71: ー | AT71: =ABS(入力シート!N82) -> 0 | AU71: =入力シート!O82 -> 0 | AV71: 0 | AW71: 0 | AX71: 0 | AY71: 0 | AZ71: -55 | BA71: 88.8 | BB71: 17.4 | BC71: OK | BD71: ー | BE71: OK | BF71: ー | BG71: OK | BH71: ー | BI71: ー | BK71: =入力シート!J82 -> 0 | BL71: =入力シート!K82 -> 0 | BM71: 180 | BN71: 0 | BO71: 0 | BP71: 350 | BQ71: 70 | BS71: 0.6666666667 | BT71: 0 | BX71: 0 | CB71: 0 | CC71: 0.6666666667 | CD71: 5492 | CE71: OK | CF71: ー | CG71: OK | CH71: ー | CJ71: ー | CK71: ー
B72: =入力シート!F83 -> 0 | C72: =入力シート!G83 -> 0 | D72: =入力シート!H83 -> 0 | E72: =入力シート!I83 -> 0 | F72: =入力シート!L83 -> 0 | M72: 326.9907026 | N72: 42.4 | O72: 164.3 | P72: -98.5 | T72: 0 | U72: 0 | V72: 0 | W72: 0 | X72: ー | AB72: ー | AD72: - | AE72: 1 | AF72: 0.95 | AH72: ー | AI72: ー | AJ72: ー | AT72: =ABS(入力シート!N83) -> 0 | AU72: =入力シート!O83 -> 0 | AV72: 0 | AW72: 0 | AX72: 0 | AY72: 0 | AZ72: -55 | BA72: 88.8 | BB72: 17.4 | BC72: OK | BD72: ー | BE72: OK | BF72: ー | BG72: OK | BH72: ー | BI72: ー | BK72: =入力シート!J83 -> 0 | BL72: =入力シート!K83 -> 0 | BM72: 180 | BN72: 0 | BO72: 0 | BP72: 350 | BQ72: 70 | BS72: 0.6666666667 | BT72: 0 | BX72: 0 | CB72: 0 | CC72: 0.6666666667 | CD72: 5492 | CE72: OK | CF72: ー | CG72: OK | CH72: ー | CJ72: ー | CK72: ー
B73: =入力シート!F84 -> 0 | C73: =入力シート!G84 -> 0 | D73: =入力シート!H84 -> 0 | E73: =入力シート!I84 -> 0 | F73: =入力シート!L84 -> 0 | H73: =((I73*J73)/(I73+J73))*0.85 ->  | I73: =M73*L73 ->  | J73: =R73 ->  | L73: =0.0000319*S73+0.665 ->  | M73: =((P73^2)/((1/N73)+(1/O73)))/1000 -> 326.9907026 | N73: =42400/1000 -> 42.4 | O73: =164300/1000 -> 164.3 | P73: =1.05*C73-98.5 -> -98.5 | R73: =(((3*S73*T73)/W73))/1000000 ->  | T73: =(V73*(U73^3))/12 -> 0 | U73: =C73 -> 0 | V73: =D73 -> 0 | W73: =E73 -> 0 | X73: ー | AB73: ー | AC73: =ROUNDDOWN(AD73*AE73*AF73*AG73,2) ->  | AD73: =IF(F73=3,1,IF(F73=2,0.85,IF(F73=1,0.75,"-"))) -> - | AE73: 1 | AF73: 0.95 | AH73: ー | AI73: ー | AJ73: ー | AT73: =ABS(入力シート!N84) -> 0 | AU73: =入力シート!O84 -> 0 | AV73: 0 | AW73: 0 | AX73: 0 | AY73: 0 | AZ73: -55 | BA73: 88.8 | BB73: 17.4 | BC73: OK | BD73: ー | BE73: OK | BF73: ー | BG73: OK | BH73: ー | BI73: ー | BK73: =入力シート!J84 -> 0 | BL73: =入力シート!K84 -> 0 | BM73: 180 | BN73: 0 | BO73: 0 | BP73: 350 | BQ73: 70 | BS73: 0.6666666667 | BT73: 0 | BX73: 0 | CB73: 0 | CC73: 0.6666666667 | CD73: 5492 | CE73: OK | CF73: ー | CG73: OK | CH73: ー | CJ73: ー | CK73: ー
B74: =入力シート!F85 -> 0 | C74: =入力シート!G85 -> 0 | D74: =入力シート!H85 -> 0 | E74: =入力シート!I85 -> 0 | F74: =入力シート!L85 -> 0 | H74: =((I74*J74)/(I74+J74))*0.85 ->  | J74: =R74 ->  | L74: =0.0000319*S74+0.665 ->  | M74: =((P74^2)/((1/N74)+(1/O74)))/1000 -> 326.9907026 | N74: =42400/1000 -> 42.4 | O74: =164300/1000 -> 164.3 | P74: -98.5 | R74: =(((3*S74*T74)/W74))/1000000 ->  | T74: 0 | U74: 0 | V74: 0 | W74: 0 | X74: ー | AB74: ー | AC74: =ROUNDDOWN(AD74*AE74*AF74*AG74,2) ->  | AD74: =IF(F74=3,1,IF(F74=2,0.85,IF(F74=1,0.75,"-"))) -> - | AE74: 1 | AF74: 0.95 | AH74: ー | AI74: ー | AJ74: ー | AT74: =ABS(入力シート!N85) -> 0 | AU74: =入力シート!O85 -> 0 | AV74: 0 | AW74: 0 | AX74: 0 | AY74: 0 | AZ74: -55 | BA74: 88.8 | BB74: 17.4 | BC74: OK | BD74: ー | BE74: OK | BF74: ー | BG74: OK | BH74: ー | BI74: ー | BK74: =入力シート!J85 -> 0 | BL74: =入力シート!K85 -> 0 | BM74: 180 | BN74: 0 | BO74: 0 | BP74: 350 | BQ74: 70 | BS74: 0.6666666667 | BT74: 0 | BX74: 0 | CB74: 0 | CC74: 0.6666666667 | CD74: 5492 | CE74: OK | CF74: ー | CG74: OK | CH74: ー | CJ74: ー | CK74: ー
B75: =入力シート!F86 -> 0 | C75: =入力シート!G86 -> 0 | D75: =入力シート!H86 -> 0 | E75: =入力シート!I86 -> 0 | F75: =入力シート!L86 -> 0 | M75: 326.9907026 | N75: 42.4 | O75: 164.3 | P75: -98.5 | T75: 0 | U75: 0 | V75: 0 | W75: 0 | X75: ー | AB75: ー | AD75: - | AE75: 1 | AF75: 0.95 | AH75: ー | AI75: ー | AJ75: ー | AT75: =ABS(入力シート!N86) -> 0 | AU75: =入力シート!O86 -> 0 | AV75: 0 | AW75: 0 | AX75: 0 | AY75: 0 | AZ75: -55 | BA75: 88.8 | BB75: 17.4 | BC75: OK | BD75: ー | BE75: OK | BF75: ー | BG75: OK | BH75: ー | BI75: ー | BK75: =入力シート!J86 -> 0 | BL75: =入力シート!K86 -> 0 | BM75: 180 | BN75: 0 | BO75: 0 | BP75: 350 | BQ75: 70 | BS75: 0.6666666667 | BT75: 0 | BX75: 0 | CB75: 0 | CC75: 0.6666666667 | CD75: 5492 | CE75: OK | CF75: ー | CG75: OK | CH75: ー | CJ75: ー | CK75: ー
B76: =入力シート!F87 -> 0 | C76: =入力シート!G87 -> 0 | D76: =入力シート!H87 -> 0 | E76: =入力シート!I87 -> 0 | F76: =入力シート!L87 -> 0 | M76: 326.9907026 | N76: 42.4 | O76: 164.3 | P76: -98.5 | T76: 0 | U76: 0 | V76: 0 | W76: 0 | X76: ー | AB76: ー | AD76: - | AE76: 1 | AF76: 0.95 | AH76: ー | AI76: ー | AJ76: ー | AT76: =ABS(入力シート!N87) -> 0 | AU76: =入力シート!O87 -> 0 | AV76: 0 | AW76: 0 | AX76: 0 | AY76: 0 | AZ76: -55 | BA76: 88.8 | BB76: 17.4 | BC76: OK | BD76: ー | BE76: OK | BF76: ー | BG76: OK | BH76: ー | BI76: ー | BK76: =入力シート!J87 -> 0 | BL76: =入力シート!K87 -> 0 | BM76: 180 | BN76: 0 | BO76: 0 | BP76: 350 | BQ76: 70 | BS76: 0.6666666667 | BT76: 0 | BX76: 0 | CB76: 0 | CC76: 0.6666666667 | CD76: 5492 | CE76: OK | CF76: ー | CG76: OK | CH76: ー | CJ76: ー | CK76: ー
B77: =入力シート!F88 -> 0 | C77: =入力シート!G88 -> 0 | D77: =入力シート!H88 -> 0 | E77: =入力シート!I88 -> 0 | F77: =入力シート!L88 -> 0 | M77: 326.9907026 | N77: 42.4 | O77: 164.3 | P77: -98.5 | T77: 0 | U77: 0 | V77: 0 | W77: 0 | X77: ー | AB77: ー | AD77: - | AE77: 1 | AF77: 0.95 | AH77: ー | AI77: ー | AJ77: ー | AT77: =ABS(入力シート!N88) -> 0 | AU77: =入力シート!O88 -> 0 | AV77: 0 | AW77: 0 | AX77: 0 | AY77: 0 | AZ77: -55 | BA77: 88.8 | BB77: 17.4 | BC77: OK | BD77: ー | BE77: OK | BF77: ー | BG77: OK | BH77: ー | BI77: ー | BK77: =入力シート!J88 -> 0 | BL77: =入力シート!K88 -> 0 | BM77: 180 | BN77: 0 | BO77: 0 | BP77: 350 | BQ77: 70 | BS77: 0.6666666667 | BT77: 0 | BX77: 0 | CB77: 0 | CC77: 0.6666666667 | CD77: 5492 | CE77: OK | CF77: ー | CG77: OK | CH77: ー | CJ77: ー | CK77: ー
B78: =入力シート!F89 -> 0 | C78: =入力シート!G89 -> 0 | D78: =入力シート!H89 -> 0 | E78: =入力シート!I89 -> 0 | F78: =入力シート!L89 -> 0 | M78: 326.9907026 | N78: 42.4 | O78: 164.3 | P78: -98.5 | T78: 0 | U78: 0 | V78: 0 | W78: 0 | X78: ー | AB78: ー | AD78: - | AE78: 1 | AF78: 0.95 | AH78: ー | AI78: ー | AJ78: ー | AT78: =ABS(入力シート!N89) -> 0 | AU78: =入力シート!O89 -> 0 | AV78: 0 | AW78: 0 | AX78: 0 | AY78: 0 | AZ78: -55 | BA78: 88.8 | BB78: 17.4 | BC78: OK | BD78: ー | BE78: OK | BF78: ー | BG78: OK | BH78: ー | BI78: ー | BK78: =入力シート!J89 -> 0 | BL78: =入力シート!K89 -> 0 | BM78: 180 | BN78: 0 | BO78: 0 | BP78: 350 | BQ78: 70 | BS78: 0.6666666667 | BT78: 0 | BX78: 0 | CB78: 0 | CC78: 0.6666666667 | CD78: 5492 | CE78: OK | CF78: ー | CG78: OK | CH78: ー | CJ78: ー | CK78: ー
B79: =入力シート!F90 -> 0 | C79: =入力シート!G90 -> 0 | D79: =入力シート!H90 -> 0 | E79: =入力シート!I90 -> 0 | F79: =入力シート!L90 -> 0 | M79: 326.9907026 | N79: 42.4 | O79: 164.3 | P79: -98.5 | T79: 0 | U79: 0 | V79: 0 | W79: 0 | X79: ー | AB79: ー | AD79: - | AE79: 1 | AF79: 0.95 | AH79: ー | AI79: ー | AJ79: ー | AT79: =ABS(入力シート!N90) -> 0 | AU79: =入力シート!O90 -> 0 | AV79: 0 | AW79: 0 | AX79: 0 | AY79: 0 | AZ79: -55 | BA79: 88.8 | BB79: 17.4 | BC79: OK | BD79: ー | BE79: OK | BF79: ー | BG79: OK | BH79: ー | BI79: ー | BK79: =入力シート!J90 -> 0 | BL79: =入力シート!K90 -> 0 | BM79: 180 | BN79: 0 | BO79: 0 | BP79: 350 | BQ79: 70 | BS79: 0.6666666667 | BT79: 0 | BX79: 0 | CB79: 0 | CC79: 0.6666666667 | CD79: 5492 | CE79: OK | CF79: ー | CG79: OK | CH79: ー | CJ79: ー | CK79: ー
B80: =入力シート!F91 -> 0 | C80: =入力シート!G91 -> 0 | D80: =入力シート!H91 -> 0 | E80: =入力シート!I91 -> 0 | F80: =入力シート!L91 -> 0 | M80: 326.9907026 | N80: 42.4 | O80: 164.3 | P80: -98.5 | T80: 0 | U80: 0 | V80: 0 | W80: 0 | X80: ー | AB80: ー | AD80: - | AE80: 1 | AF80: 0.95 | AH80: ー | AI80: ー | AJ80: ー | AT80: =ABS(入力シート!N91) -> 0 | AU80: =入力シート!O91 -> 0 | AV80: 0 | AW80: 0 | AX80: 0 | AY80: 0 | AZ80: -55 | BA80: 88.8 | BB80: 17.4 | BC80: OK | BD80: ー | BE80: OK | BF80: ー | BG80: OK | BH80: ー | BI80: ー | BK80: =入力シート!J91 -> 0 | BL80: =入力シート!K91 -> 0 | BM80: 180 | BN80: 0 | BO80: 0 | BP80: 350 | BQ80: 70 | BS80: 0.6666666667 | BT80: 0 | BX80: 0 | CB80: 0 | CC80: 0.6666666667 | CD80: 5492 | CE80: OK | CF80: ー | CG80: OK | CH80: ー | CJ80: ー | CK80: ー
B81: =入力シート!F92 -> 0 | C81: =入力シート!G92 -> 0 | D81: =入力シート!H92 -> 0 | E81: =入力シート!I92 -> 0 | F81: =入力シート!L92 -> 0 | M81: 326.9907026 | N81: 42.4 | O81: 164.3 | P81: -98.5 | T81: 0 | U81: 0 | V81: 0 | W81: 0 | X81: ー | AB81: ー | AD81: - | AE81: 1 | AF81: 0.95 | AH81: ー | AI81: ー | AJ81: ー | AT81: =ABS(入力シート!N92) -> 0 | AU81: =入力シート!O92 -> 0 | AV81: 0 | AW81: 0 | AX81: 0 | AY81: 0 | AZ81: -55 | BA81: 88.8 | BB81: 17.4 | BC81: OK | BD81: ー | BE81: OK | BF81: ー | BG81: OK | BH81: ー | BI81: ー | BK81: =入力シート!J92 -> 0 | BL81: =入力シート!K92 -> 0 | BM81: 180 | BN81: 0 | BO81: 0 | BP81: 350 | BQ81: 70 | BS81: 0.6666666667 | BT81: 0 | BX81: 0 | CB81: 0 | CC81: 0.6666666667 | CD81: 5492 | CE81: OK | CF81: ー | CG81: OK | CH81: ー | CJ81: ー | CK81: ー
B82: =入力シート!F93 -> 0 | C82: =入力シート!G93 -> 0 | D82: =入力シート!H93 -> 0 | E82: =入力シート!I93 -> 0 | F82: =入力シート!L93 -> 0 | M82: 326.9907026 | N82: 42.4 | O82: 164.3 | P82: -98.5 | S82: =VLOOKUP(B82,$AN$5:$AO$21,2,TRUE) ->  | T82: 0 | U82: 0 | V82: 0 | W82: 0 | X82: ー | Y82: =IF(H82>=AL82,H82/120,"―") ->  | Z82: =IF(H82>=AL82,Y82*AC82,"ー") ->  | AA82: =IF(H82>=AL82,Y82/(E82/1000),"ー") ->  | AB82: ー | AD82: - | AE82: 1 | AF82: 0.95 | AH82: ー | AI82: ー | AJ82: ー | AL82: =VLOOKUP(C82,$AQ$5:$AR$13,2,TRUE) ->  | AT82: =ABS(入力シート!N93) -> 0 | AU82: =入力シート!O93 -> 0 | AV82: 0 | AW82: 0 | AX82: 0 | AY82: 0 | AZ82: -55 | BA82: 88.8 | BB82: 17.4 | BC82: OK | BD82: ー | BE82: OK | BF82: ー | BG82: OK | BH82: ー | BI82: ー | BK82: =入力シート!J93 -> 0 | BL82: =入力シート!K93 -> 0 | BM82: 180 | BN82: 0 | BO82: 0 | BP82: 350 | BQ82: 70 | BS82: 0.6666666667 | BT82: 0 | BX82: 0 | CB82: 0 | CC82: 0.6666666667 | CD82: 5492 | CE82: OK | CF82: ー | CG82: OK | CH82: ー | CJ82: ー | CK82: ー
B83: =入力シート!F94 -> 0 | C83: =入力シート!G94 -> 0 | D83: =入力シート!H94 -> 0 | E83: =入力シート!I94 -> 0 | F83: =入力シート!L94 -> 0 | M83: 326.9907026 | N83: 42.4 | O83: 164.3 | P83: -98.5 | T83: 0 | U83: 0 | V83: 0 | W83: 0 | X83: ー | AB83: ー | AD83: - | AE83: 1 | AF83: 0.95 | AH83: ー | AI83: ー | AJ83: ー | AT83: =ABS(入力シート!N94) -> 0 | AU83: =入力シート!O94 -> 0 | AV83: 0 | AW83: 0 | AX83: 0 | AY83: 0 | AZ83: -55 | BA83: 88.8 | BB83: 17.4 | BC83: OK | BD83: ー | BE83: OK | BF83: ー | BG83: OK | BH83: ー | BI83: ー | BK83: =入力シート!J94 -> 0 | BL83: =入力シート!K94 -> 0 | BM83: 180 | BN83: 0 | BO83: 0 | BP83: 350 | BQ83: 70 | BS83: 0.6666666667 | BT83: 0 | BX83: 0 | CB83: 0 | CC83: 0.6666666667 | CD83: 5492 | CE83: OK | CF83: ー | CG83: OK | CH83: ー | CJ83: ー | CK83: ー
B84: =入力シート!F95 -> 0 | C84: =入力シート!G95 -> 0 | D84: =入力シート!H95 -> 0 | E84: =入力シート!I95 -> 0 | F84: =入力シート!L95 -> 0 | M84: 326.9907026 | N84: 42.4 | O84: 164.3 | P84: -98.5 | T84: 0 | U84: 0 | V84: 0 | W84: 0 | X84: ー | AB84: ー | AD84: - | AE84: 1 | AF84: 0.95 | AH84: ー | AI84: ー | AJ84: ー | AT84: =ABS(入力シート!N95) -> 0 | AU84: =入力シート!O95 -> 0 | AV84: 0 | AW84: 0 | AX84: 0 | AY84: 0 | AZ84: -55 | BA84: 88.8 | BB84: 17.4 | BC84: OK | BD84: ー | BE84: OK | BF84: ー | BG84: OK | BH84: ー | BI84: ー | BK84: =入力シート!J95 -> 0 | BL84: =入力シート!K95 -> 0 | BM84: 180 | BN84: 0 | BO84: 0 | BP84: 350 | BQ84: 70 | BS84: 0.6666666667 | BT84: 0 | BX84: 0 | CB84: 0 | CC84: 0.6666666667 | CD84: 5492 | CE84: OK | CF84: ー | CG84: OK | CH84: ー | CJ84: ー | CK84: ー
B85: =入力シート!F96 -> 0 | C85: =入力シート!G96 -> 0 | D85: =入力シート!H96 -> 0 | E85: =入力シート!I96 -> 0 | F85: =入力シート!L96 -> 0 | M85: 326.9907026 | N85: 42.4 | O85: 164.3 | P85: -98.5 | T85: 0 | U85: 0 | V85: 0 | W85: 0 | X85: ー | AB85: ー | AD85: - | AE85: 1 | AF85: 0.95 | AH85: ー | AI85: ー | AJ85: ー | AT85: =ABS(入力シート!N96) -> 0 | AU85: =入力シート!O96 -> 0 | AV85: 0 | AW85: 0 | AX85: 0 | AY85: 0 | AZ85: -55 | BA85: 88.8 | BB85: 17.4 | BC85: OK | BD85: ー | BE85: OK | BF85: ー | BG85: OK | BH85: ー | BI85: ー | BK85: =入力シート!J96 -> 0 | BL85: =入力シート!K96 -> 0 | BM85: 180 | BN85: 0 | BO85: 0 | BP85: 350 | BQ85: 70 | BS85: 0.6666666667 | BT85: 0 | BX85: 0 | CB85: 0 | CC85: 0.6666666667 | CD85: 5492 | CE85: OK | CF85: ー | CG85: OK | CH85: ー | CJ85: ー | CK85: ー
B86: =入力シート!F97 -> 0 | C86: =入力シート!G97 -> 0 | D86: =入力シート!H97 -> 0 | E86: =入力シート!I97 -> 0 | F86: =入力シート!L97 -> 0 | M86: 326.9907026 | N86: 42.4 | O86: 164.3 | P86: -98.5 | T86: 0 | U86: 0 | V86: 0 | W86: 0 | X86: ー | AB86: ー | AD86: - | AE86: 1 | AF86: 0.95 | AH86: ー | AI86: ー | AJ86: ー | AT86: =ABS(入力シート!N97) -> 0 | AU86: =入力シート!O97 -> 0 | AV86: 0 | AW86: 0 | AX86: 0 | AY86: 0 | AZ86: -55 | BA86: 88.8 | BB86: 17.4 | BC86: OK | BD86: ー | BE86: OK | BF86: ー | BG86: OK | BH86: ー | BI86: ー | BK86: =入力シート!J97 -> 0 | BL86: =入力シート!K97 -> 0 | BM86: 180 | BN86: 0 | BO86: 0 | BP86: 350 | BQ86: 70 | BS86: 0.6666666667 | BT86: 0 | BX86: 0 | CB86: 0 | CC86: 0.6666666667 | CD86: 5492 | CE86: OK | CF86: ー | CG86: OK | CH86: ー | CJ86: ー | CK86: ー
B87: =入力シート!F98 -> 0 | C87: =入力シート!G98 -> 0 | D87: =入力シート!H98 -> 0 | E87: =入力シート!I98 -> 0 | F87: =入力シート!L98 -> 0 | M87: 326.9907026 | N87: 42.4 | O87: 164.3 | P87: -98.5 | T87: 0 | U87: 0 | V87: 0 | W87: 0 | X87: ー | AB87: ー | AD87: - | AE87: 1 | AF87: 0.95 | AH87: ー | AI87: ー | AJ87: ー | AT87: =ABS(入力シート!N98) -> 0 | AU87: =入力シート!O98 -> 0 | AV87: 0 | AW87: 0 | AX87: 0 | AY87: 0 | AZ87: -55 | BA87: 88.8 | BB87: 17.4 | BC87: OK | BD87: ー | BE87: OK | BF87: ー | BG87: OK | BH87: ー | BI87: ー | BK87: =入力シート!J98 -> 0 | BL87: =入力シート!K98 -> 0 | BM87: 180 | BN87: 0 | BO87: 0 | BP87: 350 | BQ87: 70 | BS87: 0.6666666667 | BT87: 0 | BX87: 0 | CB87: 0 | CC87: 0.6666666667 | CD87: 5492 | CE87: OK | CF87: ー | CG87: OK | CH87: ー | CJ87: ー | CK87: ー
B88: =入力シート!F99 -> 0 | C88: =入力シート!G99 -> 0 | D88: =入力シート!H99 -> 0 | E88: =入力シート!I99 -> 0 | F88: =入力シート!L99 -> 0 | M88: 326.9907026 | N88: 42.4 | O88: 164.3 | P88: -98.5 | T88: 0 | U88: 0 | V88: 0 | W88: 0 | X88: ー | AB88: ー | AD88: - | AE88: 1 | AF88: 0.95 | AH88: ー | AI88: ー | AJ88: ー | AT88: =ABS(入力シート!N99) -> 0 | AU88: =入力シート!O99 -> 0 | AV88: 0 | AW88: 0 | AX88: 0 | AY88: 0 | AZ88: -55 | BA88: 88.8 | BB88: 17.4 | BC88: OK | BD88: ー | BE88: OK | BF88: ー | BG88: OK | BH88: ー | BI88: ー | BK88: =入力シート!J99 -> 0 | BL88: =入力シート!K99 -> 0 | BM88: 180 | BN88: 0 | BO88: 0 | BP88: 350 | BQ88: 70 | BS88: 0.6666666667 | BT88: 0 | BX88: 0 | CB88: 0 | CC88: 0.6666666667 | CD88: 5492 | CE88: OK | CF88: ー | CG88: OK | CH88: ー | CJ88: ー | CK88: ー
B89: =入力シート!F100 -> 0 | C89: =入力シート!G100 -> 0 | D89: =入力シート!H100 -> 0 | E89: =入力シート!I100 -> 0 | F89: =入力シート!L100 -> 0 | M89: 326.9907026 | N89: 42.4 | O89: 164.3 | P89: -98.5 | T89: 0 | U89: 0 | V89: 0 | W89: 0 | X89: ー | AB89: ー | AD89: - | AE89: 1 | AF89: 0.95 | AH89: ー | AI89: ー | AJ89: ー | AT89: =ABS(入力シート!N100) -> 0 | AU89: =入力シート!O100 -> 0 | AV89: 0 | AW89: 0 | AX89: 0 | AY89: 0 | AZ89: -55 | BA89: 88.8 | BB89: 17.4 | BC89: OK | BD89: ー | BE89: OK | BF89: ー | BG89: OK | BH89: ー | BI89: ー | BK89: =入力シート!J100 -> 0 | BL89: =入力シート!K100 -> 0 | BM89: 180 | BN89: 0 | BO89: 0 | BP89: 350 | BQ89: 70 | BS89: 0.6666666667 | BT89: 0 | BX89: 0 | CB89: 0 | CC89: 0.6666666667 | CD89: 5492 | CE89: OK | CF89: ー | CG89: OK | CH89: ー | CJ89: ー | CK89: ー
B90: =入力シート!F101 -> 0 | C90: =入力シート!G101 -> 0 | D90: =入力シート!H101 -> 0 | E90: =入力シート!I101 -> 0 | F90: =入力シート!L101 -> 0 | H90: =((I90*J90)/(I90+J90))*0.85 ->  | I90: =M90*L90 ->  | J90: =R90 ->  | L90: =0.0000319*S90+0.665 ->  | M90: =((P90^2)/((1/N90)+(1/O90)))/1000 -> 326.9907026 | N90: =42400/1000 -> 42.4 | O90: =164300/1000 -> 164.3 | P90: =1.05*C90-98.5 -> -98.5 | R90: =(((3*S90*T90)/W90))/1000000 ->  | T90: =(V90*(U90^3))/12 -> 0 | U90: =C90 -> 0 | V90: =D90 -> 0 | W90: =E90 -> 0 | X90: ー | AB90: ー | AC90: =ROUNDDOWN(AD90*AE90*AF90*AG90,2) ->  | AD90: =IF(F90=3,1,IF(F90=2,0.85,IF(F90=1,0.75,"-"))) -> - | AE90: 1 | AF90: 0.95 | AH90: ー | AI90: ー | AJ90: ー | AT90: =ABS(入力シート!N101) -> 0 | AU90: =入力シート!O101 -> 0 | AV90: 0 | AW90: 0 | AX90: 0 | AY90: 0 | AZ90: -55 | BA90: 88.8 | BB90: 17.4 | BC90: OK | BD90: ー | BE90: OK | BF90: ー | BG90: OK | BH90: ー | BI90: ー | BK90: =入力シート!J101 -> 0 | BL90: =入力シート!K101 -> 0 | BM90: 180 | BN90: 0 | BO90: 0 | BP90: 350 | BQ90: 70 | BS90: 0.6666666667 | BT90: 0 | BX90: 0 | CB90: 0 | CC90: 0.6666666667 | CD90: 5492 | CE90: OK | CF90: ー | CG90: OK | CH90: ー | CJ90: ー | CK90: ー
B91: =入力シート!F102 -> 0 | C91: =入力シート!G102 -> 0 | D91: =入力シート!H102 -> 0 | E91: =入力シート!I102 -> 0 | F91: =入力シート!L102 -> 0 | H91: =((I91*J91)/(I91+J91))*0.85 ->  | J91: =R91 ->  | L91: =0.0000319*S91+0.665 ->  | M91: =((P91^2)/((1/N91)+(1/O91)))/1000 -> 326.9907026 | N91: =42400/1000 -> 42.4 | O91: =164300/1000 -> 164.3 | P91: -98.5 | R91: =(((3*S91*T91)/W91))/1000000 ->  | T91: 0 | U91: 0 | V91: 0 | W91: 0 | X91: ー | AB91: ー | AC91: =ROUNDDOWN(AD91*AE91*AF91*AG91,2) ->  | AD91: =IF(F91=3,1,IF(F91=2,0.85,IF(F91=1,0.75,"-"))) -> - | AE91: 1 | AF91: 0.95 | AH91: ー | AI91: ー | AJ91: ー | AT91: =ABS(入力シート!N102) -> 0 | AU91: =入力シート!O102 -> 0 | AV91: 0 | AW91: 0 | AX91: 0 | AY91: 0 | AZ91: -55 | BA91: 88.8 | BB91: 17.4 | BC91: OK | BD91: ー | BE91: OK | BF91: ー | BG91: OK | BH91: ー | BI91: ー | BK91: =入力シート!J102 -> 0 | BL91: =入力シート!K102 -> 0 | BM91: 180 | BN91: 0 | BO91: 0 | BP91: 350 | BQ91: 70 | BS91: 0.6666666667 | BT91: 0 | BX91: 0 | CB91: 0 | CC91: 0.6666666667 | CD91: 5492 | CE91: OK | CF91: ー | CG91: OK | CH91: ー | CJ91: ー | CK91: ー
B92: =入力シート!F103 -> 0 | C92: =入力シート!G103 -> 0 | D92: =入力シート!H103 -> 0 | E92: =入力シート!I103 -> 0 | F92: =入力シート!L103 -> 0 | M92: 326.9907026 | N92: 42.4 | O92: 164.3 | P92: -98.5 | T92: 0 | U92: 0 | V92: 0 | W92: 0 | X92: ー | AB92: ー | AD92: - | AE92: 1 | AF92: 0.95 | AH92: ー | AI92: ー | AJ92: ー | AT92: =ABS(入力シート!N103) -> 0 | AU92: =入力シート!O103 -> 0 | AV92: 0 | AW92: 0 | AX92: 0 | AY92: 0 | AZ92: -55 | BA92: 88.8 | BB92: 17.4 | BC92: OK | BD92: ー | BE92: OK | BF92: ー | BG92: OK | BH92: ー | BI92: ー | BK92: =入力シート!J103 -> 0 | BL92: =入力シート!K103 -> 0 | BM92: 180 | BN92: 0 | BO92: 0 | BP92: 350 | BQ92: 70 | BS92: 0.6666666667 | BT92: 0 | BX92: 0 | CB92: 0 | CC92: 0.6666666667 | CD92: 5492 | CE92: OK | CF92: ー | CG92: OK | CH92: ー | CJ92: ー | CK92: ー
B93: =入力シート!F104 -> 0 | C93: =入力シート!G104 -> 0 | D93: =入力シート!H104 -> 0 | E93: =入力シート!I104 -> 0 | F93: =入力シート!L104 -> 0 | M93: 326.9907026 | N93: 42.4 | O93: 164.3 | P93: -98.5 | T93: 0 | U93: 0 | V93: 0 | W93: 0 | X93: ー | AB93: ー | AD93: - | AE93: 1 | AF93: 0.95 | AH93: ー | AI93: ー | AJ93: ー | AT93: =ABS(入力シート!N104) -> 0 | AU93: =入力シート!O104 -> 0 | AV93: 0 | AW93: 0 | AX93: 0 | AY93: 0 | AZ93: -55 | BA93: 88.8 | BB93: 17.4 | BC93: OK | BD93: ー | BE93: OK | BF93: ー | BG93: OK | BH93: ー | BI93: ー | BK93: =入力シート!J104 -> 0 | BL93: =入力シート!K104 -> 0 | BM93: 180 | BN93: 0 | BO93: 0 | BP93: 350 | BQ93: 70 | BS93: 0.6666666667 | BT93: 0 | BX93: 0 | CB93: 0 | CC93: 0.6666666667 | CD93: 5492 | CE93: OK | CF93: ー | CG93: OK | CH93: ー | CJ93: ー | CK93: ー
B94: =入力シート!F105 -> 0 | C94: =入力シート!G105 -> 0 | D94: =入力シート!H105 -> 0 | E94: =入力シート!I105 -> 0 | F94: =入力シート!L105 -> 0 | M94: 326.9907026 | N94: 42.4 | O94: 164.3 | P94: -98.5 | T94: 0 | U94: 0 | V94: 0 | W94: 0 | X94: ー | AB94: ー | AD94: - | AE94: 1 | AF94: 0.95 | AH94: ー | AI94: ー | AJ94: ー | AT94: =ABS(入力シート!N105) -> 0 | AU94: =入力シート!O105 -> 0 | AV94: 0 | AW94: 0 | AX94: 0 | AY94: 0 | AZ94: -55 | BA94: 88.8 | BB94: 17.4 | BC94: OK | BD94: ー | BE94: OK | BF94: ー | BG94: OK | BH94: ー | BI94: ー | BK94: =入力シート!J105 -> 0 | BL94: =入力シート!K105 -> 0 | BM94: 180 | BN94: 0 | BO94: 0 | BP94: 350 | BQ94: 70 | BS94: 0.6666666667 | BT94: 0 | BX94: 0 | CB94: 0 | CC94: 0.6666666667 | CD94: 5492 | CE94: OK | CF94: ー | CG94: OK | CH94: ー | CJ94: ー | CK94: ー
B95: =入力シート!F106 -> 0 | C95: =入力シート!G106 -> 0 | D95: =入力シート!H106 -> 0 | E95: =入力シート!I106 -> 0 | F95: =入力シート!L106 -> 0 | M95: 326.9907026 | N95: 42.4 | O95: 164.3 | P95: -98.5 | T95: 0 | U95: 0 | V95: 0 | W95: 0 | X95: ー | AB95: ー | AD95: - | AE95: 1 | AF95: 0.95 | AH95: ー | AI95: ー | AJ95: ー | AT95: =ABS(入力シート!N106) -> 0 | AU95: =入力シート!O106 -> 0 | AV95: 0 | AW95: 0 | AX95: 0 | AY95: 0 | AZ95: -55 | BA95: 88.8 | BB95: 17.4 | BC95: OK | BD95: ー | BE95: OK | BF95: ー | BG95: OK | BH95: ー | BI95: ー | BK95: =入力シート!J106 -> 0 | BL95: =入力シート!K106 -> 0 | BM95: 180 | BN95: 0 | BO95: 0 | BP95: 350 | BQ95: 70 | BS95: 0.6666666667 | BT95: 0 | BX95: 0 | CB95: 0 | CC95: 0.6666666667 | CD95: 5492 | CE95: OK | CF95: ー | CG95: OK | CH95: ー | CJ95: ー | CK95: ー
B96: =入力シート!F107 -> 0 | C96: =入力シート!G107 -> 0 | D96: =入力シート!H107 -> 0 | E96: =入力シート!I107 -> 0 | F96: =入力シート!L107 -> 0 | M96: 326.9907026 | N96: 42.4 | O96: 164.3 | P96: -98.5 | T96: 0 | U96: 0 | V96: 0 | W96: 0 | X96: ー | AB96: ー | AD96: - | AE96: 1 | AF96: 0.95 | AH96: ー | AI96: ー | AJ96: ー | AT96: =ABS(入力シート!N107) -> 0 | AU96: =入力シート!O107 -> 0 | AV96: 0 | AW96: 0 | AX96: 0 | AY96: 0 | AZ96: -55 | BA96: 88.8 | BB96: 17.4 | BC96: OK | BD96: ー | BE96: OK | BF96: ー | BG96: OK | BH96: ー | BI96: ー | BK96: =入力シート!J107 -> 0 | BL96: =入力シート!K107 -> 0 | BM96: 180 | BN96: 0 | BO96: 0 | BP96: 350 | BQ96: 70 | BS96: 0.6666666667 | BT96: 0 | BX96: 0 | CB96: 0 | CC96: 0.6666666667 | CD96: 5492 | CE96: OK | CF96: ー | CG96: OK | CH96: ー | CJ96: ー | CK96: ー
B97: =入力シート!F108 -> 0 | C97: =入力シート!G108 -> 0 | D97: =入力シート!H108 -> 0 | E97: =入力シート!I108 -> 0 | F97: =入力シート!L108 -> 0 | M97: 326.9907026 | N97: 42.4 | O97: 164.3 | P97: -98.5 | T97: 0 | U97: 0 | V97: 0 | W97: 0 | X97: ー | AB97: ー | AD97: - | AE97: 1 | AF97: 0.95 | AH97: ー | AI97: ー | AJ97: ー | AT97: =ABS(入力シート!N108) -> 0 | AU97: =入力シート!O108 -> 0 | AV97: 0 | AW97: 0 | AX97: 0 | AY97: 0 | AZ97: -55 | BA97: 88.8 | BB97: 17.4 | BC97: OK | BD97: ー | BE97: OK | BF97: ー | BG97: OK | BH97: ー | BI97: ー | BK97: =入力シート!J108 -> 0 | BL97: =入力シート!K108 -> 0 | BM97: 180 | BN97: 0 | BO97: 0 | BP97: 350 | BQ97: 70 | BS97: 0.6666666667 | BT97: 0 | BX97: 0 | CB97: 0 | CC97: 0.6666666667 | CD97: 5492 | CE97: OK | CF97: ー | CG97: OK | CH97: ー | CJ97: ー | CK97: ー
B98: =入力シート!F109 -> 0 | C98: =入力シート!G109 -> 0 | D98: =入力シート!H109 -> 0 | E98: =入力シート!I109 -> 0 | F98: =入力シート!L109 -> 0 | M98: 326.9907026 | N98: 42.4 | O98: 164.3 | P98: -98.5 | T98: 0 | U98: 0 | V98: 0 | W98: 0 | X98: ー | AB98: ー | AD98: - | AE98: 1 | AF98: 0.95 | AH98: ー | AI98: ー | AJ98: ー | AT98: =ABS(入力シート!N109) -> 0 | AU98: =入力シート!O109 -> 0 | AV98: 0 | AW98: 0 | AX98: 0 | AY98: 0 | AZ98: -55 | BA98: 88.8 | BB98: 17.4 | BC98: OK | BD98: ー | BE98: OK | BF98: ー | BG98: OK | BH98: ー | BI98: ー | BK98: =入力シート!J109 -> 0 | BL98: =入力シート!K109 -> 0 | BM98: 180 | BN98: 0 | BO98: 0 | BP98: 350 | BQ98: 70 | BS98: 0.6666666667 | BT98: 0 | BX98: 0 | CB98: 0 | CC98: 0.6666666667 | CD98: 5492 | CE98: OK | CF98: ー | CG98: OK | CH98: ー | CJ98: ー | CK98: ー
B99: =入力シート!F110 -> 0 | C99: =入力シート!G110 -> 0 | D99: =入力シート!H110 -> 0 | E99: =入力シート!I110 -> 0 | F99: =入力シート!L110 -> 0 | M99: 326.9907026 | N99: 42.4 | O99: 164.3 | P99: -98.5 | T99: 0 | U99: 0 | V99: 0 | W99: 0 | X99: ー | AB99: ー | AD99: - | AE99: 1 | AF99: 0.95 | AH99: ー | AI99: ー | AJ99: ー | AT99: =ABS(入力シート!N110) -> 0 | AU99: =入力シート!O110 -> 0 | AV99: 0 | AW99: 0 | AX99: 0 | AY99: 0 | AZ99: -55 | BA99: 88.8 | BB99: 17.4 | BC99: OK | BD99: ー | BE99: OK | BF99: ー | BG99: OK | BH99: ー | BI99: ー | BK99: =入力シート!J110 -> 0 | BL99: =入力シート!K110 -> 0 | BM99: 180 | BN99: 0 | BO99: 0 | BP99: 350 | BQ99: 70 | BS99: 0.6666666667 | BT99: 0 | BX99: 0 | CB99: 0 | CC99: 0.6666666667 | CD99: 5492 | CE99: OK | CF99: ー | CG99: OK | CH99: ー | CJ99: ー | CK99: ー
B100: =入力シート!F111 -> 0 | C100: =入力シート!G111 -> 0 | D100: =入力シート!H111 -> 0 | E100: =入力シート!I111 -> 0 | F100: =入力シート!L111 -> 0 | M100: 326.9907026 | N100: 42.4 | O100: 164.3 | P100: -98.5 | T100: 0 | U100: 0 | V100: 0 | W100: 0 | X100: ー | AB100: ー | AD100: - | AE100: 1 | AF100: 0.95 | AH100: ー | AI100: ー | AJ100: ー | AT100: =ABS(入力シート!N111) -> 0 | AU100: =入力シート!O111 -> 0 | AV100: 0 | AW100: 0 | AX100: 0 | AY100: 0 | AZ100: -55 | BA100: 88.8 | BB100: 17.4 | BC100: OK | BD100: ー | BE100: OK | BF100: ー | BG100: OK | BH100: ー | BI100: ー | BK100: =入力シート!J111 -> 0 | BL100: =入力シート!K111 -> 0 | BM100: 180 | BN100: 0 | BO100: 0 | BP100: 350 | BQ100: 70 | BS100: 0.6666666667 | BT100: 0 | BX100: 0 | CB100: 0 | CC100: 0.6666666667 | CD100: 5492 | CE100: OK | CF100: ー | CG100: OK | CH100: ー | CJ100: ー | CK100: ー
B101: =入力シート!F112 -> 0 | C101: =入力シート!G112 -> 0 | D101: =入力シート!H112 -> 0 | E101: =入力シート!I112 -> 0 | F101: =入力シート!L112 -> 0 | M101: 326.9907026 | N101: 42.4 | O101: 164.3 | P101: -98.5 | T101: 0 | U101: 0 | V101: 0 | W101: 0 | X101: ー | AB101: ー | AD101: - | AE101: 1 | AF101: 0.95 | AH101: ー | AI101: ー | AJ101: ー | AT101: =ABS(入力シート!N112) -> 0 | AU101: =入力シート!O112 -> 0 | AV101: 0 | AW101: =(AT101*(E101/1000))/(P101/1000) -> 0 | AX101: 0 | AY101: 0 | AZ101: =IF(F101=3,63.2,IF(F101=2,63.2,55))*-1 -> -55 | BA101: =IF(F101=3,127.8,IF(F101=2,107.6,88.8)) -> 88.8 | BB101: =IF(F101=3,23.1,IF(F101=2,21,17.4)) -> 17.4 | BC101: OK | BD101: ー | BE101: OK | BF101: ー | BG101: OK | BH101: ー | BI101: ー | BK101: =入力シート!J112 -> 0 | BL101: =入力シート!K112 -> 0 | BM101: 180 | BN101: 0 | BO101: 0 | BP101: 350 | BQ101: 70 | BS101: 0.6666666667 | BT101: 0 | BX101: 0 | CB101: =CC101*BK101*CD101/1000 -> 0 | CC101: 0.6666666667 | CD101: 5492 | CE101: OK | CF101: ー | CG101: OK | CH101: ー | CJ101: ー | CK101: ー
B102: =入力シート!F113 -> 0 | C102: =入力シート!G113 -> 0 | D102: =入力シート!H113 -> 0 | E102: =入力シート!I113 -> 0 | F102: =入力シート!L113 -> 0 | M102: 326.9907026 | N102: 42.4 | O102: 164.3 | P102: -98.5 | T102: 0 | U102: 0 | V102: 0 | W102: 0 | X102: ー | AB102: ー | AD102: - | AE102: 1 | AF102: 0.95 | AH102: ー | AI102: ー | AJ102: ー | AT102: =ABS(入力シート!N113) -> 0 | AU102: =入力シート!O113 -> 0 | AV102: 0 | AW102: 0 | AX102: 0 | AY102: 0 | AZ102: -55 | BA102: 88.8 | BB102: 17.4 | BC102: OK | BD102: ー | BE102: OK | BF102: ー | BG102: OK | BH102: ー | BI102: ー | BK102: =入力シート!J113 -> 0 | BL102: =入力シート!K113 -> 0 | BM102: 180 | BN102: 0 | BO102: 0 | BP102: 350 | BQ102: 70 | BS102: 0.6666666667 | BT102: 0 | BX102: 0 | CB102: 0 | CC102: 0.6666666667 | CD102: 5492 | CE102: OK | CF102: ー | CG102: OK | CH102: ー | CJ102: ー | CK102: ー
B103: =入力シート!F114 -> 0 | C103: =入力シート!G114 -> 0 | D103: =入力シート!H114 -> 0 | E103: =入力シート!I114 -> 0 | F103: =入力シート!L114 -> 0 | M103: 326.9907026 | N103: 42.4 | O103: 164.3 | P103: -98.5 | T103: 0 | U103: 0 | V103: 0 | W103: 0 | X103: ー | AB103: ー | AD103: - | AE103: 1 | AF103: 0.95 | AH103: ー | AI103: ー | AJ103: ー | AT103: =ABS(入力シート!N114) -> 0 | AU103: =入力シート!O114 -> 0 | AV103: 0 | AW103: 0 | AX103: 0 | AY103: 0 | AZ103: -55 | BA103: 88.8 | BB103: 17.4 | BC103: OK | BD103: ー | BE103: OK | BF103: ー | BG103: OK | BH103: ー | BI103: ー | BK103: =入力シート!J114 -> 0 | BL103: =入力シート!K114 -> 0 | BM103: 180 | BN103: 0 | BO103: 0 | BP103: 350 | BQ103: 70 | BS103: 0.6666666667 | BT103: 0 | BX103: 0 | CB103: 0 | CC103: 0.6666666667 | CD103: 5492 | CE103: OK | CF103: ー | CG103: OK | CH103: ー | CJ103: ー | CK103: ー
B104: =入力シート!F115 -> 0 | C104: =入力シート!G115 -> 0 | D104: =入力シート!H115 -> 0 | E104: =入力シート!I115 -> 0 | F104: =入力シート!L115 -> 0 | M104: 326.9907026 | N104: 42.4 | O104: 164.3 | P104: -98.5 | T104: 0 | U104: 0 | V104: 0 | W104: 0 | X104: ー | AB104: ー | AD104: - | AE104: 1 | AF104: 0.95 | AH104: ー | AI104: ー | AJ104: ー | AT104: =ABS(入力シート!N115) -> 0 | AU104: =入力シート!O115 -> 0 | AV104: 0 | AW104: 0 | AX104: 0 | AY104: 0 | AZ104: -55 | BA104: 88.8 | BB104: 17.4 | BC104: OK | BD104: ー | BE104: OK | BF104: ー | BG104: OK | BH104: ー | BI104: ー | BK104: =入力シート!J115 -> 0 | BL104: =入力シート!K115 -> 0 | BM104: 180 | BN104: 0 | BO104: 0 | BP104: 350 | BQ104: 70 | BS104: 0.6666666667 | BT104: 0 | BX104: 0 | CB104: 0 | CC104: 0.6666666667 | CD104: 5492 | CE104: OK | CF104: ー | CG104: OK | CH104: ー | CJ104: ー | CK104: ー
B105: =入力シート!F116 -> 0 | C105: =入力シート!G116 -> 0 | D105: =入力シート!H116 -> 0 | E105: =入力シート!I116 -> 0 | F105: =入力シート!L116 -> 0 | M105: 326.9907026 | N105: 42.4 | O105: 164.3 | P105: -98.5 | T105: 0 | U105: 0 | V105: 0 | W105: 0 | X105: ー | AB105: ー | AD105: - | AE105: 1 | AF105: 0.95 | AH105: ー | AI105: ー | AJ105: ー | AT105: =ABS(入力シート!N116) -> 0 | AU105: =入力シート!O116 -> 0 | AV105: 0 | AW105: 0 | AX105: 0 | AY105: 0 | AZ105: -55 | BA105: 88.8 | BB105: 17.4 | BC105: OK | BD105: ー | BE105: OK | BF105: ー | BG105: OK | BH105: ー | BI105: ー | BK105: =入力シート!J116 -> 0 | BL105: =入力シート!K116 -> 0 | BM105: 180 | BN105: 0 | BO105: 0 | BP105: 350 | BQ105: 70 | BS105: 0.6666666667 | BT105: 0 | BX105: 0 | CB105: 0 | CC105: 0.6666666667 | CD105: 5492 | CE105: OK | CF105: ー | CG105: OK | CH105: ー | CJ105: ー | CK105: ー
B106: =入力シート!F117 -> 0 | C106: =入力シート!G117 -> 0 | D106: =入力シート!H117 -> 0 | E106: =入力シート!I117 -> 0 | F106: =入力シート!L117 -> 0 | M106: 326.9907026 | N106: 42.4 | O106: 164.3 | P106: -98.5 | T106: 0 | U106: 0 | V106: 0 | W106: 0 | X106: ー | AB106: ー | AD106: - | AE106: 1 | AF106: 0.95 | AH106: ー | AI106: ー | AJ106: ー | AT106: =ABS(入力シート!N117) -> 0 | AU106: =入力シート!O117 -> 0 | AV106: 0 | AW106: 0 | AX106: 0 | AY106: 0 | AZ106: -55 | BA106: 88.8 | BB106: 17.4 | BC106: OK | BD106: ー | BE106: OK | BF106: ー | BG106: OK | BH106: ー | BI106: ー | BK106: =入力シート!J117 -> 0 | BL106: =入力シート!K117 -> 0 | BM106: 180 | BN106: 0 | BO106: 0 | BP106: 350 | BQ106: 70 | BS106: 0.6666666667 | BT106: 0 | BX106: 0 | CB106: 0 | CC106: 0.6666666667 | CD106: 5492 | CE106: OK | CF106: ー | CG106: OK | CH106: ー | CJ106: ー | CK106: ー
B107: =入力シート!F118 -> 0 | C107: =入力シート!G118 -> 0 | D107: =入力シート!H118 -> 0 | E107: =入力シート!I118 -> 0 | F107: =入力シート!L118 -> 0 | H107: =((I107*J107)/(I107+J107))*0.85 ->  | I107: =M107*L107 ->  | J107: =R107 ->  | L107: =0.0000319*S107+0.665 ->  | M107: =((P107^2)/((1/N107)+(1/O107)))/1000 -> 326.9907026 | N107: =42400/1000 -> 42.4 | O107: =164300/1000 -> 164.3 | P107: =1.05*C107-98.5 -> -98.5 | R107: =(((3*S107*T107)/W107))/1000000 ->  | T107: =(V107*(U107^3))/12 -> 0 | U107: =C107 -> 0 | V107: =D107 -> 0 | W107: =E107 -> 0 | X107: ー | AB107: ー | AC107: =ROUNDDOWN(AD107*AE107*AF107*AG107,2) ->  | AD107: =IF(F107=3,1,IF(F107=2,0.85,IF(F107=1,0.75,"-"))) -> - | AE107: 1 | AF107: 0.95 | AH107: ー | AI107: ー | AJ107: ー | AT107: =ABS(入力シート!N118) -> 0 | AU107: =入力シート!O118 -> 0 | AV107: 0 | AW107: 0 | AX107: 0 | AY107: 0 | AZ107: -55 | BA107: 88.8 | BB107: 17.4 | BC107: OK | BD107: ー | BE107: OK | BF107: ー | BG107: OK | BH107: ー | BI107: ー | BK107: =入力シート!J118 -> 0 | BL107: =入力シート!K118 -> 0 | BM107: 180 | BN107: 0 | BO107: 0 | BP107: 350 | BQ107: 70 | BS107: 0.6666666667 | BT107: 0 | BX107: 0 | CB107: 0 | CC107: 0.6666666667 | CD107: 5492 | CE107: OK | CF107: ー | CG107: OK | CH107: ー | CJ107: ー | CK107: ー
B108: =入力シート!F119 -> 0 | C108: =入力シート!G119 -> 0 | D108: =入力シート!H119 -> 0 | E108: =入力シート!I119 -> 0 | F108: =入力シート!L119 -> 0 | H108: =((I108*J108)/(I108+J108))*0.85 ->  | J108: =R108 ->  | L108: =0.0000319*S108+0.665 ->  | M108: =((P108^2)/((1/N108)+(1/O108)))/1000 -> 326.9907026 | N108: =42400/1000 -> 42.4 | O108: =164300/1000 -> 164.3 | P108: -98.5 | R108: =(((3*S108*T108)/W108))/1000000 ->  | T108: 0 | U108: 0 | V108: 0 | W108: 0 | X108: ー | AB108: ー | AC108: =ROUNDDOWN(AD108*AE108*AF108*AG108,2) ->  | AD108: =IF(F108=3,1,IF(F108=2,0.85,IF(F108=1,0.75,"-"))) -> - | AE108: 1 | AF108: 0.95 | AH108: ー | AI108: ー | AJ108: ー | AT108: =ABS(入力シート!N119) -> 0 | AU108: =入力シート!O119 -> 0 | AV108: 0 | AW108: 0 | AX108: 0 | AY108: 0 | AZ108: -55 | BA108: 88.8 | BB108: 17.4 | BC108: OK | BD108: ー | BE108: OK | BF108: ー | BG108: OK | BH108: ー | BI108: ー | BK108: =入力シート!J119 -> 0 | BL108: =入力シート!K119 -> 0 | BM108: 180 | BN108: 0 | BO108: 0 | BP108: 350 | BQ108: 70 | BS108: 0.6666666667 | BT108: 0 | BX108: 0 | CB108: 0 | CC108: 0.6666666667 | CD108: 5492 | CE108: OK | CF108: ー | CG108: OK | CH108: ー | CJ108: ー | CK108: ー
B109: =入力シート!F120 -> 0 | C109: =入力シート!G120 -> 0 | D109: =入力シート!H120 -> 0 | E109: =入力シート!I120 -> 0 | F109: =入力シート!L120 -> 0 | M109: 326.9907026 | N109: 42.4 | O109: 164.3 | P109: -98.5 | T109: 0 | U109: 0 | V109: 0 | W109: 0 | X109: ー | AB109: ー | AD109: - | AE109: 1 | AF109: 0.95 | AH109: ー | AI109: ー | AJ109: ー | AT109: =ABS(入力シート!N120) -> 0 | AU109: =入力シート!O120 -> 0 | AV109: 0 | AW109: 0 | AX109: 0 | AY109: 0 | AZ109: -55 | BA109: 88.8 | BB109: 17.4 | BC109: OK | BD109: ー | BE109: OK | BF109: ー | BG109: OK | BH109: ー | BI109: ー | BK109: =入力シート!J120 -> 0 | BL109: =入力シート!K120 -> 0 | BM109: 180 | BN109: 0 | BO109: 0 | BP109: 350 | BQ109: 70 | BS109: 0.6666666667 | BT109: 0 | BX109: 0 | CB109: 0 | CC109: 0.6666666667 | CD109: 5492 | CE109: OK | CF109: ー | CG109: OK | CH109: ー | CJ109: ー | CK109: ー
B110: =入力シート!F121 -> 0 | C110: =入力シート!G121 -> 0 | D110: =入力シート!H121 -> 0 | E110: =入力シート!I121 -> 0 | F110: =入力シート!L121 -> 0 | M110: 326.9907026 | N110: 42.4 | O110: 164.3 | P110: -98.5 | T110: 0 | U110: 0 | V110: 0 | W110: 0 | X110: ー | AB110: ー | AD110: - | AE110: 1 | AF110: 0.95 | AH110: ー | AI110: ー | AJ110: ー | AT110: =ABS(入力シート!N121) -> 0 | AU110: =入力シート!O121 -> 0 | AV110: 0 | AW110: 0 | AX110: 0 | AY110: 0 | AZ110: -55 | BA110: 88.8 | BB110: 17.4 | BC110: OK | BD110: ー | BE110: OK | BF110: ー | BG110: OK | BH110: ー | BI110: ー | BK110: =入力シート!J121 -> 0 | BL110: =入力シート!K121 -> 0 | BM110: 180 | BN110: 0 | BO110: 0 | BP110: 350 | BQ110: 70 | BS110: 0.6666666667 | BT110: 0 | BX110: 0 | CB110: 0 | CC110: 0.6666666667 | CD110: 5492 | CE110: OK | CF110: ー | CG110: OK | CH110: ー | CJ110: ー | CK110: ー
B111: =入力シート!F122 -> 0 | C111: =入力シート!G122 -> 0 | D111: =入力シート!H122 -> 0 | E111: =入力シート!I122 -> 0 | F111: =入力シート!L122 -> 0 | M111: 326.9907026 | N111: 42.4 | O111: 164.3 | P111: -98.5 | T111: 0 | U111: 0 | V111: 0 | W111: 0 | X111: ー | AB111: ー | AD111: - | AE111: 1 | AF111: 0.95 | AH111: ー | AI111: ー | AJ111: ー | AT111: =ABS(入力シート!N122) -> 0 | AU111: =入力シート!O122 -> 0 | AV111: 0 | AW111: 0 | AX111: 0 | AY111: 0 | AZ111: -55 | BA111: 88.8 | BB111: 17.4 | BC111: OK | BD111: ー | BE111: OK | BF111: ー | BG111: OK | BH111: ー | BI111: ー | BK111: =入力シート!J122 -> 0 | BL111: =入力シート!K122 -> 0 | BM111: 180 | BN111: 0 | BO111: 0 | BP111: 350 | BQ111: 70 | BS111: 0.6666666667 | BT111: 0 | BX111: 0 | CB111: 0 | CC111: 0.6666666667 | CD111: 5492 | CE111: OK | CF111: ー | CG111: OK | CH111: ー | CJ111: ー | CK111: ー
B112: =入力シート!F123 -> 0 | C112: =入力シート!G123 -> 0 | D112: =入力シート!H123 -> 0 | E112: =入力シート!I123 -> 0 | F112: =入力シート!L123 -> 0 | M112: 326.9907026 | N112: 42.4 | O112: 164.3 | P112: -98.5 | T112: 0 | U112: 0 | V112: 0 | W112: 0 | X112: ー | AB112: ー | AD112: - | AE112: 1 | AF112: 0.95 | AH112: ー | AI112: ー | AJ112: ー | AT112: =ABS(入力シート!N123) -> 0 | AU112: =入力シート!O123 -> 0 | AV112: 0 | AW112: 0 | AX112: 0 | AY112: 0 | AZ112: -55 | BA112: 88.8 | BB112: 17.4 | BC112: OK | BD112: ー | BE112: OK | BF112: ー | BG112: OK | BH112: ー | BI112: ー | BK112: =入力シート!J123 -> 0 | BL112: =入力シート!K123 -> 0 | BM112: 180 | BN112: 0 | BO112: 0 | BP112: 350 | BQ112: 70 | BS112: 0.6666666667 | BT112: 0 | BX112: 0 | CB112: 0 | CC112: 0.6666666667 | CD112: 5492 | CE112: OK | CF112: ー | CG112: OK | CH112: ー | CJ112: ー | CK112: ー
B113: =入力シート!F124 -> 0 | C113: =入力シート!G124 -> 0 | D113: =入力シート!H124 -> 0 | E113: =入力シート!I124 -> 0 | F113: =入力シート!L124 -> 0 | M113: 326.9907026 | N113: 42.4 | O113: 164.3 | P113: -98.5 | T113: 0 | U113: 0 | V113: 0 | W113: 0 | X113: ー | AB113: ー | AD113: - | AE113: 1 | AF113: 0.95 | AH113: ー | AI113: ー | AJ113: ー | AT113: =ABS(入力シート!N124) -> 0 | AU113: =入力シート!O124 -> 0 | AV113: 0 | AW113: 0 | AX113: 0 | AY113: 0 | AZ113: -55 | BA113: 88.8 | BB113: 17.4 | BC113: OK | BD113: ー | BE113: OK | BF113: ー | BG113: OK | BH113: ー | BI113: ー | BK113: =入力シート!J124 -> 0 | BL113: =入力シート!K124 -> 0 | BM113: 180 | BN113: 0 | BO113: 0 | BP113: 350 | BQ113: 70 | BS113: 0.6666666667 | BT113: 0 | BX113: 0 | CB113: 0 | CC113: 0.6666666667 | CD113: 5492 | CE113: OK | CF113: ー | CG113: OK | CH113: ー | CJ113: ー | CK113: ー
B114: =入力シート!F125 -> 0 | C114: =入力シート!G125 -> 0 | D114: =入力シート!H125 -> 0 | E114: =入力シート!I125 -> 0 | F114: =入力シート!L125 -> 0 | M114: 326.9907026 | N114: 42.4 | O114: 164.3 | P114: -98.5 | S114: =VLOOKUP(B114,$AN$5:$AO$21,2,TRUE) ->  | T114: 0 | U114: 0 | V114: 0 | W114: 0 | X114: ー | Y114: =IF(H114>=AL114,H114/120,"―") ->  | Z114: =IF(H114>=AL114,Y114*AC114,"ー") ->  | AA114: =IF(H114>=AL114,Y114/(E114/1000),"ー") ->  | AB114: ー | AD114: - | AE114: 1 | AF114: 0.95 | AH114: ー | AI114: ー | AJ114: ー | AL114: =VLOOKUP(C114,$AQ$5:$AR$13,2,TRUE) ->  | AT114: =ABS(入力シート!N125) -> 0 | AU114: =入力シート!O125 -> 0 | AV114: 0 | AW114: 0 | AX114: 0 | AY114: 0 | AZ114: -55 | BA114: 88.8 | BB114: 17.4 | BC114: OK | BD114: ー | BE114: OK | BF114: ー | BG114: OK | BH114: ー | BI114: ー | BK114: =入力シート!J125 -> 0 | BL114: =入力シート!K125 -> 0 | BM114: 180 | BN114: 0 | BO114: 0 | BP114: 350 | BQ114: 70 | BS114: 0.6666666667 | BT114: 0 | BX114: 0 | CB114: 0 | CC114: 0.6666666667 | CD114: 5492 | CE114: OK | CF114: ー | CG114: OK | CH114: ー | CJ114: ー | CK114: ー
B115: =入力シート!F126 -> 0 | C115: =入力シート!G126 -> 0 | D115: =入力シート!H126 -> 0 | E115: =入力シート!I126 -> 0 | F115: =入力シート!L126 -> 0 | M115: 326.9907026 | N115: 42.4 | O115: 164.3 | P115: -98.5 | T115: 0 | U115: 0 | V115: 0 | W115: 0 | X115: ー | AB115: ー | AD115: - | AE115: 1 | AF115: 0.95 | AH115: ー | AI115: ー | AJ115: ー | AT115: =ABS(入力シート!N126) -> 0 | AU115: =入力シート!O126 -> 0 | AV115: 0 | AW115: 0 | AX115: 0 | AY115: 0 | AZ115: -55 | BA115: 88.8 | BB115: 17.4 | BC115: OK | BD115: ー | BE115: OK | BF115: ー | BG115: OK | BH115: ー | BI115: ー | BK115: =入力シート!J126 -> 0 | BL115: =入力シート!K126 -> 0 | BM115: 180 | BN115: 0 | BO115: 0 | BP115: 350 | BQ115: 70 | BS115: 0.6666666667 | BT115: 0 | BX115: 0 | CB115: 0 | CC115: 0.6666666667 | CD115: 5492 | CE115: OK | CF115: ー | CG115: OK | CH115: ー | CJ115: ー | CK115: ー
B116: =入力シート!F127 -> 0 | C116: =入力シート!G127 -> 0 | D116: =入力シート!H127 -> 0 | E116: =入力シート!I127 -> 0 | F116: =入力シート!L127 -> 0 | M116: 326.9907026 | N116: 42.4 | O116: 164.3 | P116: -98.5 | T116: 0 | U116: 0 | V116: 0 | W116: 0 | X116: ー | AB116: ー | AD116: - | AE116: 1 | AF116: 0.95 | AH116: ー | AI116: ー | AJ116: ー | AT116: =ABS(入力シート!N127) -> 0 | AU116: =入力シート!O127 -> 0 | AV116: 0 | AW116: 0 | AX116: 0 | AY116: 0 | AZ116: -55 | BA116: 88.8 | BB116: 17.4 | BC116: OK | BD116: ー | BE116: OK | BF116: ー | BG116: OK | BH116: ー | BI116: ー | BK116: =入力シート!J127 -> 0 | BL116: =入力シート!K127 -> 0 | BM116: 180 | BN116: 0 | BO116: 0 | BP116: 350 | BQ116: 70 | BS116: 0.6666666667 | BT116: 0 | BX116: 0 | CB116: 0 | CC116: 0.6666666667 | CD116: 5492 | CE116: OK | CF116: ー | CG116: OK | CH116: ー | CJ116: ー | CK116: ー
B117: =入力シート!F128 -> 0 | C117: =入力シート!G128 -> 0 | D117: =入力シート!H128 -> 0 | E117: =入力シート!I128 -> 0 | F117: =入力シート!L128 -> 0 | M117: 326.9907026 | N117: 42.4 | O117: 164.3 | P117: -98.5 | T117: 0 | U117: 0 | V117: 0 | W117: 0 | X117: ー | AB117: ー | AD117: - | AE117: 1 | AF117: 0.95 | AH117: ー | AI117: ー | AJ117: ー | AT117: =ABS(入力シート!N128) -> 0 | AU117: =入力シート!O128 -> 0 | AV117: 0 | AW117: 0 | AX117: 0 | AY117: 0 | AZ117: -55 | BA117: 88.8 | BB117: 17.4 | BC117: OK | BD117: ー | BE117: OK | BF117: ー | BG117: OK | BH117: ー | BI117: ー | BK117: =入力シート!J128 -> 0 | BL117: =入力シート!K128 -> 0 | BM117: 180 | BN117: 0 | BO117: 0 | BP117: 350 | BQ117: 70 | BS117: 0.6666666667 | BT117: 0 | BX117: 0 | CB117: 0 | CC117: 0.6666666667 | CD117: 5492 | CE117: OK | CF117: ー | CG117: OK | CH117: ー | CJ117: ー | CK117: ー
B118: =入力シート!F129 -> 0 | C118: =入力シート!G129 -> 0 | D118: =入力シート!H129 -> 0 | E118: =入力シート!I129 -> 0 | F118: =入力シート!L129 -> 0 | M118: 326.9907026 | N118: 42.4 | O118: 164.3 | P118: -98.5 | T118: 0 | U118: 0 | V118: 0 | W118: 0 | X118: ー | AB118: ー | AD118: - | AE118: 1 | AF118: 0.95 | AH118: ー | AI118: ー | AJ118: ー | AT118: =ABS(入力シート!N129) -> 0 | AU118: =入力シート!O129 -> 0 | AV118: 0 | AW118: 0 | AX118: 0 | AY118: 0 | AZ118: -55 | BA118: 88.8 | BB118: 17.4 | BC118: OK | BD118: ー | BE118: OK | BF118: ー | BG118: OK | BH118: ー | BI118: ー | BK118: =入力シート!J129 -> 0 | BL118: =入力シート!K129 -> 0 | BM118: 180 | BN118: 0 | BO118: 0 | BP118: 350 | BQ118: 70 | BS118: 0.6666666667 | BT118: 0 | BX118: 0 | CB118: 0 | CC118: 0.6666666667 | CD118: 5492 | CE118: OK | CF118: ー | CG118: OK | CH118: ー | CJ118: ー | CK118: ー
B119: =入力シート!F130 -> 0 | C119: =入力シート!G130 -> 0 | D119: =入力シート!H130 -> 0 | E119: =入力シート!I130 -> 0 | F119: =入力シート!L130 -> 0 | M119: 326.9907026 | N119: 42.4 | O119: 164.3 | P119: -98.5 | T119: 0 | U119: 0 | V119: 0 | W119: 0 | X119: ー | AB119: ー | AD119: - | AE119: 1 | AF119: 0.95 | AH119: ー | AI119: ー | AJ119: ー | AT119: =ABS(入力シート!N130) -> 0 | AU119: =入力シート!O130 -> 0 | AV119: 0 | AW119: 0 | AX119: 0 | AY119: 0 | AZ119: -55 | BA119: 88.8 | BB119: 17.4 | BC119: OK | BD119: ー | BE119: OK | BF119: ー | BG119: OK | BH119: ー | BI119: ー | BK119: =入力シート!J130 -> 0 | BL119: =入力シート!K130 -> 0 | BM119: 180 | BN119: 0 | BO119: 0 | BP119: 350 | BQ119: 70 | BS119: 0.6666666667 | BT119: 0 | BX119: 0 | CB119: 0 | CC119: 0.6666666667 | CD119: 5492 | CE119: OK | CF119: ー | CG119: OK | CH119: ー | CJ119: ー | CK119: ー
B120: =入力シート!F131 -> 0 | C120: =入力シート!G131 -> 0 | D120: =入力シート!H131 -> 0 | E120: =入力シート!I131 -> 0 | F120: =入力シート!L131 -> 0 | M120: 326.9907026 | N120: 42.4 | O120: 164.3 | P120: -98.5 | T120: 0 | U120: 0 | V120: 0 | W120: 0 | X120: ー | AB120: ー | AD120: - | AE120: 1 | AF120: 0.95 | AH120: ー | AI120: ー | AJ120: ー | AT120: =ABS(入力シート!N131) -> 0 | AU120: =入力シート!O131 -> 0 | AV120: 0 | AW120: 0 | AX120: 0 | AY120: 0 | AZ120: -55 | BA120: 88.8 | BB120: 17.4 | BC120: OK | BD120: ー | BE120: OK | BF120: ー | BG120: OK | BH120: ー | BI120: ー | BK120: =入力シート!J131 -> 0 | BL120: =入力シート!K131 -> 0 | BM120: 180 | BN120: 0 | BO120: 0 | BP120: 350 | BQ120: 70 | BS120: 0.6666666667 | BT120: 0 | BX120: 0 | CB120: 0 | CC120: 0.6666666667 | CD120: 5492 | CE120: OK | CF120: ー | CG120: OK | CH120: ー | CJ120: ー | CK120: ー
B121: =入力シート!F132 -> 0 | C121: =入力シート!G132 -> 0 | D121: =入力シート!H132 -> 0 | E121: =入力シート!I132 -> 0 | F121: =入力シート!L132 -> 0 | M121: 326.9907026 | N121: 42.4 | O121: 164.3 | P121: -98.5 | T121: 0 | U121: 0 | V121: 0 | W121: 0 | X121: ー | AB121: ー | AD121: - | AE121: 1 | AF121: 0.95 | AH121: ー | AI121: ー | AJ121: ー | AT121: =ABS(入力シート!N132) -> 0 | AU121: =入力シート!O132 -> 0 | AV121: 0 | AW121: 0 | AX121: 0 | AY121: 0 | AZ121: -55 | BA121: 88.8 | BB121: 17.4 | BC121: OK | BD121: ー | BE121: OK | BF121: ー | BG121: OK | BH121: ー | BI121: ー | BK121: =入力シート!J132 -> 0 | BL121: =入力シート!K132 -> 0 | BM121: 180 | BN121: 0 | BO121: 0 | BP121: 350 | BQ121: 70 | BS121: 0.6666666667 | BT121: 0 | BX121: 0 | CB121: 0 | CC121: 0.6666666667 | CD121: 5492 | CE121: OK | CF121: ー | CG121: OK | CH121: ー | CJ121: ー | CK121: ー
B122: =入力シート!F133 -> 0 | C122: =入力シート!G133 -> 0 | D122: =入力シート!H133 -> 0 | E122: =入力シート!I133 -> 0 | F122: =入力シート!L133 -> 0 | M122: 326.9907026 | N122: 42.4 | O122: 164.3 | P122: -98.5 | T122: 0 | U122: 0 | V122: 0 | W122: 0 | X122: ー | AB122: ー | AD122: - | AE122: 1 | AF122: 0.95 | AH122: ー | AI122: ー | AJ122: ー | AT122: =ABS(入力シート!N133) -> 0 | AU122: =入力シート!O133 -> 0 | AV122: 0 | AW122: 0 | AX122: 0 | AY122: 0 | AZ122: -55 | BA122: 88.8 | BB122: 17.4 | BC122: OK | BD122: ー | BE122: OK | BF122: ー | BG122: OK | BH122: ー | BI122: ー | BK122: =入力シート!J133 -> 0 | BL122: =入力シート!K133 -> 0 | BM122: 180 | BN122: 0 | BO122: 0 | BP122: 350 | BQ122: 70 | BS122: 0.6666666667 | BT122: 0 | BX122: 0 | CB122: 0 | CC122: 0.6666666667 | CD122: 5492 | CE122: OK | CF122: ー | CG122: OK | CH122: ー | CJ122: ー | CK122: ー
B123: =入力シート!F134 -> 0 | C123: =入力シート!G134 -> 0 | D123: =入力シート!H134 -> 0 | E123: =入力シート!I134 -> 0 | F123: =入力シート!L134 -> 0 | M123: 326.9907026 | N123: 42.4 | O123: 164.3 | P123: -98.5 | T123: 0 | U123: 0 | V123: 0 | W123: 0 | X123: ー | AB123: ー | AD123: - | AE123: 1 | AF123: 0.95 | AH123: ー | AI123: ー | AJ123: ー | AT123: =ABS(入力シート!N134) -> 0 | AU123: =入力シート!O134 -> 0 | AV123: 0 | AW123: 0 | AX123: 0 | AY123: 0 | AZ123: -55 | BA123: 88.8 | BB123: 17.4 | BC123: OK | BD123: ー | BE123: OK | BF123: ー | BG123: OK | BH123: ー | BI123: ー | BK123: =入力シート!J134 -> 0 | BL123: =入力シート!K134 -> 0 | BM123: 180 | BN123: 0 | BO123: 0 | BP123: 350 | BQ123: 70 | BS123: 0.6666666667 | BT123: 0 | BX123: 0 | CB123: 0 | CC123: 0.6666666667 | CD123: 5492 | CE123: OK | CF123: ー | CG123: OK | CH123: ー | CJ123: ー | CK123: ー
B124: =入力シート!F135 -> 0 | C124: =入力シート!G135 -> 0 | D124: =入力シート!H135 -> 0 | E124: =入力シート!I135 -> 0 | F124: =入力シート!L135 -> 0 | H124: =((I124*J124)/(I124+J124))*0.85 ->  | I124: =M124*L124 ->  | J124: =R124 ->  | L124: =0.0000319*S124+0.665 ->  | M124: =((P124^2)/((1/N124)+(1/O124)))/1000 -> 326.9907026 | N124: =42400/1000 -> 42.4 | O124: =164300/1000 -> 164.3 | P124: =1.05*C124-98.5 -> -98.5 | R124: =(((3*S124*T124)/W124))/1000000 ->  | T124: =(V124*(U124^3))/12 -> 0 | U124: =C124 -> 0 | V124: =D124 -> 0 | W124: =E124 -> 0 | X124: ー | AB124: ー | AC124: =ROUNDDOWN(AD124*AE124*AF124*AG124,2) ->  | AD124: =IF(F124=3,1,IF(F124=2,0.85,IF(F124=1,0.75,"-"))) -> - | AE124: 1 | AF124: 0.95 | AH124: ー | AI124: ー | AJ124: ー | AT124: =ABS(入力シート!N135) -> 0 | AU124: =入力シート!O135 -> 0 | AV124: 0 | AW124: 0 | AX124: 0 | AY124: 0 | AZ124: -55 | BA124: 88.8 | BB124: 17.4 | BC124: OK | BD124: ー | BE124: OK | BF124: ー | BG124: OK | BH124: ー | BI124: ー | BK124: =入力シート!J135 -> 0 | BL124: =入力シート!K135 -> 0 | BM124: 180 | BN124: 0 | BO124: 0 | BP124: 350 | BQ124: 70 | BS124: 0.6666666667 | BT124: 0 | BX124: 0 | CB124: 0 | CC124: 0.6666666667 | CD124: 5492 | CE124: OK | CF124: ー | CG124: OK | CH124: ー | CJ124: ー | CK124: ー
B125: =入力シート!F136 -> 0 | C125: =入力シート!G136 -> 0 | D125: =入力シート!H136 -> 0 | E125: =入力シート!I136 -> 0 | F125: =入力シート!L136 -> 0 | H125: =((I125*J125)/(I125+J125))*0.85 ->  | J125: =R125 ->  | L125: =0.0000319*S125+0.665 ->  | M125: =((P125^2)/((1/N125)+(1/O125)))/1000 -> 326.9907026 | N125: =42400/1000 -> 42.4 | O125: =164300/1000 -> 164.3 | P125: -98.5 | R125: =(((3*S125*T125)/W125))/1000000 ->  | T125: 0 | U125: 0 | V125: 0 | W125: 0 | X125: ー | AB125: ー | AC125: =ROUNDDOWN(AD125*AE125*AF125*AG125,2) ->  | AD125: =IF(F125=3,1,IF(F125=2,0.85,IF(F125=1,0.75,"-"))) -> - | AE125: 1 | AF125: 0.95 | AH125: ー | AI125: ー | AJ125: ー | AT125: =ABS(入力シート!N136) -> 0 | AU125: =入力シート!O136 -> 0 | AV125: 0 | AW125: 0 | AX125: 0 | AY125: 0 | AZ125: -55 | BA125: 88.8 | BB125: 17.4 | BC125: OK | BD125: ー | BE125: OK | BF125: ー | BG125: OK | BH125: ー | BI125: ー | BK125: =入力シート!J136 -> 0 | BL125: =入力シート!K136 -> 0 | BM125: 180 | BN125: 0 | BO125: 0 | BP125: 350 | BQ125: 70 | BS125: 0.6666666667 | BT125: 0 | BX125: 0 | CB125: 0 | CC125: 0.6666666667 | CD125: 5492 | CE125: OK | CF125: ー | CG125: OK | CH125: ー | CJ125: ー | CK125: ー
B126: =入力シート!F137 -> 0 | C126: =入力シート!G137 -> 0 | D126: =入力シート!H137 -> 0 | E126: =入力シート!I137 -> 0 | F126: =入力シート!L137 -> 0 | M126: 326.9907026 | N126: 42.4 | O126: 164.3 | P126: -98.5 | T126: 0 | U126: 0 | V126: 0 | W126: 0 | X126: ー | AB126: ー | AD126: - | AE126: 1 | AF126: 0.95 | AH126: ー | AI126: ー | AJ126: ー | AT126: =ABS(入力シート!N137) -> 0 | AU126: =入力シート!O137 -> 0 | AV126: 0 | AW126: 0 | AX126: 0 | AY126: 0 | AZ126: -55 | BA126: 88.8 | BB126: 17.4 | BC126: OK | BD126: ー | BE126: OK | BF126: ー | BG126: OK | BH126: ー | BI126: ー | BK126: =入力シート!J137 -> 0 | BL126: =入力シート!K137 -> 0 | BM126: 180 | BN126: 0 | BO126: 0 | BP126: 350 | BQ126: 70 | BS126: 0.6666666667 | BT126: 0 | BX126: 0 | CB126: 0 | CC126: 0.6666666667 | CD126: 5492 | CE126: OK | CF126: ー | CG126: OK | CH126: ー | CJ126: ー | CK126: ー
B127: =入力シート!F138 -> 0 | C127: =入力シート!G138 -> 0 | D127: =入力シート!H138 -> 0 | E127: =入力シート!I138 -> 0 | F127: =入力シート!L138 -> 0 | M127: 326.9907026 | N127: 42.4 | O127: 164.3 | P127: -98.5 | T127: 0 | U127: 0 | V127: 0 | W127: 0 | X127: ー | AB127: ー | AD127: - | AE127: 1 | AF127: 0.95 | AH127: ー | AI127: ー | AJ127: ー | AT127: =ABS(入力シート!N138) -> 0 | AU127: =入力シート!O138 -> 0 | AV127: 0 | AW127: 0 | AX127: 0 | AY127: 0 | AZ127: -55 | BA127: 88.8 | BB127: 17.4 | BC127: OK | BD127: ー | BE127: OK | BF127: ー | BG127: OK | BH127: ー | BI127: ー | BK127: =入力シート!J138 -> 0 | BL127: =入力シート!K138 -> 0 | BM127: 180 | BN127: 0 | BO127: 0 | BP127: 350 | BQ127: 70 | BS127: 0.6666666667 | BT127: 0 | BX127: 0 | CB127: 0 | CC127: 0.6666666667 | CD127: 5492 | CE127: OK | CF127: ー | CG127: OK | CH127: ー | CJ127: ー | CK127: ー
B128: =入力シート!F139 -> 0 | C128: =入力シート!G139 -> 0 | D128: =入力シート!H139 -> 0 | E128: =入力シート!I139 -> 0 | F128: =入力シート!L139 -> 0 | M128: 326.9907026 | N128: 42.4 | O128: 164.3 | P128: -98.5 | T128: 0 | U128: 0 | V128: 0 | W128: 0 | X128: ー | AB128: ー | AD128: - | AE128: 1 | AF128: 0.95 | AH128: ー | AI128: ー | AJ128: ー | AT128: =ABS(入力シート!N139) -> 0 | AU128: =入力シート!O139 -> 0 | AV128: 0 | AW128: 0 | AX128: 0 | AY128: 0 | AZ128: -55 | BA128: 88.8 | BB128: 17.4 | BC128: OK | BD128: ー | BE128: OK | BF128: ー | BG128: OK | BH128: ー | BI128: ー | BK128: =入力シート!J139 -> 0 | BL128: =入力シート!K139 -> 0 | BM128: 180 | BN128: 0 | BO128: 0 | BP128: 350 | BQ128: 70 | BS128: 0.6666666667 | BT128: 0 | BX128: 0 | CB128: 0 | CC128: 0.6666666667 | CD128: 5492 | CE128: OK | CF128: ー | CG128: OK | CH128: ー | CJ128: ー | CK128: ー
B129: =入力シート!F140 -> 0 | C129: =入力シート!G140 -> 0 | D129: =入力シート!H140 -> 0 | E129: =入力シート!I140 -> 0 | F129: =入力シート!L140 -> 0 | M129: 326.9907026 | N129: 42.4 | O129: 164.3 | P129: -98.5 | T129: 0 | U129: 0 | V129: 0 | W129: 0 | X129: ー | AB129: ー | AD129: - | AE129: 1 | AF129: 0.95 | AH129: ー | AI129: ー | AJ129: ー | AT129: =ABS(入力シート!N140) -> 0 | AU129: =入力シート!O140 -> 0 | AV129: 0 | AW129: 0 | AX129: 0 | AY129: 0 | AZ129: -55 | BA129: 88.8 | BB129: 17.4 | BC129: OK | BD129: ー | BE129: OK | BF129: ー | BG129: OK | BH129: ー | BI129: ー | BK129: =入力シート!J140 -> 0 | BL129: =入力シート!K140 -> 0 | BM129: 180 | BN129: 0 | BO129: 0 | BP129: 350 | BQ129: 70 | BS129: 0.6666666667 | BT129: 0 | BX129: 0 | CB129: 0 | CC129: 0.6666666667 | CD129: 5492 | CE129: OK | CF129: ー | CG129: OK | CH129: ー | CJ129: ー | CK129: ー
B130: =入力シート!F141 -> 0 | C130: =入力シート!G141 -> 0 | D130: =入力シート!H141 -> 0 | E130: =入力シート!I141 -> 0 | F130: =入力シート!L141 -> 0 | M130: 326.9907026 | N130: 42.4 | O130: 164.3 | P130: -98.5 | T130: 0 | U130: 0 | V130: 0 | W130: 0 | X130: ー | AB130: ー | AD130: - | AE130: 1 | AF130: 0.95 | AH130: ー | AI130: ー | AJ130: ー | AT130: =ABS(入力シート!N141) -> 0 | AU130: =入力シート!O141 -> 0 | AV130: 0 | AW130: 0 | AX130: 0 | AY130: 0 | AZ130: -55 | BA130: 88.8 | BB130: 17.4 | BC130: OK | BD130: ー | BE130: OK | BF130: ー | BG130: OK | BH130: ー | BI130: ー | BK130: =入力シート!J141 -> 0 | BL130: =入力シート!K141 -> 0 | BM130: 180 | BN130: 0 | BO130: 0 | BP130: 350 | BQ130: 70 | BS130: 0.6666666667 | BT130: 0 | BX130: 0 | CB130: 0 | CC130: 0.6666666667 | CD130: 5492 | CE130: OK | CF130: ー | CG130: OK | CH130: ー | CJ130: ー | CK130: ー
B131: =入力シート!F142 -> 0 | C131: =入力シート!G142 -> 0 | D131: =入力シート!H142 -> 0 | E131: =入力シート!I142 -> 0 | F131: =入力シート!L142 -> 0 | M131: 326.9907026 | N131: 42.4 | O131: 164.3 | P131: -98.5 | T131: 0 | U131: 0 | V131: 0 | W131: 0 | X131: ー | AB131: ー | AD131: - | AE131: 1 | AF131: 0.95 | AH131: ー | AI131: ー | AJ131: ー | AT131: =ABS(入力シート!N142) -> 0 | AU131: =入力シート!O142 -> 0 | AV131: 0 | AW131: 0 | AX131: 0 | AY131: 0 | AZ131: -55 | BA131: 88.8 | BB131: 17.4 | BC131: OK | BD131: ー | BE131: OK | BF131: ー | BG131: OK | BH131: ー | BI131: ー | BK131: =入力シート!J142 -> 0 | BL131: =入力シート!K142 -> 0 | BM131: 180 | BN131: 0 | BO131: 0 | BP131: 350 | BQ131: 70 | BS131: 0.6666666667 | BT131: 0 | BX131: 0 | CB131: 0 | CC131: 0.6666666667 | CD131: 5492 | CE131: OK | CF131: ー | CG131: OK | CH131: ー | CJ131: ー | CK131: ー
B132: =入力シート!F143 -> 0 | C132: =入力シート!G143 -> 0 | D132: =入力シート!H143 -> 0 | E132: =入力シート!I143 -> 0 | F132: =入力シート!L143 -> 0 | M132: 326.9907026 | N132: 42.4 | O132: 164.3 | P132: -98.5 | T132: 0 | U132: 0 | V132: 0 | W132: 0 | X132: ー | AB132: ー | AD132: - | AE132: 1 | AF132: 0.95 | AH132: ー | AI132: ー | AJ132: ー | AT132: =ABS(入力シート!N143) -> 0 | AU132: =入力シート!O143 -> 0 | AV132: 0 | AW132: 0 | AX132: 0 | AY132: 0 | AZ132: -55 | BA132: 88.8 | BB132: 17.4 | BC132: OK | BD132: ー | BE132: OK | BF132: ー | BG132: OK | BH132: ー | BI132: ー | BK132: =入力シート!J143 -> 0 | BL132: =入力シート!K143 -> 0 | BM132: 180 | BN132: 0 | BO132: 0 | BP132: 350 | BQ132: 70 | BS132: 0.6666666667 | BT132: 0 | BX132: 0 | CB132: 0 | CC132: 0.6666666667 | CD132: 5492 | CE132: OK | CF132: ー | CG132: OK | CH132: ー | CJ132: ー | CK132: ー
B133: =入力シート!F144 -> 0 | C133: =入力シート!G144 -> 0 | D133: =入力シート!H144 -> 0 | E133: =入力シート!I144 -> 0 | F133: =入力シート!L144 -> 0 | M133: 326.9907026 | N133: 42.4 | O133: 164.3 | P133: -98.5 | T133: 0 | U133: 0 | V133: 0 | W133: 0 | X133: ー | AB133: ー | AD133: - | AE133: 1 | AF133: 0.95 | AH133: ー | AI133: ー | AJ133: ー | AT133: =ABS(入力シート!N144) -> 0 | AU133: =入力シート!O144 -> 0 | AV133: 0 | AW133: =(AT133*(E133/1000))/(P133/1000) -> 0 | AX133: 0 | AY133: 0 | AZ133: =IF(F133=3,63.2,IF(F133=2,63.2,55))*-1 -> -55 | BA133: =IF(F133=3,127.8,IF(F133=2,107.6,88.8)) -> 88.8 | BB133: =IF(F133=3,23.1,IF(F133=2,21,17.4)) -> 17.4 | BC133: OK | BD133: ー | BE133: OK | BF133: ー | BG133: OK | BH133: ー | BI133: =IF(AND(AT133=0,AU133=0),"ー",IF(AND(BC133="OK",BE133="OK",BG133="OK"),"OK","NG")) -> ー | BK133: =入力シート!J144 -> 0 | BL133: =入力シート!K144 -> 0 | BM133: 180 | BN133: 0 | BO133: 0 | BP133: 350 | BQ133: 70 | BS133: 0.6666666667 | BT133: 0 | BX133: 0 | CB133: =CC133*BK133*CD133/1000 -> 0 | CC133: 0.6666666667 | CD133: 5492 | CE133: OK | CF133: ー | CG133: OK | CH133: ー | CJ133: ー | CK133: ー
B134: =入力シート!F145 -> 0 | C134: =入力シート!G145 -> 0 | D134: =入力シート!H145 -> 0 | E134: =入力シート!I145 -> 0 | F134: =入力シート!L145 -> 0 | M134: 326.9907026 | N134: 42.4 | O134: 164.3 | P134: -98.5 | T134: 0 | U134: 0 | V134: 0 | W134: 0 | X134: =IF(C134=0,"ー",U134-105) -> ー | AB134: =IF(C134=0,"ー",IF(AI134>=AL134,ROUNDDOWN(AA134*AC134,2),"ー")) -> ー | AD134: - | AE134: 1 | AF134: 0.95 | AG134: =IF(S134>=10290,1,0.9) ->  | AH134: =IF(C134=0,"ー",I134*AC134) -> ー | AI134: =IF(C134=0,"ー",H134*AC134) -> ー | AJ134: =IF(C134=0,"ー",IF(H134>=AL134,ROUNDDOWN(AB134*(1000/(C134-105))/1.96,1),"ー")) -> ー | AT134: =ABS(入力シート!N145) -> 0 | AU134: =入力シート!O145 -> 0 | AV134: =AU134/2 -> 0 | AW134: 0 | AX134: =AV134+AW134 -> 0 | AY134: =AV134-AW134 -> 0 | AZ134: -55 | BA134: 88.8 | BB134: 17.4 | BC134: =IF(AX134<=BA134,"OK","NG") -> OK | BD134: =IF(AND(AT134=0,AU134=0),"ー",IF(0<=AX134,AX134/BA134,AX134/AZ134)) -> ー | BE134: =IF(AY134>=AZ134,"OK","NG") -> OK | BF134: =IF(AND(AT134=0,AU134=0),"ー",IF(0>=AY134,AY134/AZ134,AY134/BA134)) -> ー | BG134: =IF(AT134<=BB134,"OK","NG") -> OK | BH134: =IF(AND(AT134=0,AU134=0),"ー",AT134/BB134) -> ー | BI134: ー | BK134: =入力シート!J145 -> 0 | BL134: =入力シート!K145 -> 0 | BM134: 180 | BN134: =BO134*BP134*BQ134/1000*-1 -> 0 | BO134: =MIN(BK134/10,1.35+BK134/25)*1.5 -> 0 | BP134: 350 | BQ134: 70 | BR134: =BS134*BT134*BU134/1000 ->  | BS134: =2/3 -> 0.6666666667 | BT134: =0.31*SQRT(BK134) -> 0 | BU134: =IF(2*BL134=BM134,(PI()*BL134^2)/2,(BM134*BZ134)+BV134) ->  | BV134: =BW134-CA134 ->  | BW134: =PI()*BX134^2*((2*BY134)/(2*PI())) ->  | BX134: =BL134 -> 0 | BY134: =ATAN((1/2)*BM134/BZ134) ->  | BZ134: =SQRT(BX134^2-(BM134/2)^2) ->  | CA134: =(BM134*BZ134)/2 ->  | CB134: 0 | CC134: =2/3 -> 0.6666666667 | CD134: 5492 | CE134: =IF(AX134<=CB134,"OK","NG") -> OK | CF134: =IF(AND(AT134=0,AU134=0),"ー",IF(0<=AX134,AX134/CB134,AX134/BN134)) -> ー | CG134: =IF(AY134>=BN134,"OK","NG") -> OK | CH134: =IF(AND(AT134=0,AU134=0),"ー",IF(0>=AY134,AY134/BN134,AY134/CB134)) -> ー | CI134: =IF(AT134<=BR134,"OK","NG") ->  | CJ134: =IF(AND(AT134=0,AU134=0),"ー",AT134/BR134) -> ー | CK134: =IF(AND(AT134=0,AU134=0),"ー",IF(AND(CE134="OK",CG134="OK",CI134="OK"),"OK","NG")) -> ー
B135: =入力シート!F146 -> 0 | C135: =入力シート!G146 -> 0 | D135: =入力シート!H146 -> 0 | E135: =入力シート!I146 -> 0 | F135: =入力シート!L146 -> 0 | M135: 326.9907026 | N135: 42.4 | O135: 164.3 | P135: -98.5 | T135: 0 | U135: 0 | V135: 0 | W135: 0 | X135: ー | AB135: ー | AD135: - | AE135: 1 | AF135: 0.95 | AH135: ー | AI135: ー | AJ135: ー | AT135: =ABS(入力シート!N146) -> 0 | AU135: =入力シート!O146 -> 0 | AV135: 0 | AW135: 0 | AX135: 0 | AY135: 0 | AZ135: -55 | BA135: 88.8 | BB135: 17.4 | BC135: OK | BD135: ー | BE135: OK | BF135: ー | BG135: OK | BH135: ー | BI135: ー | BK135: =入力シート!J146 -> 0 | BL135: =入力シート!K146 -> 0 | BM135: 180 | BN135: 0 | BO135: 0 | BP135: 350 | BQ135: 70 | BS135: 0.6666666667 | BT135: 0 | BX135: 0 | CB135: 0 | CC135: 0.6666666667 | CD135: 5492 | CE135: OK | CF135: ー | CG135: OK | CH135: ー | CJ135: ー | CK135: ー
B136: =入力シート!F147 -> 0 | C136: =入力シート!G147 -> 0 | D136: =入力シート!H147 -> 0 | E136: =入力シート!I147 -> 0 | F136: =入力シート!L147 -> 0 | M136: 326.9907026 | N136: 42.4 | O136: 164.3 | P136: -98.5 | T136: 0 | U136: 0 | V136: 0 | W136: 0 | X136: ー | AB136: ー | AD136: - | AE136: 1 | AF136: 0.95 | AH136: ー | AI136: ー | AJ136: ー | AT136: =ABS(入力シート!N147) -> 0 | AU136: =入力シート!O147 -> 0 | AV136: 0 | AW136: 0 | AX136: 0 | AY136: 0 | AZ136: -55 | BA136: 88.8 | BB136: 17.4 | BC136: OK | BD136: ー | BE136: OK | BF136: ー | BG136: OK | BH136: ー | BI136: ー | BK136: =入力シート!J147 -> 0 | BL136: =入力シート!K147 -> 0 | BM136: 180 | BN136: 0 | BO136: 0 | BP136: 350 | BQ136: 70 | BS136: 0.6666666667 | BT136: 0 | BX136: 0 | CB136: 0 | CC136: 0.6666666667 | CD136: 5492 | CE136: OK | CF136: ー | CG136: OK | CH136: ー | CJ136: ー | CK136: ー
B137: =入力シート!F148 -> 0 | C137: =入力シート!G148 -> 0 | D137: =入力シート!H148 -> 0 | E137: =入力シート!I148 -> 0 | F137: =入力シート!L148 -> 0 | M137: 326.9907026 | N137: 42.4 | O137: 164.3 | P137: -98.5 | T137: 0 | U137: 0 | V137: 0 | W137: 0 | X137: ー | AB137: ー | AD137: - | AE137: 1 | AF137: 0.95 | AH137: ー | AI137: ー | AJ137: ー | AT137: =ABS(入力シート!N148) -> 0 | AU137: =入力シート!O148 -> 0 | AV137: 0 | AW137: 0 | AX137: 0 | AY137: 0 | AZ137: -55 | BA137: 88.8 | BB137: 17.4 | BC137: OK | BD137: ー | BE137: OK | BF137: ー | BG137: OK | BH137: ー | BI137: ー | BK137: =入力シート!J148 -> 0 | BL137: =入力シート!K148 -> 0 | BM137: 180 | BN137: 0 | BO137: 0 | BP137: 350 | BQ137: 70 | BS137: 0.6666666667 | BT137: 0 | BX137: 0 | CB137: 0 | CC137: 0.6666666667 | CD137: 5492 | CE137: OK | CF137: ー | CG137: OK | CH137: ー | CJ137: ー | CK137: ー
B138: =入力シート!F149 -> 0 | C138: =入力シート!G149 -> 0 | D138: =入力シート!H149 -> 0 | E138: =入力シート!I149 -> 0 | F138: =入力シート!L149 -> 0 | M138: 326.9907026 | N138: 42.4 | O138: 164.3 | P138: -98.5 | T138: 0 | U138: 0 | V138: 0 | W138: 0 | X138: ー | AB138: ー | AD138: - | AE138: 1 | AF138: 0.95 | AH138: ー | AI138: ー | AJ138: ー | AT138: =ABS(入力シート!N149) -> 0 | AU138: =入力シート!O149 -> 0 | AV138: 0 | AW138: 0 | AX138: 0 | AY138: 0 | AZ138: -55 | BA138: 88.8 | BB138: 17.4 | BC138: OK | BD138: ー | BE138: OK | BF138: ー | BG138: OK | BH138: ー | BI138: ー | BK138: =入力シート!J149 -> 0 | BL138: =入力シート!K149 -> 0 | BM138: 180 | BN138: 0 | BO138: 0 | BP138: 350 | BQ138: 70 | BS138: 0.6666666667 | BT138: 0 | BX138: 0 | CB138: 0 | CC138: 0.6666666667 | CD138: 5492 | CE138: OK | CF138: ー | CG138: OK | CH138: ー | CJ138: ー | CK138: ー
B139: =入力シート!F150 -> 0 | C139: =入力シート!G150 -> 0 | D139: =入力シート!H150 -> 0 | E139: =入力シート!I150 -> 0 | F139: =入力シート!L150 -> 0 | M139: 326.9907026 | N139: 42.4 | O139: 164.3 | P139: -98.5 | T139: 0 | U139: 0 | V139: 0 | W139: 0 | X139: ー | AB139: ー | AD139: - | AE139: 1 | AF139: 0.95 | AH139: ー | AI139: ー | AJ139: ー | AT139: =ABS(入力シート!N150) -> 0 | AU139: =入力シート!O150 -> 0 | AV139: 0 | AW139: 0 | AX139: 0 | AY139: 0 | AZ139: -55 | BA139: 88.8 | BB139: 17.4 | BC139: OK | BD139: ー | BE139: OK | BF139: ー | BG139: OK | BH139: ー | BI139: ー | BK139: =入力シート!J150 -> 0 | BL139: =入力シート!K150 -> 0 | BM139: 180 | BN139: 0 | BO139: 0 | BP139: 350 | BQ139: 70 | BS139: 0.6666666667 | BT139: 0 | BX139: 0 | CB139: 0 | CC139: 0.6666666667 | CD139: 5492 | CE139: OK | CF139: ー | CG139: OK | CH139: ー | CJ139: ー | CK139: ー
B140: =入力シート!F151 -> 0 | C140: =入力シート!G151 -> 0 | D140: =入力シート!H151 -> 0 | E140: =入力シート!I151 -> 0 | F140: =入力シート!L151 -> 0 | M140: 326.9907026 | N140: 42.4 | O140: 164.3 | P140: -98.5 | T140: 0 | U140: 0 | V140: 0 | W140: 0 | X140: ー | AB140: ー | AD140: - | AE140: 1 | AF140: 0.95 | AH140: ー | AI140: ー | AJ140: ー | AT140: =ABS(入力シート!N151) -> 0 | AU140: =入力シート!O151 -> 0 | AV140: 0 | AW140: 0 | AX140: 0 | AY140: 0 | AZ140: -55 | BA140: 88.8 | BB140: 17.4 | BC140: OK | BD140: ー | BE140: OK | BF140: ー | BG140: OK | BH140: ー | BI140: ー | BK140: =入力シート!J151 -> 0 | BL140: =入力シート!K151 -> 0 | BM140: 180 | BN140: 0 | BO140: 0 | BP140: 350 | BQ140: 70 | BS140: 0.6666666667 | BT140: 0 | BX140: 0 | CB140: 0 | CC140: 0.6666666667 | CD140: 5492 | CE140: OK | CF140: ー | CG140: OK | CH140: ー | CJ140: ー | CK140: ー
B141: =入力シート!F152 -> 0 | C141: =入力シート!G152 -> 0 | D141: =入力シート!H152 -> 0 | E141: =入力シート!I152 -> 0 | F141: =入力シート!L152 -> 0 | H141: =((I141*J141)/(I141+J141))*0.85 ->  | I141: =M141*L141 ->  | J141: =R141 ->  | L141: =0.0000319*S141+0.665 ->  | M141: =((P141^2)/((1/N141)+(1/O141)))/1000 -> 326.9907026 | N141: =42400/1000 -> 42.4 | O141: =164300/1000 -> 164.3 | P141: =1.05*C141-98.5 -> -98.5 | R141: =(((3*S141*T141)/W141))/1000000 ->  | T141: =(V141*(U141^3))/12 -> 0 | U141: =C141 -> 0 | V141: =D141 -> 0 | W141: =E141 -> 0 | X141: ー | AB141: ー | AC141: =ROUNDDOWN(AD141*AE141*AF141*AG141,2) ->  | AD141: =IF(F141=3,1,IF(F141=2,0.85,IF(F141=1,0.75,"-"))) -> - | AE141: 1 | AF141: 0.95 | AH141: ー | AI141: ー | AJ141: ー | AT141: =ABS(入力シート!N152) -> 0 | AU141: =入力シート!O152 -> 0 | AV141: 0 | AW141: 0 | AX141: 0 | AY141: 0 | AZ141: -55 | BA141: 88.8 | BB141: 17.4 | BC141: OK | BD141: ー | BE141: OK | BF141: ー | BG141: OK | BH141: ー | BI141: ー | BK141: =入力シート!J152 -> 0 | BL141: =入力シート!K152 -> 0 | BM141: 180 | BN141: 0 | BO141: 0 | BP141: 350 | BQ141: 70 | BS141: 0.6666666667 | BT141: 0 | BX141: 0 | CB141: 0 | CC141: 0.6666666667 | CD141: 5492 | CE141: OK | CF141: ー | CG141: OK | CH141: ー | CJ141: ー | CK141: ー
B142: =入力シート!F153 -> 0 | C142: =入力シート!G153 -> 0 | D142: =入力シート!H153 -> 0 | E142: =入力シート!I153 -> 0 | F142: =入力シート!L153 -> 0 | H142: =((I142*J142)/(I142+J142))*0.85 ->  | J142: =R142 ->  | L142: =0.0000319*S142+0.665 ->  | M142: =((P142^2)/((1/N142)+(1/O142)))/1000 -> 326.9907026 | N142: =42400/1000 -> 42.4 | O142: =164300/1000 -> 164.3 | P142: -98.5 | R142: =(((3*S142*T142)/W142))/1000000 ->  | T142: 0 | U142: 0 | V142: 0 | W142: 0 | X142: ー | AB142: ー | AC142: =ROUNDDOWN(AD142*AE142*AF142*AG142,2) ->  | AD142: =IF(F142=3,1,IF(F142=2,0.85,IF(F142=1,0.75,"-"))) -> - | AE142: 1 | AF142: 0.95 | AH142: ー | AI142: ー | AJ142: ー | AT142: =ABS(入力シート!N153) -> 0 | AU142: =入力シート!O153 -> 0 | AV142: 0 | AW142: 0 | AX142: 0 | AY142: 0 | AZ142: -55 | BA142: 88.8 | BB142: 17.4 | BC142: OK | BD142: ー | BE142: OK | BF142: ー | BG142: OK | BH142: ー | BI142: ー | BK142: =入力シート!J153 -> 0 | BL142: =入力シート!K153 -> 0 | BM142: 180 | BN142: 0 | BO142: 0 | BP142: 350 | BQ142: 70 | BS142: 0.6666666667 | BT142: 0 | BX142: 0 | CB142: 0 | CC142: 0.6666666667 | CD142: 5492 | CE142: OK | CF142: ー | CG142: OK | CH142: ー | CJ142: ー | CK142: ー
B143: =入力シート!F154 -> 0 | C143: =入力シート!G154 -> 0 | D143: =入力シート!H154 -> 0 | E143: =入力シート!I154 -> 0 | F143: =入力シート!L154 -> 0 | M143: 326.9907026 | N143: 42.4 | O143: 164.3 | P143: -98.5 | T143: 0 | U143: 0 | V143: 0 | W143: 0 | X143: ー | AB143: ー | AD143: - | AE143: 1 | AF143: 0.95 | AH143: ー | AI143: ー | AJ143: ー | AT143: =ABS(入力シート!N154) -> 0 | AU143: =入力シート!O154 -> 0 | AV143: 0 | AW143: 0 | AX143: 0 | AY143: 0 | AZ143: -55 | BA143: 88.8 | BB143: 17.4 | BC143: OK | BD143: ー | BE143: OK | BF143: ー | BG143: OK | BH143: ー | BI143: ー | BK143: =入力シート!J154 -> 0 | BL143: =入力シート!K154 -> 0 | BM143: 180 | BN143: 0 | BO143: 0 | BP143: 350 | BQ143: 70 | BS143: 0.6666666667 | BT143: 0 | BX143: 0 | CB143: 0 | CC143: 0.6666666667 | CD143: 5492 | CE143: OK | CF143: ー | CG143: OK | CH143: ー | CJ143: ー | CK143: ー
B144: =入力シート!F155 -> 0 | C144: =入力シート!G155 -> 0 | D144: =入力シート!H155 -> 0 | E144: =入力シート!I155 -> 0 | F144: =入力シート!L155 -> 0 | M144: 326.9907026 | N144: 42.4 | O144: 164.3 | P144: -98.5 | T144: 0 | U144: 0 | V144: 0 | W144: 0 | X144: ー | AB144: ー | AD144: - | AE144: 1 | AF144: 0.95 | AH144: ー | AI144: ー | AJ144: ー | AT144: =ABS(入力シート!N155) -> 0 | AU144: =入力シート!O155 -> 0 | AV144: 0 | AW144: 0 | AX144: 0 | AY144: 0 | AZ144: -55 | BA144: 88.8 | BB144: 17.4 | BC144: OK | BD144: ー | BE144: OK | BF144: ー | BG144: OK | BH144: ー | BI144: ー | BK144: =入力シート!J155 -> 0 | BL144: =入力シート!K155 -> 0 | BM144: 180 | BN144: 0 | BO144: 0 | BP144: 350 | BQ144: 70 | BS144: 0.6666666667 | BT144: 0 | BX144: 0 | CB144: 0 | CC144: 0.6666666667 | CD144: 5492 | CE144: OK | CF144: ー | CG144: OK | CH144: ー | CJ144: ー | CK144: ー
B145: =入力シート!F156 -> 0 | C145: =入力シート!G156 -> 0 | D145: =入力シート!H156 -> 0 | E145: =入力シート!I156 -> 0 | F145: =入力シート!L156 -> 0 | M145: 326.9907026 | N145: 42.4 | O145: 164.3 | P145: -98.5 | T145: 0 | U145: 0 | V145: 0 | W145: 0 | X145: ー | AB145: ー | AD145: - | AE145: 1 | AF145: 0.95 | AH145: ー | AI145: ー | AJ145: ー | AT145: =ABS(入力シート!N156) -> 0 | AU145: =入力シート!O156 -> 0 | AV145: 0 | AW145: 0 | AX145: 0 | AY145: 0 | AZ145: -55 | BA145: 88.8 | BB145: 17.4 | BC145: OK | BD145: ー | BE145: OK | BF145: ー | BG145: OK | BH145: ー | BI145: ー | BK145: =入力シート!J156 -> 0 | BL145: =入力シート!K156 -> 0 | BM145: 180 | BN145: 0 | BO145: 0 | BP145: 350 | BQ145: 70 | BS145: 0.6666666667 | BT145: 0 | BX145: 0 | CB145: 0 | CC145: 0.6666666667 | CD145: 5492 | CE145: OK | CF145: ー | CG145: OK | CH145: ー | CJ145: ー | CK145: ー
B146: =入力シート!F157 -> 0 | C146: =入力シート!G157 -> 0 | D146: =入力シート!H157 -> 0 | E146: =入力シート!I157 -> 0 | F146: =入力シート!L157 -> 0 | M146: 326.9907026 | N146: 42.4 | O146: 164.3 | P146: -98.5 | S146: =VLOOKUP(B146,$AN$5:$AO$21,2,TRUE) ->  | T146: 0 | U146: 0 | V146: 0 | W146: 0 | X146: ー | Y146: =IF(H146>=AL146,H146/120,"―") ->  | Z146: =IF(H146>=AL146,Y146*AC146,"ー") ->  | AA146: =IF(H146>=AL146,Y146/(E146/1000),"ー") ->  | AB146: ー | AD146: - | AE146: 1 | AF146: 0.95 | AH146: ー | AI146: ー | AJ146: ー | AL146: =VLOOKUP(C146,$AQ$5:$AR$13,2,TRUE) ->  | AT146: =ABS(入力シート!N157) -> 0 | AU146: =入力シート!O157 -> 0 | AV146: 0 | AW146: 0 | AX146: 0 | AY146: 0 | AZ146: -55 | BA146: 88.8 | BB146: 17.4 | BC146: OK | BD146: ー | BE146: OK | BF146: ー | BG146: OK | BH146: ー | BI146: ー | BK146: =入力シート!J157 -> 0 | BL146: =入力シート!K157 -> 0 | BM146: 180 | BN146: 0 | BO146: 0 | BP146: 350 | BQ146: 70 | BS146: 0.6666666667 | BT146: 0 | BX146: 0 | CB146: 0 | CC146: 0.6666666667 | CD146: 5492 | CE146: OK | CF146: ー | CG146: OK | CH146: ー | CJ146: ー | CK146: ー
B147: =入力シート!F158 -> 0 | C147: =入力シート!G158 -> 0 | D147: =入力シート!H158 -> 0 | E147: =入力シート!I158 -> 0 | F147: =入力シート!L158 -> 0 | M147: 326.9907026 | N147: 42.4 | O147: 164.3 | P147: -98.5 | T147: 0 | U147: 0 | V147: 0 | W147: 0 | X147: ー | AB147: ー | AD147: - | AE147: 1 | AF147: 0.95 | AH147: ー | AI147: ー | AJ147: ー | AT147: =ABS(入力シート!N158) -> 0 | AU147: =入力シート!O158 -> 0 | AV147: 0 | AW147: 0 | AX147: 0 | AY147: 0 | AZ147: -55 | BA147: 88.8 | BB147: 17.4 | BC147: OK | BD147: ー | BE147: OK | BF147: ー | BG147: OK | BH147: ー | BI147: ー | BK147: =入力シート!J158 -> 0 | BL147: =入力シート!K158 -> 0 | BM147: 180 | BN147: 0 | BO147: 0 | BP147: 350 | BQ147: 70 | BS147: 0.6666666667 | BT147: 0 | BX147: 0 | CB147: 0 | CC147: 0.6666666667 | CD147: 5492 | CE147: OK | CF147: ー | CG147: OK | CH147: ー | CJ147: ー | CK147: ー
B148: =入力シート!F159 -> 0 | C148: =入力シート!G159 -> 0 | D148: =入力シート!H159 -> 0 | E148: =入力シート!I159 -> 0 | F148: =入力シート!L159 -> 0 | M148: 326.9907026 | N148: 42.4 | O148: 164.3 | P148: -98.5 | T148: 0 | U148: 0 | V148: 0 | W148: 0 | X148: ー | AB148: ー | AD148: - | AE148: 1 | AF148: 0.95 | AH148: ー | AI148: ー | AJ148: ー | AT148: =ABS(入力シート!N159) -> 0 | AU148: =入力シート!O159 -> 0 | AV148: 0 | AW148: 0 | AX148: 0 | AY148: 0 | AZ148: -55 | BA148: 88.8 | BB148: 17.4 | BC148: OK | BD148: ー | BE148: OK | BF148: ー | BG148: OK | BH148: ー | BI148: ー | BK148: =入力シート!J159 -> 0 | BL148: =入力シート!K159 -> 0 | BM148: 180 | BN148: 0 | BO148: 0 | BP148: 350 | BQ148: 70 | BS148: 0.6666666667 | BT148: 0 | BX148: 0 | CB148: 0 | CC148: 0.6666666667 | CD148: 5492 | CE148: OK | CF148: ー | CG148: OK | CH148: ー | CJ148: ー | CK148: ー
B149: =入力シート!F160 -> 0 | C149: =入力シート!G160 -> 0 | D149: =入力シート!H160 -> 0 | E149: =入力シート!I160 -> 0 | F149: =入力シート!L160 -> 0 | M149: 326.9907026 | N149: 42.4 | O149: 164.3 | P149: -98.5 | T149: 0 | U149: 0 | V149: 0 | W149: 0 | X149: ー | AB149: ー | AD149: - | AE149: 1 | AF149: 0.95 | AH149: ー | AI149: ー | AJ149: ー | AT149: =ABS(入力シート!N160) -> 0 | AU149: =入力シート!O160 -> 0 | AV149: 0 | AW149: 0 | AX149: 0 | AY149: 0 | AZ149: -55 | BA149: 88.8 | BB149: 17.4 | BC149: OK | BD149: ー | BE149: OK | BF149: ー | BG149: OK | BH149: ー | BI149: ー | BK149: =入力シート!J160 -> 0 | BL149: =入力シート!K160 -> 0 | BM149: 180 | BN149: 0 | BO149: 0 | BP149: 350 | BQ149: 70 | BS149: 0.6666666667 | BT149: 0 | BX149: 0 | CB149: 0 | CC149: 0.6666666667 | CD149: 5492 | CE149: OK | CF149: ー | CG149: OK | CH149: ー | CJ149: ー | CK149: ー
B150: =入力シート!F161 -> 0 | C150: =入力シート!G161 -> 0 | D150: =入力シート!H161 -> 0 | E150: =入力シート!I161 -> 0 | F150: =入力シート!L161 -> 0 | M150: 326.9907026 | N150: 42.4 | O150: 164.3 | P150: -98.5 | T150: 0 | U150: 0 | V150: 0 | W150: 0 | X150: ー | AB150: ー | AD150: - | AE150: 1 | AF150: 0.95 | AH150: ー | AI150: ー | AJ150: ー | AT150: =ABS(入力シート!N161) -> 0 | AU150: =入力シート!O161 -> 0 | AV150: 0 | AW150: 0 | AX150: 0 | AY150: 0 | AZ150: -55 | BA150: 88.8 | BB150: 17.4 | BC150: OK | BD150: ー | BE150: OK | BF150: ー | BG150: OK | BH150: ー | BI150: ー | BK150: =入力シート!J161 -> 0 | BL150: =入力シート!K161 -> 0 | BM150: 180 | BN150: 0 | BO150: 0 | BP150: 350 | BQ150: 70 | BS150: 0.6666666667 | BT150: 0 | BX150: 0 | CB150: 0 | CC150: 0.6666666667 | CD150: 5492 | CE150: OK | CF150: ー | CG150: OK | CH150: ー | CJ150: ー | CK150: ー
B151: =入力シート!F162 -> 0 | C151: =入力シート!G162 -> 0 | D151: =入力シート!H162 -> 0 | E151: =入力シート!I162 -> 0 | F151: =入力シート!L162 -> 0 | M151: 326.9907026 | N151: 42.4 | O151: 164.3 | P151: -98.5 | T151: 0 | U151: 0 | V151: 0 | W151: 0 | X151: ー | AB151: ー | AD151: - | AE151: 1 | AF151: 0.95 | AH151: ー | AI151: ー | AJ151: ー | AT151: =ABS(入力シート!N162) -> 0 | AU151: =入力シート!O162 -> 0 | AV151: 0 | AW151: 0 | AX151: 0 | AY151: 0 | AZ151: -55 | BA151: 88.8 | BB151: 17.4 | BC151: OK | BD151: ー | BE151: OK | BF151: ー | BG151: OK | BH151: ー | BI151: ー | BK151: =入力シート!J162 -> 0 | BL151: =入力シート!K162 -> 0 | BM151: 180 | BN151: 0 | BO151: 0 | BP151: 350 | BQ151: 70 | BS151: 0.6666666667 | BT151: 0 | BX151: 0 | CB151: 0 | CC151: 0.6666666667 | CD151: 5492 | CE151: OK | CF151: ー | CG151: OK | CH151: ー | CJ151: ー | CK151: ー
B152: =入力シート!F163 -> 0 | C152: =入力シート!G163 -> 0 | D152: =入力シート!H163 -> 0 | E152: =入力シート!I163 -> 0 | F152: =入力シート!L163 -> 0 | M152: 326.9907026 | N152: 42.4 | O152: 164.3 | P152: -98.5 | T152: 0 | U152: 0 | V152: 0 | W152: 0 | X152: ー | AB152: ー | AD152: - | AE152: 1 | AF152: 0.95 | AH152: ー | AI152: ー | AJ152: ー | AT152: =ABS(入力シート!N163) -> 0 | AU152: =入力シート!O163 -> 0 | AV152: 0 | AW152: 0 | AX152: 0 | AY152: 0 | AZ152: -55 | BA152: 88.8 | BB152: 17.4 | BC152: OK | BD152: ー | BE152: OK | BF152: ー | BG152: OK | BH152: ー | BI152: ー | BK152: =入力シート!J163 -> 0 | BL152: =入力シート!K163 -> 0 | BM152: 180 | BN152: 0 | BO152: 0 | BP152: 350 | BQ152: 70 | BS152: 0.6666666667 | BT152: 0 | BX152: 0 | CB152: 0 | CC152: 0.6666666667 | CD152: 5492 | CE152: OK | CF152: ー | CG152: OK | CH152: ー | CJ152: ー | CK152: ー
B153: =入力シート!F164 -> 0 | C153: =入力シート!G164 -> 0 | D153: =入力シート!H164 -> 0 | E153: =入力シート!I164 -> 0 | F153: =入力シート!L164 -> 0 | M153: 326.9907026 | N153: 42.4 | O153: 164.3 | P153: -98.5 | T153: 0 | U153: 0 | V153: 0 | W153: 0 | X153: ー | AB153: ー | AD153: - | AE153: 1 | AF153: 0.95 | AH153: ー | AI153: ー | AJ153: ー | AT153: =ABS(入力シート!N164) -> 0 | AU153: =入力シート!O164 -> 0 | AV153: 0 | AW153: 0 | AX153: 0 | AY153: 0 | AZ153: -55 | BA153: 88.8 | BB153: 17.4 | BC153: OK | BD153: ー | BE153: OK | BF153: ー | BG153: OK | BH153: ー | BI153: ー | BK153: =入力シート!J164 -> 0 | BL153: =入力シート!K164 -> 0 | BM153: 180 | BN153: 0 | BO153: 0 | BP153: 350 | BQ153: 70 | BS153: 0.6666666667 | BT153: 0 | BX153: 0 | CB153: 0 | CC153: 0.6666666667 | CD153: 5492 | CE153: OK | CF153: ー | CG153: OK | CH153: ー | CJ153: ー | CK153: ー
B154: =入力シート!F165 -> 0 | C154: =入力シート!G165 -> 0 | D154: =入力シート!H165 -> 0 | E154: =入力シート!I165 -> 0 | F154: =入力シート!L165 -> 0 | M154: 326.9907026 | N154: 42.4 | O154: 164.3 | P154: -98.5 | T154: 0 | U154: 0 | V154: 0 | W154: 0 | X154: ー | AB154: ー | AD154: - | AE154: 1 | AF154: 0.95 | AH154: ー | AI154: ー | AJ154: ー | AT154: =ABS(入力シート!N165) -> 0 | AU154: =入力シート!O165 -> 0 | AV154: 0 | AW154: 0 | AX154: 0 | AY154: 0 | AZ154: -55 | BA154: 88.8 | BB154: 17.4 | BC154: OK | BD154: ー | BE154: OK | BF154: ー | BG154: OK | BH154: ー | BI154: ー | BK154: =入力シート!J165 -> 0 | BL154: =入力シート!K165 -> 0 | BM154: 180 | BN154: 0 | BO154: 0 | BP154: 350 | BQ154: 70 | BS154: 0.6666666667 | BT154: 0 | BX154: 0 | CB154: 0 | CC154: 0.6666666667 | CD154: 5492 | CE154: OK | CF154: ー | CG154: OK | CH154: ー | CJ154: ー | CK154: ー
B155: =入力シート!F166 -> 0 | C155: =入力シート!G166 -> 0 | D155: =入力シート!H166 -> 0 | E155: =入力シート!I166 -> 0 | F155: =入力シート!L166 -> 0 | M155: 326.9907026 | N155: 42.4 | O155: 164.3 | P155: -98.5 | T155: 0 | U155: 0 | V155: 0 | W155: 0 | X155: ー | AB155: ー | AD155: - | AE155: 1 | AF155: 0.95 | AH155: ー | AI155: ー | AJ155: ー | AT155: =ABS(入力シート!N166) -> 0 | AU155: =入力シート!O166 -> 0 | AV155: 0 | AW155: 0 | AX155: 0 | AY155: 0 | AZ155: -55 | BA155: 88.8 | BB155: 17.4 | BC155: OK | BD155: ー | BE155: OK | BF155: ー | BG155: OK | BH155: ー | BI155: ー | BK155: =入力シート!J166 -> 0 | BL155: =入力シート!K166 -> 0 | BM155: 180 | BN155: 0 | BO155: 0 | BP155: 350 | BQ155: 70 | BS155: 0.6666666667 | BT155: 0 | BX155: 0 | CB155: 0 | CC155: 0.6666666667 | CD155: 5492 | CE155: OK | CF155: ー | CG155: OK | CH155: ー | CJ155: ー | CK155: ー
B156: =入力シート!F167 -> 0 | C156: =入力シート!G167 -> 0 | D156: =入力シート!H167 -> 0 | E156: =入力シート!I167 -> 0 | F156: =入力シート!L167 -> 0 | M156: 326.9907026 | N156: 42.4 | O156: 164.3 | P156: -98.5 | T156: 0 | U156: 0 | V156: 0 | W156: 0 | X156: ー | AB156: ー | AD156: - | AE156: 1 | AF156: 0.95 | AH156: ー | AI156: ー | AJ156: ー | AT156: =ABS(入力シート!N167) -> 0 | AU156: =入力シート!O167 -> 0 | AV156: 0 | AW156: 0 | AX156: 0 | AY156: 0 | AZ156: -55 | BA156: 88.8 | BB156: 17.4 | BC156: OK | BD156: ー | BE156: OK | BF156: ー | BG156: OK | BH156: ー | BI156: ー | BK156: =入力シート!J167 -> 0 | BL156: =入力シート!K167 -> 0 | BM156: 180 | BN156: 0 | BO156: 0 | BP156: 350 | BQ156: 70 | BS156: 0.6666666667 | BT156: 0 | BX156: 0 | CB156: 0 | CC156: 0.6666666667 | CD156: 5492 | CE156: OK | CF156: ー | CG156: OK | CH156: ー | CJ156: ー | CK156: ー
B157: =入力シート!F168 -> 0 | C157: =入力シート!G168 -> 0 | D157: =入力シート!H168 -> 0 | E157: =入力シート!I168 -> 0 | F157: =入力シート!L168 -> 0 | M157: 326.9907026 | N157: 42.4 | O157: 164.3 | P157: -98.5 | T157: 0 | U157: 0 | V157: 0 | W157: 0 | X157: ー | AB157: ー | AD157: - | AE157: 1 | AF157: 0.95 | AH157: ー | AI157: ー | AJ157: ー | AT157: =ABS(入力シート!N168) -> 0 | AU157: =入力シート!O168 -> 0 | AV157: 0 | AW157: 0 | AX157: 0 | AY157: 0 | AZ157: -55 | BA157: 88.8 | BB157: 17.4 | BC157: OK | BD157: ー | BE157: OK | BF157: ー | BG157: OK | BH157: ー | BI157: ー | BK157: =入力シート!J168 -> 0 | BL157: =入力シート!K168 -> 0 | BM157: 180 | BN157: 0 | BO157: 0 | BP157: 350 | BQ157: 70 | BS157: 0.6666666667 | BT157: 0 | BX157: 0 | CB157: 0 | CC157: 0.6666666667 | CD157: 5492 | CE157: OK | CF157: ー | CG157: OK | CH157: ー | CJ157: ー | CK157: ー
